{"text_format":"3","workbook":"xlsx","n_sheets":2,"sheets":["Lukujärjestys","Kurssiluettelo"],"not_rendered":{"defined_names":17},"read":"whole","date_system":"1900"}

{"sheet":"Lukujärjestys","index":0,"n_rows":56,"n_cols":9,"rows_kept":56,"merged":[[0,1,1,4],[0,8,1,8]]}
[null,"LUKUJÄRJESTYS",{"$nulls":4},"LUKUJÄRJESTYKSEN ALKAMISAIKA","AIKAVÄLI","Kurssiluettelo"]
[{"$nulls":6},"08:00:00","15 MIN"]
[null,"KELLONAIKA","SUNNUNTAI","MAANANTAI","TIISTAI","KESKIVIIKKO","TORSTAI","PERJANTAI","LAUANTAI"]
[null,{"$f":"Aikataulun_alku","v":"08:00:00"},{"$f":"IFERROR(INDEX(Kurssiluettelo[],MATCH(SUMPRODUCT((Kurssiluettelo[PÄIVÄ]=Lukujärjestys[[#Headers],[SUNNUNTAI]])*(ROUNDDOWN($B4,10)>=ROUNDDOWN(Kurssiluettelo[ALKAMISAIKA],10))*($B4<=Kurssiluettelo[PÄÄTTYMISAIKA]),Kurssiluettelo[YKSILÖLLINEN]),Kurssiluettelo[YKSILÖLLINEN],0),2),0)","v":0},{"$f":"IFERROR(INDEX(Kurssiluettelo[],MATCH(SUMPRODUCT((Kurssiluettelo[PÄIVÄ]=Lukujärjestys[[#Headers],[MAANANTAI]])*(ROUNDDOWN($B4,10)>=ROUNDDOWN(Kurssiluettelo[ALKAMISAIKA],10))*($B4<=Kurssiluettelo[PÄÄTTYMISAIKA]),Kurssiluettelo[YKSILÖLLINEN]),Kurssiluettelo[YKSILÖLLINEN],0),2),0)","v":0},{"$f":"IFERROR(INDEX(Kurssiluettelo[],MATCH(SUMPRODUCT((Kurssiluettelo[PÄIVÄ]=Lukujärjestys[[#Headers],[TIISTAI]])*(ROUNDDOWN($B4,10)>=ROUNDDOWN(Kurssiluettelo[ALKAMISAIKA],10))*($B4<=Kurssiluettelo[PÄÄTTYMISAIKA]),Kurssiluettelo[YKSILÖLLINEN]),Kurssiluettelo[YKSILÖLLINEN],0),2),0)","v":0},{"$f":"IFERROR(INDEX(Kurssiluettelo[],MATCH(SUMPRODUCT((Kurssiluettelo[PÄIVÄ]=Lukujärjestys[[#Headers],[KESKIVIIKKO]])*(ROUNDDOWN($B4,10)>=ROUNDDOWN(Kurssiluettelo[ALKAMISAIKA],10))*($B4<=Kurssiluettelo[PÄÄTTYMISAIKA]),Kurssiluettelo[YKSILÖLLINEN]),Kurssiluettelo[YKSILÖLLINEN],0),2),0)","v":0},{"$f":"IFERROR(INDEX(Kurssiluettelo[],MATCH(SUMPRODUCT((Kurssiluettelo[PÄIVÄ]=Lukujärjestys[[#Headers],[TORSTAI]])*(ROUNDDOWN($B4,10)>=ROUNDDOWN(Kurssiluettelo[ALKAMISAIKA],10))*($B4<=Kurssiluettelo[PÄÄTTYMISAIKA]),Kurssiluettelo[YKSILÖLLINEN]),Kurssiluettelo[YKSILÖLLINEN],0),2),0)","v":0},{"$f":"IFERROR(INDEX(Kurssiluettelo[],MATCH(SUMPRODUCT((Kurssiluettelo[PÄIVÄ]=Lukujärjestys[[#Headers],[PERJANTAI]])*(ROUNDDOWN($B4,10)>=ROUNDDOWN(Kurssiluettelo[ALKAMISAIKA],10))*($B4<=Kurssiluettelo[PÄÄTTYMISAIKA]),Kurssiluettelo[YKSILÖLLINEN]),Kurssiluettelo[YKSILÖLLINEN],0),2),0)","v":0},{"$f":"IFERROR(INDEX(Kurssiluettelo[],MATCH(SUMPRODUCT((Kurssiluettelo[PÄIVÄ]=Lukujärjestys[[#Headers],[LAUANTAI]])*(ROUNDDOWN($B4,10)>=ROUNDDOWN(Kurssiluettelo[ALKAMISAIKA],10))*($B4<=Kurssiluettelo[PÄÄTTYMISAIKA]),Kurssiluettelo[YKSILÖLLINEN]),Kurssiluettelo[YKSILÖLLINEN],0),2),0)","v":0}]
[null,{"$f":"B4+Lisäys","v":"08:15:00"},{"$f":"IFERROR(INDEX(Kurssiluettelo[],MATCH(SUMPRODUCT((Kurssiluettelo[PÄIVÄ]=Lukujärjestys[[#Headers],[SUNNUNTAI]])*(ROUNDDOWN($B5,10)>=ROUNDDOWN(Kurssiluettelo[ALKAMISAIKA],10))*($B5<=Kurssiluettelo[PÄÄTTYMISAIKA]),Kurssiluettelo[YKSILÖLLINEN]),Kurssiluettelo[YKSILÖLLINEN],0),2),0)","v":0},{"$f":"IFERROR(INDEX(Kurssiluettelo[],MATCH(SUMPRODUCT((Kurssiluettelo[PÄIVÄ]=Lukujärjestys[[#Headers],[MAANANTAI]])*(ROUNDDOWN($B5,10)>=ROUNDDOWN(Kurssiluettelo[ALKAMISAIKA],10))*($B5<=Kurssiluettelo[PÄÄTTYMISAIKA]),Kurssiluettelo[YKSILÖLLINEN]),Kurssiluettelo[YKSILÖLLINEN],0),2),0)","v":"MTH-113"},{"$f":"IFERROR(INDEX(Kurssiluettelo[],MATCH(SUMPRODUCT((Kurssiluettelo[PÄIVÄ]=Lukujärjestys[[#Headers],[TIISTAI]])*(ROUNDDOWN($B5,10)>=ROUNDDOWN(Kurssiluettelo[ALKAMISAIKA],10))*($B5<=Kurssiluettelo[PÄÄTTYMISAIKA]),Kurssiluettelo[YKSILÖLLINEN]),Kurssiluettelo[YKSILÖLLINEN],0),2),0)","v":0},{"$f":"IFERROR(INDEX(Kurssiluettelo[],MATCH(SUMPRODUCT((Kurssiluettelo[PÄIVÄ]=Lukujärjestys[[#Headers],[KESKIVIIKKO]])*(ROUNDDOWN($B5,10)>=ROUNDDOWN(Kurssiluettelo[ALKAMISAIKA],10))*($B5<=Kurssiluettelo[PÄÄTTYMISAIKA]),Kurssiluettelo[YKSILÖLLINEN]),Kurssiluettelo[YKSILÖLLINEN],0),2),0)","v":"MTH-113"},{"$f":"IFERROR(INDEX(Kurssiluettelo[],MATCH(SUMPRODUCT((Kurssiluettelo[PÄIVÄ]=Lukujärjestys[[#Headers],[TORSTAI]])*(ROUNDDOWN($B5,10)>=ROUNDDOWN(Kurssiluettelo[ALKAMISAIKA],10))*($B5<=Kurssiluettelo[PÄÄTTYMISAIKA]),Kurssiluettelo[YKSILÖLLINEN]),Kurssiluettelo[YKSILÖLLINEN],0),2),0)","v":0},{"$f":"IFERROR(INDEX(Kurssiluettelo[],MATCH(SUMPRODUCT((Kurssiluettelo[PÄIVÄ]=Lukujärjestys[[#Headers],[PERJANTAI]])*(ROUNDDOWN($B5,10)>=ROUNDDOWN(Kurssiluettelo[ALKAMISAIKA],10))*($B5<=Kurssiluettelo[PÄÄTTYMISAIKA]),Kurssiluettelo[YKSILÖLLINEN]),Kurssiluettelo[YKSILÖLLINEN],0),2),0)","v":"MTH-113"},{"$f":"IFERROR(INDEX(Kurssiluettelo[],MATCH(SUMPRODUCT((Kurssiluettelo[PÄIVÄ]=Lukujärjestys[[#Headers],[LAUANTAI]])*(ROUNDDOWN($B5,10)>=ROUNDDOWN(Kurssiluettelo[ALKAMISAIKA],10))*($B5<=Kurssiluettelo[PÄÄTTYMISAIKA]),Kurssiluettelo[YKSILÖLLINEN]),Kurssiluettelo[YKSILÖLLINEN],0),2),0)","v":0}]
[null,"08:30:00",{"$f":"IFERROR(INDEX(Kurssiluettelo[],MATCH(SUMPRODUCT((Kurssiluettelo[PÄIVÄ]=Lukujärjestys[[#Headers],[SUNNUNTAI]])*(ROUNDDOWN($B6,10)>=ROUNDDOWN(Kurssiluettelo[ALKAMISAIKA],10))*($B6<=Kurssiluettelo[PÄÄTTYMISAIKA]),Kurssiluettelo[YKSILÖLLINEN]),Kurssiluettelo[YKSILÖLLINEN],0),2),0)","v":0},{"$f":"IFERROR(INDEX(Kurssiluettelo[],MATCH(SUMPRODUCT((Kurssiluettelo[PÄIVÄ]=Lukujärjestys[[#Headers],[MAANANTAI]])*(ROUNDDOWN($B6,10)>=ROUNDDOWN(Kurssiluettelo[ALKAMISAIKA],10))*($B6<=Kurssiluettelo[PÄÄTTYMISAIKA]),Kurssiluettelo[YKSILÖLLINEN]),Kurssiluettelo[YKSILÖLLINEN],0),2),0)","v":"MTH-113"},{"$f":"IFERROR(INDEX(Kurssiluettelo[],MATCH(SUMPRODUCT((Kurssiluettelo[PÄIVÄ]=Lukujärjestys[[#Headers],[TIISTAI]])*(ROUNDDOWN($B6,10)>=ROUNDDOWN(Kurssiluettelo[ALKAMISAIKA],10))*($B6<=Kurssiluettelo[PÄÄTTYMISAIKA]),Kurssiluettelo[YKSILÖLLINEN]),Kurssiluettelo[YKSILÖLLINEN],0),2),0)","v":0},{"$f":"IFERROR(INDEX(Kurssiluettelo[],MATCH(SUMPRODUCT((Kurssiluettelo[PÄIVÄ]=Lukujärjestys[[#Headers],[KESKIVIIKKO]])*(ROUNDDOWN($B6,10)>=ROUNDDOWN(Kurssiluettelo[ALKAMISAIKA],10))*($B6<=Kurssiluettelo[PÄÄTTYMISAIKA]),Kurssiluettelo[YKSILÖLLINEN]),Kurssiluettelo[YKSILÖLLINEN],0),2),0)","v":"MTH-113"},{"$f":"IFERROR(INDEX(Kurssiluettelo[],MATCH(SUMPRODUCT((Kurssiluettelo[PÄIVÄ]=Lukujärjestys[[#Headers],[TORSTAI]])*(ROUNDDOWN($B6,10)>=ROUNDDOWN(Kurssiluettelo[ALKAMISAIKA],10))*($B6<=Kurssiluettelo[PÄÄTTYMISAIKA]),Kurssiluettelo[YKSILÖLLINEN]),Kurssiluettelo[YKSILÖLLINEN],0),2),0)","v":0},{"$f":"IFERROR(INDEX(Kurssiluettelo[],MATCH(SUMPRODUCT((Kurssiluettelo[PÄIVÄ]=Lukujärjestys[[#Headers],[PERJANTAI]])*(ROUNDDOWN($B6,10)>=ROUNDDOWN(Kurssiluettelo[ALKAMISAIKA],10))*($B6<=Kurssiluettelo[PÄÄTTYMISAIKA]),Kurssiluettelo[YKSILÖLLINEN]),Kurssiluettelo[YKSILÖLLINEN],0),2),0)","v":"MTH-113"},{"$f":"IFERROR(INDEX(Kurssiluettelo[],MATCH(SUMPRODUCT((Kurssiluettelo[PÄIVÄ]=Lukujärjestys[[#Headers],[LAUANTAI]])*(ROUNDDOWN($B6,10)>=ROUNDDOWN(Kurssiluettelo[ALKAMISAIKA],10))*($B6<=Kurssiluettelo[PÄÄTTYMISAIKA]),Kurssiluettelo[YKSILÖLLINEN]),Kurssiluettelo[YKSILÖLLINEN],0),2),0)","v":0}]
[null,"08:45:00",{"$f":"IFERROR(INDEX(Kurssiluettelo[],MATCH(SUMPRODUCT((Kurssiluettelo[PÄIVÄ]=Lukujärjestys[[#Headers],[SUNNUNTAI]])*(ROUNDDOWN($B7,10)>=ROUNDDOWN(Kurssiluettelo[ALKAMISAIKA],10))*($B7<=Kurssiluettelo[PÄÄTTYMISAIKA]),Kurssiluettelo[YKSILÖLLINEN]),Kurssiluettelo[YKSILÖLLINEN],0),2),0)","v":0},{"$f":"IFERROR(INDEX(Kurssiluettelo[],MATCH(SUMPRODUCT((Kurssiluettelo[PÄIVÄ]=Lukujärjestys[[#Headers],[MAANANTAI]])*(ROUNDDOWN($B7,10)>=ROUNDDOWN(Kurssiluettelo[ALKAMISAIKA],10))*($B7<=Kurssiluettelo[PÄÄTTYMISAIKA]),Kurssiluettelo[YKSILÖLLINEN]),Kurssiluettelo[YKSILÖLLINEN],0),2),0)","v":"MTH-113"},{"$f":"IFERROR(INDEX(Kurssiluettelo[],MATCH(SUMPRODUCT((Kurssiluettelo[PÄIVÄ]=Lukujärjestys[[#Headers],[TIISTAI]])*(ROUNDDOWN($B7,10)>=ROUNDDOWN(Kurssiluettelo[ALKAMISAIKA],10))*($B7<=Kurssiluettelo[PÄÄTTYMISAIKA]),Kurssiluettelo[YKSILÖLLINEN]),Kurssiluettelo[YKSILÖLLINEN],0),2),0)","v":0},{"$f":"IFERROR(INDEX(Kurssiluettelo[],MATCH(SUMPRODUCT((Kurssiluettelo[PÄIVÄ]=Lukujärjestys[[#Headers],[KESKIVIIKKO]])*(ROUNDDOWN($B7,10)>=ROUNDDOWN(Kurssiluettelo[ALKAMISAIKA],10))*($B7<=Kurssiluettelo[PÄÄTTYMISAIKA]),Kurssiluettelo[YKSILÖLLINEN]),Kurssiluettelo[YKSILÖLLINEN],0),2),0)","v":"MTH-113"},{"$f":"IFERROR(INDEX(Kurssiluettelo[],MATCH(SUMPRODUCT((Kurssiluettelo[PÄIVÄ]=Lukujärjestys[[#Headers],[TORSTAI]])*(ROUNDDOWN($B7,10)>=ROUNDDOWN(Kurssiluettelo[ALKAMISAIKA],10))*($B7<=Kurssiluettelo[PÄÄTTYMISAIKA]),Kurssiluettelo[YKSILÖLLINEN]),Kurssiluettelo[YKSILÖLLINEN],0),2),0)","v":0},{"$f":"IFERROR(INDEX(Kurssiluettelo[],MATCH(SUMPRODUCT((Kurssiluettelo[PÄIVÄ]=Lukujärjestys[[#Headers],[PERJANTAI]])*(ROUNDDOWN($B7,10)>=ROUNDDOWN(Kurssiluettelo[ALKAMISAIKA],10))*($B7<=Kurssiluettelo[PÄÄTTYMISAIKA]),Kurssiluettelo[YKSILÖLLINEN]),Kurssiluettelo[YKSILÖLLINEN],0),2),0)","v":"MTH-113"},{"$f":"IFERROR(INDEX(Kurssiluettelo[],MATCH(SUMPRODUCT((Kurssiluettelo[PÄIVÄ]=Lukujärjestys[[#Headers],[LAUANTAI]])*(ROUNDDOWN($B7,10)>=ROUNDDOWN(Kurssiluettelo[ALKAMISAIKA],10))*($B7<=Kurssiluettelo[PÄÄTTYMISAIKA]),Kurssiluettelo[YKSILÖLLINEN]),Kurssiluettelo[YKSILÖLLINEN],0),2),0)","v":0}]
[null,"09:00:00",{"$f":"IFERROR(INDEX(Kurssiluettelo[],MATCH(SUMPRODUCT((Kurssiluettelo[PÄIVÄ]=Lukujärjestys[[#Headers],[SUNNUNTAI]])*(ROUNDDOWN($B8,10)>=ROUNDDOWN(Kurssiluettelo[ALKAMISAIKA],10))*($B8<=Kurssiluettelo[PÄÄTTYMISAIKA]),Kurssiluettelo[YKSILÖLLINEN]),Kurssiluettelo[YKSILÖLLINEN],0),2),0)","v":0},{"$f":"IFERROR(INDEX(Kurssiluettelo[],MATCH(SUMPRODUCT((Kurssiluettelo[PÄIVÄ]=Lukujärjestys[[#Headers],[MAANANTAI]])*(ROUNDDOWN($B8,10)>=ROUNDDOWN(Kurssiluettelo[ALKAMISAIKA],10))*($B8<=Kurssiluettelo[PÄÄTTYMISAIKA]),Kurssiluettelo[YKSILÖLLINEN]),Kurssiluettelo[YKSILÖLLINEN],0),2),0)","v":"MTH-113"},{"$f":"IFERROR(INDEX(Kurssiluettelo[],MATCH(SUMPRODUCT((Kurssiluettelo[PÄIVÄ]=Lukujärjestys[[#Headers],[TIISTAI]])*(ROUNDDOWN($B8,10)>=ROUNDDOWN(Kurssiluettelo[ALKAMISAIKA],10))*($B8<=Kurssiluettelo[PÄÄTTYMISAIKA]),Kurssiluettelo[YKSILÖLLINEN]),Kurssiluettelo[YKSILÖLLINEN],0),2),0)","v":0},{"$f":"IFERROR(INDEX(Kurssiluettelo[],MATCH(SUMPRODUCT((Kurssiluettelo[PÄIVÄ]=Lukujärjestys[[#Headers],[KESKIVIIKKO]])*(ROUNDDOWN($B8,10)>=ROUNDDOWN(Kurssiluettelo[ALKAMISAIKA],10))*($B8<=Kurssiluettelo[PÄÄTTYMISAIKA]),Kurssiluettelo[YKSILÖLLINEN]),Kurssiluettelo[YKSILÖLLINEN],0),2),0)","v":"MTH-113"},{"$f":"IFERROR(INDEX(Kurssiluettelo[],MATCH(SUMPRODUCT((Kurssiluettelo[PÄIVÄ]=Lukujärjestys[[#Headers],[TORSTAI]])*(ROUNDDOWN($B8,10)>=ROUNDDOWN(Kurssiluettelo[ALKAMISAIKA],10))*($B8<=Kurssiluettelo[PÄÄTTYMISAIKA]),Kurssiluettelo[YKSILÖLLINEN]),Kurssiluettelo[YKSILÖLLINEN],0),2),0)","v":0},{"$f":"IFERROR(INDEX(Kurssiluettelo[],MATCH(SUMPRODUCT((Kurssiluettelo[PÄIVÄ]=Lukujärjestys[[#Headers],[PERJANTAI]])*(ROUNDDOWN($B8,10)>=ROUNDDOWN(Kurssiluettelo[ALKAMISAIKA],10))*($B8<=Kurssiluettelo[PÄÄTTYMISAIKA]),Kurssiluettelo[YKSILÖLLINEN]),Kurssiluettelo[YKSILÖLLINEN],0),2),0)","v":"MTH-113"},{"$f":"IFERROR(INDEX(Kurssiluettelo[],MATCH(SUMPRODUCT((Kurssiluettelo[PÄIVÄ]=Lukujärjestys[[#Headers],[LAUANTAI]])*(ROUNDDOWN($B8,10)>=ROUNDDOWN(Kurssiluettelo[ALKAMISAIKA],10))*($B8<=Kurssiluettelo[PÄÄTTYMISAIKA]),Kurssiluettelo[YKSILÖLLINEN]),Kurssiluettelo[YKSILÖLLINEN],0),2),0)","v":0}]
[null,"09:15:00",{"$f":"IFERROR(INDEX(Kurssiluettelo[],MATCH(SUMPRODUCT((Kurssiluettelo[PÄIVÄ]=Lukujärjestys[[#Headers],[SUNNUNTAI]])*(ROUNDDOWN($B9,10)>=ROUNDDOWN(Kurssiluettelo[ALKAMISAIKA],10))*($B9<=Kurssiluettelo[PÄÄTTYMISAIKA]),Kurssiluettelo[YKSILÖLLINEN]),Kurssiluettelo[YKSILÖLLINEN],0),2),0)","v":0},{"$f":"IFERROR(INDEX(Kurssiluettelo[],MATCH(SUMPRODUCT((Kurssiluettelo[PÄIVÄ]=Lukujärjestys[[#Headers],[MAANANTAI]])*(ROUNDDOWN($B9,10)>=ROUNDDOWN(Kurssiluettelo[ALKAMISAIKA],10))*($B9<=Kurssiluettelo[PÄÄTTYMISAIKA]),Kurssiluettelo[YKSILÖLLINEN]),Kurssiluettelo[YKSILÖLLINEN],0),2),0)","v":"MTH-113"},{"$f":"IFERROR(INDEX(Kurssiluettelo[],MATCH(SUMPRODUCT((Kurssiluettelo[PÄIVÄ]=Lukujärjestys[[#Headers],[TIISTAI]])*(ROUNDDOWN($B9,10)>=ROUNDDOWN(Kurssiluettelo[ALKAMISAIKA],10))*($B9<=Kurssiluettelo[PÄÄTTYMISAIKA]),Kurssiluettelo[YKSILÖLLINEN]),Kurssiluettelo[YKSILÖLLINEN],0),2),0)","v":0},{"$f":"IFERROR(INDEX(Kurssiluettelo[],MATCH(SUMPRODUCT((Kurssiluettelo[PÄIVÄ]=Lukujärjestys[[#Headers],[KESKIVIIKKO]])*(ROUNDDOWN($B9,10)>=ROUNDDOWN(Kurssiluettelo[ALKAMISAIKA],10))*($B9<=Kurssiluettelo[PÄÄTTYMISAIKA]),Kurssiluettelo[YKSILÖLLINEN]),Kurssiluettelo[YKSILÖLLINEN],0),2),0)","v":"MTH-113"},{"$f":"IFERROR(INDEX(Kurssiluettelo[],MATCH(SUMPRODUCT((Kurssiluettelo[PÄIVÄ]=Lukujärjestys[[#Headers],[TORSTAI]])*(ROUNDDOWN($B9,10)>=ROUNDDOWN(Kurssiluettelo[ALKAMISAIKA],10))*($B9<=Kurssiluettelo[PÄÄTTYMISAIKA]),Kurssiluettelo[YKSILÖLLINEN]),Kurssiluettelo[YKSILÖLLINEN],0),2),0)","v":0},{"$f":"IFERROR(INDEX(Kurssiluettelo[],MATCH(SUMPRODUCT((Kurssiluettelo[PÄIVÄ]=Lukujärjestys[[#Headers],[PERJANTAI]])*(ROUNDDOWN($B9,10)>=ROUNDDOWN(Kurssiluettelo[ALKAMISAIKA],10))*($B9<=Kurssiluettelo[PÄÄTTYMISAIKA]),Kurssiluettelo[YKSILÖLLINEN]),Kurssiluettelo[YKSILÖLLINEN],0),2),0)","v":"MTH-113"},{"$f":"IFERROR(INDEX(Kurssiluettelo[],MATCH(SUMPRODUCT((Kurssiluettelo[PÄIVÄ]=Lukujärjestys[[#Headers],[LAUANTAI]])*(ROUNDDOWN($B9,10)>=ROUNDDOWN(Kurssiluettelo[ALKAMISAIKA],10))*($B9<=Kurssiluettelo[PÄÄTTYMISAIKA]),Kurssiluettelo[YKSILÖLLINEN]),Kurssiluettelo[YKSILÖLLINEN],0),2),0)","v":0}]
[null,"09:30:00",{"$f":"IFERROR(INDEX(Kurssiluettelo[],MATCH(SUMPRODUCT((Kurssiluettelo[PÄIVÄ]=Lukujärjestys[[#Headers],[SUNNUNTAI]])*(ROUNDDOWN($B10,10)>=ROUNDDOWN(Kurssiluettelo[ALKAMISAIKA],10))*($B10<=Kurssiluettelo[PÄÄTTYMISAIKA]),Kurssiluettelo[YKSILÖLLINEN]),Kurssiluettelo[YKSILÖLLINEN],0),2),0)","v":0},{"$f":"IFERROR(INDEX(Kurssiluettelo[],MATCH(SUMPRODUCT((Kurssiluettelo[PÄIVÄ]=Lukujärjestys[[#Headers],[MAANANTAI]])*(ROUNDDOWN($B10,10)>=ROUNDDOWN(Kurssiluettelo[ALKAMISAIKA],10))*($B10<=Kurssiluettelo[PÄÄTTYMISAIKA]),Kurssiluettelo[YKSILÖLLINEN]),Kurssiluettelo[YKSILÖLLINEN],0),2),0)","v":0},{"$f":"IFERROR(INDEX(Kurssiluettelo[],MATCH(SUMPRODUCT((Kurssiluettelo[PÄIVÄ]=Lukujärjestys[[#Headers],[TIISTAI]])*(ROUNDDOWN($B10,10)>=ROUNDDOWN(Kurssiluettelo[ALKAMISAIKA],10))*($B10<=Kurssiluettelo[PÄÄTTYMISAIKA]),Kurssiluettelo[YKSILÖLLINEN]),Kurssiluettelo[YKSILÖLLINEN],0),2),0)","v":0},{"$f":"IFERROR(INDEX(Kurssiluettelo[],MATCH(SUMPRODUCT((Kurssiluettelo[PÄIVÄ]=Lukujärjestys[[#Headers],[KESKIVIIKKO]])*(ROUNDDOWN($B10,10)>=ROUNDDOWN(Kurssiluettelo[ALKAMISAIKA],10))*($B10<=Kurssiluettelo[PÄÄTTYMISAIKA]),Kurssiluettelo[YKSILÖLLINEN]),Kurssiluettelo[YKSILÖLLINEN],0),2),0)","v":0},{"$f":"IFERROR(INDEX(Kurssiluettelo[],MATCH(SUMPRODUCT((Kurssiluettelo[PÄIVÄ]=Lukujärjestys[[#Headers],[TORSTAI]])*(ROUNDDOWN($B10,10)>=ROUNDDOWN(Kurssiluettelo[ALKAMISAIKA],10))*($B10<=Kurssiluettelo[PÄÄTTYMISAIKA]),Kurssiluettelo[YKSILÖLLINEN]),Kurssiluettelo[YKSILÖLLINEN],0),2),0)","v":0},{"$f":"IFERROR(INDEX(Kurssiluettelo[],MATCH(SUMPRODUCT((Kurssiluettelo[PÄIVÄ]=Lukujärjestys[[#Headers],[PERJANTAI]])*(ROUNDDOWN($B10,10)>=ROUNDDOWN(Kurssiluettelo[ALKAMISAIKA],10))*($B10<=Kurssiluettelo[PÄÄTTYMISAIKA]),Kurssiluettelo[YKSILÖLLINEN]),Kurssiluettelo[YKSILÖLLINEN],0),2),0)","v":0},{"$f":"IFERROR(INDEX(Kurssiluettelo[],MATCH(SUMPRODUCT((Kurssiluettelo[PÄIVÄ]=Lukujärjestys[[#Headers],[LAUANTAI]])*(ROUNDDOWN($B10,10)>=ROUNDDOWN(Kurssiluettelo[ALKAMISAIKA],10))*($B10<=Kurssiluettelo[PÄÄTTYMISAIKA]),Kurssiluettelo[YKSILÖLLINEN]),Kurssiluettelo[YKSILÖLLINEN],0),2),0)","v":0}]
[null,"09:45:00",{"$f":"IFERROR(INDEX(Kurssiluettelo[],MATCH(SUMPRODUCT((Kurssiluettelo[PÄIVÄ]=Lukujärjestys[[#Headers],[SUNNUNTAI]])*(ROUNDDOWN($B11,10)>=ROUNDDOWN(Kurssiluettelo[ALKAMISAIKA],10))*($B11<=Kurssiluettelo[PÄÄTTYMISAIKA]),Kurssiluettelo[YKSILÖLLINEN]),Kurssiluettelo[YKSILÖLLINEN],0),2),0)","v":0},{"$f":"IFERROR(INDEX(Kurssiluettelo[],MATCH(SUMPRODUCT((Kurssiluettelo[PÄIVÄ]=Lukujärjestys[[#Headers],[MAANANTAI]])*(ROUNDDOWN($B11,10)>=ROUNDDOWN(Kurssiluettelo[ALKAMISAIKA],10))*($B11<=Kurssiluettelo[PÄÄTTYMISAIKA]),Kurssiluettelo[YKSILÖLLINEN]),Kurssiluettelo[YKSILÖLLINEN],0),2),0)","v":0},{"$f":"IFERROR(INDEX(Kurssiluettelo[],MATCH(SUMPRODUCT((Kurssiluettelo[PÄIVÄ]=Lukujärjestys[[#Headers],[TIISTAI]])*(ROUNDDOWN($B11,10)>=ROUNDDOWN(Kurssiluettelo[ALKAMISAIKA],10))*($B11<=Kurssiluettelo[PÄÄTTYMISAIKA]),Kurssiluettelo[YKSILÖLLINEN]),Kurssiluettelo[YKSILÖLLINEN],0),2),0)","v":0},{"$f":"IFERROR(INDEX(Kurssiluettelo[],MATCH(SUMPRODUCT((Kurssiluettelo[PÄIVÄ]=Lukujärjestys[[#Headers],[KESKIVIIKKO]])*(ROUNDDOWN($B11,10)>=ROUNDDOWN(Kurssiluettelo[ALKAMISAIKA],10))*($B11<=Kurssiluettelo[PÄÄTTYMISAIKA]),Kurssiluettelo[YKSILÖLLINEN]),Kurssiluettelo[YKSILÖLLINEN],0),2),0)","v":0},{"$f":"IFERROR(INDEX(Kurssiluettelo[],MATCH(SUMPRODUCT((Kurssiluettelo[PÄIVÄ]=Lukujärjestys[[#Headers],[TORSTAI]])*(ROUNDDOWN($B11,10)>=ROUNDDOWN(Kurssiluettelo[ALKAMISAIKA],10))*($B11<=Kurssiluettelo[PÄÄTTYMISAIKA]),Kurssiluettelo[YKSILÖLLINEN]),Kurssiluettelo[YKSILÖLLINEN],0),2),0)","v":0},{"$f":"IFERROR(INDEX(Kurssiluettelo[],MATCH(SUMPRODUCT((Kurssiluettelo[PÄIVÄ]=Lukujärjestys[[#Headers],[PERJANTAI]])*(ROUNDDOWN($B11,10)>=ROUNDDOWN(Kurssiluettelo[ALKAMISAIKA],10))*($B11<=Kurssiluettelo[PÄÄTTYMISAIKA]),Kurssiluettelo[YKSILÖLLINEN]),Kurssiluettelo[YKSILÖLLINEN],0),2),0)","v":0},{"$f":"IFERROR(INDEX(Kurssiluettelo[],MATCH(SUMPRODUCT((Kurssiluettelo[PÄIVÄ]=Lukujärjestys[[#Headers],[LAUANTAI]])*(ROUNDDOWN($B11,10)>=ROUNDDOWN(Kurssiluettelo[ALKAMISAIKA],10))*($B11<=Kurssiluettelo[PÄÄTTYMISAIKA]),Kurssiluettelo[YKSILÖLLINEN]),Kurssiluettelo[YKSILÖLLINEN],0),2),0)","v":0}]
[null,"10:00:00",{"$f":"IFERROR(INDEX(Kurssiluettelo[],MATCH(SUMPRODUCT((Kurssiluettelo[PÄIVÄ]=Lukujärjestys[[#Headers],[SUNNUNTAI]])*(ROUNDDOWN($B12,10)>=ROUNDDOWN(Kurssiluettelo[ALKAMISAIKA],10))*($B12<=Kurssiluettelo[PÄÄTTYMISAIKA]),Kurssiluettelo[YKSILÖLLINEN]),Kurssiluettelo[YKSILÖLLINEN],0),2),0)","v":0},{"$f":"IFERROR(INDEX(Kurssiluettelo[],MATCH(SUMPRODUCT((Kurssiluettelo[PÄIVÄ]=Lukujärjestys[[#Headers],[MAANANTAI]])*(ROUNDDOWN($B12,10)>=ROUNDDOWN(Kurssiluettelo[ALKAMISAIKA],10))*($B12<=Kurssiluettelo[PÄÄTTYMISAIKA]),Kurssiluettelo[YKSILÖLLINEN]),Kurssiluettelo[YKSILÖLLINEN],0),2),0)","v":0},{"$f":"IFERROR(INDEX(Kurssiluettelo[],MATCH(SUMPRODUCT((Kurssiluettelo[PÄIVÄ]=Lukujärjestys[[#Headers],[TIISTAI]])*(ROUNDDOWN($B12,10)>=ROUNDDOWN(Kurssiluettelo[ALKAMISAIKA],10))*($B12<=Kurssiluettelo[PÄÄTTYMISAIKA]),Kurssiluettelo[YKSILÖLLINEN]),Kurssiluettelo[YKSILÖLLINEN],0),2),0)","v":0},{"$f":"IFERROR(INDEX(Kurssiluettelo[],MATCH(SUMPRODUCT((Kurssiluettelo[PÄIVÄ]=Lukujärjestys[[#Headers],[KESKIVIIKKO]])*(ROUNDDOWN($B12,10)>=ROUNDDOWN(Kurssiluettelo[ALKAMISAIKA],10))*($B12<=Kurssiluettelo[PÄÄTTYMISAIKA]),Kurssiluettelo[YKSILÖLLINEN]),Kurssiluettelo[YKSILÖLLINEN],0),2),0)","v":0},{"$f":"IFERROR(INDEX(Kurssiluettelo[],MATCH(SUMPRODUCT((Kurssiluettelo[PÄIVÄ]=Lukujärjestys[[#Headers],[TORSTAI]])*(ROUNDDOWN($B12,10)>=ROUNDDOWN(Kurssiluettelo[ALKAMISAIKA],10))*($B12<=Kurssiluettelo[PÄÄTTYMISAIKA]),Kurssiluettelo[YKSILÖLLINEN]),Kurssiluettelo[YKSILÖLLINEN],0),2),0)","v":0},{"$f":"IFERROR(INDEX(Kurssiluettelo[],MATCH(SUMPRODUCT((Kurssiluettelo[PÄIVÄ]=Lukujärjestys[[#Headers],[PERJANTAI]])*(ROUNDDOWN($B12,10)>=ROUNDDOWN(Kurssiluettelo[ALKAMISAIKA],10))*($B12<=Kurssiluettelo[PÄÄTTYMISAIKA]),Kurssiluettelo[YKSILÖLLINEN]),Kurssiluettelo[YKSILÖLLINEN],0),2),0)","v":0},{"$f":"IFERROR(INDEX(Kurssiluettelo[],MATCH(SUMPRODUCT((Kurssiluettelo[PÄIVÄ]=Lukujärjestys[[#Headers],[LAUANTAI]])*(ROUNDDOWN($B12,10)>=ROUNDDOWN(Kurssiluettelo[ALKAMISAIKA],10))*($B12<=Kurssiluettelo[PÄÄTTYMISAIKA]),Kurssiluettelo[YKSILÖLLINEN]),Kurssiluettelo[YKSILÖLLINEN],0),2),0)","v":0}]
[null,"10:15:00",{"$f":"IFERROR(INDEX(Kurssiluettelo[],MATCH(SUMPRODUCT((Kurssiluettelo[PÄIVÄ]=Lukujärjestys[[#Headers],[SUNNUNTAI]])*(ROUNDDOWN($B13,10)>=ROUNDDOWN(Kurssiluettelo[ALKAMISAIKA],10))*($B13<=Kurssiluettelo[PÄÄTTYMISAIKA]),Kurssiluettelo[YKSILÖLLINEN]),Kurssiluettelo[YKSILÖLLINEN],0),2),0)","v":0},{"$f":"IFERROR(INDEX(Kurssiluettelo[],MATCH(SUMPRODUCT((Kurssiluettelo[PÄIVÄ]=Lukujärjestys[[#Headers],[MAANANTAI]])*(ROUNDDOWN($B13,10)>=ROUNDDOWN(Kurssiluettelo[ALKAMISAIKA],10))*($B13<=Kurssiluettelo[PÄÄTTYMISAIKA]),Kurssiluettelo[YKSILÖLLINEN]),Kurssiluettelo[YKSILÖLLINEN],0),2),0)","v":0},{"$f":"IFERROR(INDEX(Kurssiluettelo[],MATCH(SUMPRODUCT((Kurssiluettelo[PÄIVÄ]=Lukujärjestys[[#Headers],[TIISTAI]])*(ROUNDDOWN($B13,10)>=ROUNDDOWN(Kurssiluettelo[ALKAMISAIKA],10))*($B13<=Kurssiluettelo[PÄÄTTYMISAIKA]),Kurssiluettelo[YKSILÖLLINEN]),Kurssiluettelo[YKSILÖLLINEN],0),2),0)","v":0},{"$f":"IFERROR(INDEX(Kurssiluettelo[],MATCH(SUMPRODUCT((Kurssiluettelo[PÄIVÄ]=Lukujärjestys[[#Headers],[KESKIVIIKKO]])*(ROUNDDOWN($B13,10)>=ROUNDDOWN(Kurssiluettelo[ALKAMISAIKA],10))*($B13<=Kurssiluettelo[PÄÄTTYMISAIKA]),Kurssiluettelo[YKSILÖLLINEN]),Kurssiluettelo[YKSILÖLLINEN],0),2),0)","v":0},{"$f":"IFERROR(INDEX(Kurssiluettelo[],MATCH(SUMPRODUCT((Kurssiluettelo[PÄIVÄ]=Lukujärjestys[[#Headers],[TORSTAI]])*(ROUNDDOWN($B13,10)>=ROUNDDOWN(Kurssiluettelo[ALKAMISAIKA],10))*($B13<=Kurssiluettelo[PÄÄTTYMISAIKA]),Kurssiluettelo[YKSILÖLLINEN]),Kurssiluettelo[YKSILÖLLINEN],0),2),0)","v":0},{"$f":"IFERROR(INDEX(Kurssiluettelo[],MATCH(SUMPRODUCT((Kurssiluettelo[PÄIVÄ]=Lukujärjestys[[#Headers],[PERJANTAI]])*(ROUNDDOWN($B13,10)>=ROUNDDOWN(Kurssiluettelo[ALKAMISAIKA],10))*($B13<=Kurssiluettelo[PÄÄTTYMISAIKA]),Kurssiluettelo[YKSILÖLLINEN]),Kurssiluettelo[YKSILÖLLINEN],0),2),0)","v":0},{"$f":"IFERROR(INDEX(Kurssiluettelo[],MATCH(SUMPRODUCT((Kurssiluettelo[PÄIVÄ]=Lukujärjestys[[#Headers],[LAUANTAI]])*(ROUNDDOWN($B13,10)>=ROUNDDOWN(Kurssiluettelo[ALKAMISAIKA],10))*($B13<=Kurssiluettelo[PÄÄTTYMISAIKA]),Kurssiluettelo[YKSILÖLLINEN]),Kurssiluettelo[YKSILÖLLINEN],0),2),0)","v":0}]
[null,"10:30:00",{"$f":"IFERROR(INDEX(Kurssiluettelo[],MATCH(SUMPRODUCT((Kurssiluettelo[PÄIVÄ]=Lukujärjestys[[#Headers],[SUNNUNTAI]])*(ROUNDDOWN($B14,10)>=ROUNDDOWN(Kurssiluettelo[ALKAMISAIKA],10))*($B14<=Kurssiluettelo[PÄÄTTYMISAIKA]),Kurssiluettelo[YKSILÖLLINEN]),Kurssiluettelo[YKSILÖLLINEN],0),2),0)","v":0},{"$f":"IFERROR(INDEX(Kurssiluettelo[],MATCH(SUMPRODUCT((Kurssiluettelo[PÄIVÄ]=Lukujärjestys[[#Headers],[MAANANTAI]])*(ROUNDDOWN($B14,10)>=ROUNDDOWN(Kurssiluettelo[ALKAMISAIKA],10))*($B14<=Kurssiluettelo[PÄÄTTYMISAIKA]),Kurssiluettelo[YKSILÖLLINEN]),Kurssiluettelo[YKSILÖLLINEN],0),2),0)","v":0},{"$f":"IFERROR(INDEX(Kurssiluettelo[],MATCH(SUMPRODUCT((Kurssiluettelo[PÄIVÄ]=Lukujärjestys[[#Headers],[TIISTAI]])*(ROUNDDOWN($B14,10)>=ROUNDDOWN(Kurssiluettelo[ALKAMISAIKA],10))*($B14<=Kurssiluettelo[PÄÄTTYMISAIKA]),Kurssiluettelo[YKSILÖLLINEN]),Kurssiluettelo[YKSILÖLLINEN],0),2),0)","v":0},{"$f":"IFERROR(INDEX(Kurssiluettelo[],MATCH(SUMPRODUCT((Kurssiluettelo[PÄIVÄ]=Lukujärjestys[[#Headers],[KESKIVIIKKO]])*(ROUNDDOWN($B14,10)>=ROUNDDOWN(Kurssiluettelo[ALKAMISAIKA],10))*($B14<=Kurssiluettelo[PÄÄTTYMISAIKA]),Kurssiluettelo[YKSILÖLLINEN]),Kurssiluettelo[YKSILÖLLINEN],0),2),0)","v":0},{"$f":"IFERROR(INDEX(Kurssiluettelo[],MATCH(SUMPRODUCT((Kurssiluettelo[PÄIVÄ]=Lukujärjestys[[#Headers],[TORSTAI]])*(ROUNDDOWN($B14,10)>=ROUNDDOWN(Kurssiluettelo[ALKAMISAIKA],10))*($B14<=Kurssiluettelo[PÄÄTTYMISAIKA]),Kurssiluettelo[YKSILÖLLINEN]),Kurssiluettelo[YKSILÖLLINEN],0),2),0)","v":0},{"$f":"IFERROR(INDEX(Kurssiluettelo[],MATCH(SUMPRODUCT((Kurssiluettelo[PÄIVÄ]=Lukujärjestys[[#Headers],[PERJANTAI]])*(ROUNDDOWN($B14,10)>=ROUNDDOWN(Kurssiluettelo[ALKAMISAIKA],10))*($B14<=Kurssiluettelo[PÄÄTTYMISAIKA]),Kurssiluettelo[YKSILÖLLINEN]),Kurssiluettelo[YKSILÖLLINEN],0),2),0)","v":0},{"$f":"IFERROR(INDEX(Kurssiluettelo[],MATCH(SUMPRODUCT((Kurssiluettelo[PÄIVÄ]=Lukujärjestys[[#Headers],[LAUANTAI]])*(ROUNDDOWN($B14,10)>=ROUNDDOWN(Kurssiluettelo[ALKAMISAIKA],10))*($B14<=Kurssiluettelo[PÄÄTTYMISAIKA]),Kurssiluettelo[YKSILÖLLINEN]),Kurssiluettelo[YKSILÖLLINEN],0),2),0)","v":0}]
[null,"10:45:00",{"$f":"IFERROR(INDEX(Kurssiluettelo[],MATCH(SUMPRODUCT((Kurssiluettelo[PÄIVÄ]=Lukujärjestys[[#Headers],[SUNNUNTAI]])*(ROUNDDOWN($B15,10)>=ROUNDDOWN(Kurssiluettelo[ALKAMISAIKA],10))*($B15<=Kurssiluettelo[PÄÄTTYMISAIKA]),Kurssiluettelo[YKSILÖLLINEN]),Kurssiluettelo[YKSILÖLLINEN],0),2),0)","v":0},{"$f":"IFERROR(INDEX(Kurssiluettelo[],MATCH(SUMPRODUCT((Kurssiluettelo[PÄIVÄ]=Lukujärjestys[[#Headers],[MAANANTAI]])*(ROUNDDOWN($B15,10)>=ROUNDDOWN(Kurssiluettelo[ALKAMISAIKA],10))*($B15<=Kurssiluettelo[PÄÄTTYMISAIKA]),Kurssiluettelo[YKSILÖLLINEN]),Kurssiluettelo[YKSILÖLLINEN],0),2),0)","v":0},{"$f":"IFERROR(INDEX(Kurssiluettelo[],MATCH(SUMPRODUCT((Kurssiluettelo[PÄIVÄ]=Lukujärjestys[[#Headers],[TIISTAI]])*(ROUNDDOWN($B15,10)>=ROUNDDOWN(Kurssiluettelo[ALKAMISAIKA],10))*($B15<=Kurssiluettelo[PÄÄTTYMISAIKA]),Kurssiluettelo[YKSILÖLLINEN]),Kurssiluettelo[YKSILÖLLINEN],0),2),0)","v":0},{"$f":"IFERROR(INDEX(Kurssiluettelo[],MATCH(SUMPRODUCT((Kurssiluettelo[PÄIVÄ]=Lukujärjestys[[#Headers],[KESKIVIIKKO]])*(ROUNDDOWN($B15,10)>=ROUNDDOWN(Kurssiluettelo[ALKAMISAIKA],10))*($B15<=Kurssiluettelo[PÄÄTTYMISAIKA]),Kurssiluettelo[YKSILÖLLINEN]),Kurssiluettelo[YKSILÖLLINEN],0),2),0)","v":0},{"$f":"IFERROR(INDEX(Kurssiluettelo[],MATCH(SUMPRODUCT((Kurssiluettelo[PÄIVÄ]=Lukujärjestys[[#Headers],[TORSTAI]])*(ROUNDDOWN($B15,10)>=ROUNDDOWN(Kurssiluettelo[ALKAMISAIKA],10))*($B15<=Kurssiluettelo[PÄÄTTYMISAIKA]),Kurssiluettelo[YKSILÖLLINEN]),Kurssiluettelo[YKSILÖLLINEN],0),2),0)","v":0},{"$f":"IFERROR(INDEX(Kurssiluettelo[],MATCH(SUMPRODUCT((Kurssiluettelo[PÄIVÄ]=Lukujärjestys[[#Headers],[PERJANTAI]])*(ROUNDDOWN($B15,10)>=ROUNDDOWN(Kurssiluettelo[ALKAMISAIKA],10))*($B15<=Kurssiluettelo[PÄÄTTYMISAIKA]),Kurssiluettelo[YKSILÖLLINEN]),Kurssiluettelo[YKSILÖLLINEN],0),2),0)","v":0},{"$f":"IFERROR(INDEX(Kurssiluettelo[],MATCH(SUMPRODUCT((Kurssiluettelo[PÄIVÄ]=Lukujärjestys[[#Headers],[LAUANTAI]])*(ROUNDDOWN($B15,10)>=ROUNDDOWN(Kurssiluettelo[ALKAMISAIKA],10))*($B15<=Kurssiluettelo[PÄÄTTYMISAIKA]),Kurssiluettelo[YKSILÖLLINEN]),Kurssiluettelo[YKSILÖLLINEN],0),2),0)","v":0}]
[null,"11:00:00",{"$f":"IFERROR(INDEX(Kurssiluettelo[],MATCH(SUMPRODUCT((Kurssiluettelo[PÄIVÄ]=Lukujärjestys[[#Headers],[SUNNUNTAI]])*(ROUNDDOWN($B16,10)>=ROUNDDOWN(Kurssiluettelo[ALKAMISAIKA],10))*($B16<=Kurssiluettelo[PÄÄTTYMISAIKA]),Kurssiluettelo[YKSILÖLLINEN]),Kurssiluettelo[YKSILÖLLINEN],0),2),0)","v":0},{"$f":"IFERROR(INDEX(Kurssiluettelo[],MATCH(SUMPRODUCT((Kurssiluettelo[PÄIVÄ]=Lukujärjestys[[#Headers],[MAANANTAI]])*(ROUNDDOWN($B16,10)>=ROUNDDOWN(Kurssiluettelo[ALKAMISAIKA],10))*($B16<=Kurssiluettelo[PÄÄTTYMISAIKA]),Kurssiluettelo[YKSILÖLLINEN]),Kurssiluettelo[YKSILÖLLINEN],0),2),0)","v":0},{"$f":"IFERROR(INDEX(Kurssiluettelo[],MATCH(SUMPRODUCT((Kurssiluettelo[PÄIVÄ]=Lukujärjestys[[#Headers],[TIISTAI]])*(ROUNDDOWN($B16,10)>=ROUNDDOWN(Kurssiluettelo[ALKAMISAIKA],10))*($B16<=Kurssiluettelo[PÄÄTTYMISAIKA]),Kurssiluettelo[YKSILÖLLINEN]),Kurssiluettelo[YKSILÖLLINEN],0),2),0)","v":"HPE-295"},{"$f":"IFERROR(INDEX(Kurssiluettelo[],MATCH(SUMPRODUCT((Kurssiluettelo[PÄIVÄ]=Lukujärjestys[[#Headers],[KESKIVIIKKO]])*(ROUNDDOWN($B16,10)>=ROUNDDOWN(Kurssiluettelo[ALKAMISAIKA],10))*($B16<=Kurssiluettelo[PÄÄTTYMISAIKA]),Kurssiluettelo[YKSILÖLLINEN]),Kurssiluettelo[YKSILÖLLINEN],0),2),0)","v":0},{"$f":"IFERROR(INDEX(Kurssiluettelo[],MATCH(SUMPRODUCT((Kurssiluettelo[PÄIVÄ]=Lukujärjestys[[#Headers],[TORSTAI]])*(ROUNDDOWN($B16,10)>=ROUNDDOWN(Kurssiluettelo[ALKAMISAIKA],10))*($B16<=Kurssiluettelo[PÄÄTTYMISAIKA]),Kurssiluettelo[YKSILÖLLINEN]),Kurssiluettelo[YKSILÖLLINEN],0),2),0)","v":"HPE-295"},{"$f":"IFERROR(INDEX(Kurssiluettelo[],MATCH(SUMPRODUCT((Kurssiluettelo[PÄIVÄ]=Lukujärjestys[[#Headers],[PERJANTAI]])*(ROUNDDOWN($B16,10)>=ROUNDDOWN(Kurssiluettelo[ALKAMISAIKA],10))*($B16<=Kurssiluettelo[PÄÄTTYMISAIKA]),Kurssiluettelo[YKSILÖLLINEN]),Kurssiluettelo[YKSILÖLLINEN],0),2),0)","v":0},{"$f":"IFERROR(INDEX(Kurssiluettelo[],MATCH(SUMPRODUCT((Kurssiluettelo[PÄIVÄ]=Lukujärjestys[[#Headers],[LAUANTAI]])*(ROUNDDOWN($B16,10)>=ROUNDDOWN(Kurssiluettelo[ALKAMISAIKA],10))*($B16<=Kurssiluettelo[PÄÄTTYMISAIKA]),Kurssiluettelo[YKSILÖLLINEN]),Kurssiluettelo[YKSILÖLLINEN],0),2),0)","v":0}]
[null,"11:15:00",{"$f":"IFERROR(INDEX(Kurssiluettelo[],MATCH(SUMPRODUCT((Kurssiluettelo[PÄIVÄ]=Lukujärjestys[[#Headers],[SUNNUNTAI]])*(ROUNDDOWN($B17,10)>=ROUNDDOWN(Kurssiluettelo[ALKAMISAIKA],10))*($B17<=Kurssiluettelo[PÄÄTTYMISAIKA]),Kurssiluettelo[YKSILÖLLINEN]),Kurssiluettelo[YKSILÖLLINEN],0),2),0)","v":0},{"$f":"IFERROR(INDEX(Kurssiluettelo[],MATCH(SUMPRODUCT((Kurssiluettelo[PÄIVÄ]=Lukujärjestys[[#Headers],[MAANANTAI]])*(ROUNDDOWN($B17,10)>=ROUNDDOWN(Kurssiluettelo[ALKAMISAIKA],10))*($B17<=Kurssiluettelo[PÄÄTTYMISAIKA]),Kurssiluettelo[YKSILÖLLINEN]),Kurssiluettelo[YKSILÖLLINEN],0),2),0)","v":0},{"$f":"IFERROR(INDEX(Kurssiluettelo[],MATCH(SUMPRODUCT((Kurssiluettelo[PÄIVÄ]=Lukujärjestys[[#Headers],[TIISTAI]])*(ROUNDDOWN($B17,10)>=ROUNDDOWN(Kurssiluettelo[ALKAMISAIKA],10))*($B17<=Kurssiluettelo[PÄÄTTYMISAIKA]),Kurssiluettelo[YKSILÖLLINEN]),Kurssiluettelo[YKSILÖLLINEN],0),2),0)","v":"HPE-295"},{"$f":"IFERROR(INDEX(Kurssiluettelo[],MATCH(SUMPRODUCT((Kurssiluettelo[PÄIVÄ]=Lukujärjestys[[#Headers],[KESKIVIIKKO]])*(ROUNDDOWN($B17,10)>=ROUNDDOWN(Kurssiluettelo[ALKAMISAIKA],10))*($B17<=Kurssiluettelo[PÄÄTTYMISAIKA]),Kurssiluettelo[YKSILÖLLINEN]),Kurssiluettelo[YKSILÖLLINEN],0),2),0)","v":0},{"$f":"IFERROR(INDEX(Kurssiluettelo[],MATCH(SUMPRODUCT((Kurssiluettelo[PÄIVÄ]=Lukujärjestys[[#Headers],[TORSTAI]])*(ROUNDDOWN($B17,10)>=ROUNDDOWN(Kurssiluettelo[ALKAMISAIKA],10))*($B17<=Kurssiluettelo[PÄÄTTYMISAIKA]),Kurssiluettelo[YKSILÖLLINEN]),Kurssiluettelo[YKSILÖLLINEN],0),2),0)","v":"HPE-295"},{"$f":"IFERROR(INDEX(Kurssiluettelo[],MATCH(SUMPRODUCT((Kurssiluettelo[PÄIVÄ]=Lukujärjestys[[#Headers],[PERJANTAI]])*(ROUNDDOWN($B17,10)>=ROUNDDOWN(Kurssiluettelo[ALKAMISAIKA],10))*($B17<=Kurssiluettelo[PÄÄTTYMISAIKA]),Kurssiluettelo[YKSILÖLLINEN]),Kurssiluettelo[YKSILÖLLINEN],0),2),0)","v":0},{"$f":"IFERROR(INDEX(Kurssiluettelo[],MATCH(SUMPRODUCT((Kurssiluettelo[PÄIVÄ]=Lukujärjestys[[#Headers],[LAUANTAI]])*(ROUNDDOWN($B17,10)>=ROUNDDOWN(Kurssiluettelo[ALKAMISAIKA],10))*($B17<=Kurssiluettelo[PÄÄTTYMISAIKA]),Kurssiluettelo[YKSILÖLLINEN]),Kurssiluettelo[YKSILÖLLINEN],0),2),0)","v":0}]
[null,"11:30:00",{"$f":"IFERROR(INDEX(Kurssiluettelo[],MATCH(SUMPRODUCT((Kurssiluettelo[PÄIVÄ]=Lukujärjestys[[#Headers],[SUNNUNTAI]])*(ROUNDDOWN($B18,10)>=ROUNDDOWN(Kurssiluettelo[ALKAMISAIKA],10))*($B18<=Kurssiluettelo[PÄÄTTYMISAIKA]),Kurssiluettelo[YKSILÖLLINEN]),Kurssiluettelo[YKSILÖLLINEN],0),2),0)","v":0},{"$f":"IFERROR(INDEX(Kurssiluettelo[],MATCH(SUMPRODUCT((Kurssiluettelo[PÄIVÄ]=Lukujärjestys[[#Headers],[MAANANTAI]])*(ROUNDDOWN($B18,10)>=ROUNDDOWN(Kurssiluettelo[ALKAMISAIKA],10))*($B18<=Kurssiluettelo[PÄÄTTYMISAIKA]),Kurssiluettelo[YKSILÖLLINEN]),Kurssiluettelo[YKSILÖLLINEN],0),2),0)","v":0},{"$f":"IFERROR(INDEX(Kurssiluettelo[],MATCH(SUMPRODUCT((Kurssiluettelo[PÄIVÄ]=Lukujärjestys[[#Headers],[TIISTAI]])*(ROUNDDOWN($B18,10)>=ROUNDDOWN(Kurssiluettelo[ALKAMISAIKA],10))*($B18<=Kurssiluettelo[PÄÄTTYMISAIKA]),Kurssiluettelo[YKSILÖLLINEN]),Kurssiluettelo[YKSILÖLLINEN],0),2),0)","v":"HPE-295"},{"$f":"IFERROR(INDEX(Kurssiluettelo[],MATCH(SUMPRODUCT((Kurssiluettelo[PÄIVÄ]=Lukujärjestys[[#Headers],[KESKIVIIKKO]])*(ROUNDDOWN($B18,10)>=ROUNDDOWN(Kurssiluettelo[ALKAMISAIKA],10))*($B18<=Kurssiluettelo[PÄÄTTYMISAIKA]),Kurssiluettelo[YKSILÖLLINEN]),Kurssiluettelo[YKSILÖLLINEN],0),2),0)","v":0},{"$f":"IFERROR(INDEX(Kurssiluettelo[],MATCH(SUMPRODUCT((Kurssiluettelo[PÄIVÄ]=Lukujärjestys[[#Headers],[TORSTAI]])*(ROUNDDOWN($B18,10)>=ROUNDDOWN(Kurssiluettelo[ALKAMISAIKA],10))*($B18<=Kurssiluettelo[PÄÄTTYMISAIKA]),Kurssiluettelo[YKSILÖLLINEN]),Kurssiluettelo[YKSILÖLLINEN],0),2),0)","v":"HPE-295"},{"$f":"IFERROR(INDEX(Kurssiluettelo[],MATCH(SUMPRODUCT((Kurssiluettelo[PÄIVÄ]=Lukujärjestys[[#Headers],[PERJANTAI]])*(ROUNDDOWN($B18,10)>=ROUNDDOWN(Kurssiluettelo[ALKAMISAIKA],10))*($B18<=Kurssiluettelo[PÄÄTTYMISAIKA]),Kurssiluettelo[YKSILÖLLINEN]),Kurssiluettelo[YKSILÖLLINEN],0),2),0)","v":0},{"$f":"IFERROR(INDEX(Kurssiluettelo[],MATCH(SUMPRODUCT((Kurssiluettelo[PÄIVÄ]=Lukujärjestys[[#Headers],[LAUANTAI]])*(ROUNDDOWN($B18,10)>=ROUNDDOWN(Kurssiluettelo[ALKAMISAIKA],10))*($B18<=Kurssiluettelo[PÄÄTTYMISAIKA]),Kurssiluettelo[YKSILÖLLINEN]),Kurssiluettelo[YKSILÖLLINEN],0),2),0)","v":0}]
[null,"11:45:00",{"$f":"IFERROR(INDEX(Kurssiluettelo[],MATCH(SUMPRODUCT((Kurssiluettelo[PÄIVÄ]=Lukujärjestys[[#Headers],[SUNNUNTAI]])*(ROUNDDOWN($B19,10)>=ROUNDDOWN(Kurssiluettelo[ALKAMISAIKA],10))*($B19<=Kurssiluettelo[PÄÄTTYMISAIKA]),Kurssiluettelo[YKSILÖLLINEN]),Kurssiluettelo[YKSILÖLLINEN],0),2),0)","v":0},{"$f":"IFERROR(INDEX(Kurssiluettelo[],MATCH(SUMPRODUCT((Kurssiluettelo[PÄIVÄ]=Lukujärjestys[[#Headers],[MAANANTAI]])*(ROUNDDOWN($B19,10)>=ROUNDDOWN(Kurssiluettelo[ALKAMISAIKA],10))*($B19<=Kurssiluettelo[PÄÄTTYMISAIKA]),Kurssiluettelo[YKSILÖLLINEN]),Kurssiluettelo[YKSILÖLLINEN],0),2),0)","v":0},{"$f":"IFERROR(INDEX(Kurssiluettelo[],MATCH(SUMPRODUCT((Kurssiluettelo[PÄIVÄ]=Lukujärjestys[[#Headers],[TIISTAI]])*(ROUNDDOWN($B19,10)>=ROUNDDOWN(Kurssiluettelo[ALKAMISAIKA],10))*($B19<=Kurssiluettelo[PÄÄTTYMISAIKA]),Kurssiluettelo[YKSILÖLLINEN]),Kurssiluettelo[YKSILÖLLINEN],0),2),0)","v":"HPE-295"},{"$f":"IFERROR(INDEX(Kurssiluettelo[],MATCH(SUMPRODUCT((Kurssiluettelo[PÄIVÄ]=Lukujärjestys[[#Headers],[KESKIVIIKKO]])*(ROUNDDOWN($B19,10)>=ROUNDDOWN(Kurssiluettelo[ALKAMISAIKA],10))*($B19<=Kurssiluettelo[PÄÄTTYMISAIKA]),Kurssiluettelo[YKSILÖLLINEN]),Kurssiluettelo[YKSILÖLLINEN],0),2),0)","v":0},{"$f":"IFERROR(INDEX(Kurssiluettelo[],MATCH(SUMPRODUCT((Kurssiluettelo[PÄIVÄ]=Lukujärjestys[[#Headers],[TORSTAI]])*(ROUNDDOWN($B19,10)>=ROUNDDOWN(Kurssiluettelo[ALKAMISAIKA],10))*($B19<=Kurssiluettelo[PÄÄTTYMISAIKA]),Kurssiluettelo[YKSILÖLLINEN]),Kurssiluettelo[YKSILÖLLINEN],0),2),0)","v":"HPE-295"},{"$f":"IFERROR(INDEX(Kurssiluettelo[],MATCH(SUMPRODUCT((Kurssiluettelo[PÄIVÄ]=Lukujärjestys[[#Headers],[PERJANTAI]])*(ROUNDDOWN($B19,10)>=ROUNDDOWN(Kurssiluettelo[ALKAMISAIKA],10))*($B19<=Kurssiluettelo[PÄÄTTYMISAIKA]),Kurssiluettelo[YKSILÖLLINEN]),Kurssiluettelo[YKSILÖLLINEN],0),2),0)","v":0},{"$f":"IFERROR(INDEX(Kurssiluettelo[],MATCH(SUMPRODUCT((Kurssiluettelo[PÄIVÄ]=Lukujärjestys[[#Headers],[LAUANTAI]])*(ROUNDDOWN($B19,10)>=ROUNDDOWN(Kurssiluettelo[ALKAMISAIKA],10))*($B19<=Kurssiluettelo[PÄÄTTYMISAIKA]),Kurssiluettelo[YKSILÖLLINEN]),Kurssiluettelo[YKSILÖLLINEN],0),2),0)","v":0}]
[null,"12:00:00",{"$f":"IFERROR(INDEX(Kurssiluettelo[],MATCH(SUMPRODUCT((Kurssiluettelo[PÄIVÄ]=Lukujärjestys[[#Headers],[SUNNUNTAI]])*(ROUNDDOWN($B20,10)>=ROUNDDOWN(Kurssiluettelo[ALKAMISAIKA],10))*($B20<=Kurssiluettelo[PÄÄTTYMISAIKA]),Kurssiluettelo[YKSILÖLLINEN]),Kurssiluettelo[YKSILÖLLINEN],0),2),0)","v":0},{"$f":"IFERROR(INDEX(Kurssiluettelo[],MATCH(SUMPRODUCT((Kurssiluettelo[PÄIVÄ]=Lukujärjestys[[#Headers],[MAANANTAI]])*(ROUNDDOWN($B20,10)>=ROUNDDOWN(Kurssiluettelo[ALKAMISAIKA],10))*($B20<=Kurssiluettelo[PÄÄTTYMISAIKA]),Kurssiluettelo[YKSILÖLLINEN]),Kurssiluettelo[YKSILÖLLINEN],0),2),0)","v":0},{"$f":"IFERROR(INDEX(Kurssiluettelo[],MATCH(SUMPRODUCT((Kurssiluettelo[PÄIVÄ]=Lukujärjestys[[#Headers],[TIISTAI]])*(ROUNDDOWN($B20,10)>=ROUNDDOWN(Kurssiluettelo[ALKAMISAIKA],10))*($B20<=Kurssiluettelo[PÄÄTTYMISAIKA]),Kurssiluettelo[YKSILÖLLINEN]),Kurssiluettelo[YKSILÖLLINEN],0),2),0)","v":"HPE-295"},{"$f":"IFERROR(INDEX(Kurssiluettelo[],MATCH(SUMPRODUCT((Kurssiluettelo[PÄIVÄ]=Lukujärjestys[[#Headers],[KESKIVIIKKO]])*(ROUNDDOWN($B20,10)>=ROUNDDOWN(Kurssiluettelo[ALKAMISAIKA],10))*($B20<=Kurssiluettelo[PÄÄTTYMISAIKA]),Kurssiluettelo[YKSILÖLLINEN]),Kurssiluettelo[YKSILÖLLINEN],0),2),0)","v":0},{"$f":"IFERROR(INDEX(Kurssiluettelo[],MATCH(SUMPRODUCT((Kurssiluettelo[PÄIVÄ]=Lukujärjestys[[#Headers],[TORSTAI]])*(ROUNDDOWN($B20,10)>=ROUNDDOWN(Kurssiluettelo[ALKAMISAIKA],10))*($B20<=Kurssiluettelo[PÄÄTTYMISAIKA]),Kurssiluettelo[YKSILÖLLINEN]),Kurssiluettelo[YKSILÖLLINEN],0),2),0)","v":"HPE-295"},{"$f":"IFERROR(INDEX(Kurssiluettelo[],MATCH(SUMPRODUCT((Kurssiluettelo[PÄIVÄ]=Lukujärjestys[[#Headers],[PERJANTAI]])*(ROUNDDOWN($B20,10)>=ROUNDDOWN(Kurssiluettelo[ALKAMISAIKA],10))*($B20<=Kurssiluettelo[PÄÄTTYMISAIKA]),Kurssiluettelo[YKSILÖLLINEN]),Kurssiluettelo[YKSILÖLLINEN],0),2),0)","v":0},{"$f":"IFERROR(INDEX(Kurssiluettelo[],MATCH(SUMPRODUCT((Kurssiluettelo[PÄIVÄ]=Lukujärjestys[[#Headers],[LAUANTAI]])*(ROUNDDOWN($B20,10)>=ROUNDDOWN(Kurssiluettelo[ALKAMISAIKA],10))*($B20<=Kurssiluettelo[PÄÄTTYMISAIKA]),Kurssiluettelo[YKSILÖLLINEN]),Kurssiluettelo[YKSILÖLLINEN],0),2),0)","v":0}]
[null,"12:15:00",{"$f":"IFERROR(INDEX(Kurssiluettelo[],MATCH(SUMPRODUCT((Kurssiluettelo[PÄIVÄ]=Lukujärjestys[[#Headers],[SUNNUNTAI]])*(ROUNDDOWN($B21,10)>=ROUNDDOWN(Kurssiluettelo[ALKAMISAIKA],10))*($B21<=Kurssiluettelo[PÄÄTTYMISAIKA]),Kurssiluettelo[YKSILÖLLINEN]),Kurssiluettelo[YKSILÖLLINEN],0),2),0)","v":0},{"$f":"IFERROR(INDEX(Kurssiluettelo[],MATCH(SUMPRODUCT((Kurssiluettelo[PÄIVÄ]=Lukujärjestys[[#Headers],[MAANANTAI]])*(ROUNDDOWN($B21,10)>=ROUNDDOWN(Kurssiluettelo[ALKAMISAIKA],10))*($B21<=Kurssiluettelo[PÄÄTTYMISAIKA]),Kurssiluettelo[YKSILÖLLINEN]),Kurssiluettelo[YKSILÖLLINEN],0),2),0)","v":0},{"$f":"IFERROR(INDEX(Kurssiluettelo[],MATCH(SUMPRODUCT((Kurssiluettelo[PÄIVÄ]=Lukujärjestys[[#Headers],[TIISTAI]])*(ROUNDDOWN($B21,10)>=ROUNDDOWN(Kurssiluettelo[ALKAMISAIKA],10))*($B21<=Kurssiluettelo[PÄÄTTYMISAIKA]),Kurssiluettelo[YKSILÖLLINEN]),Kurssiluettelo[YKSILÖLLINEN],0),2),0)","v":0},{"$f":"IFERROR(INDEX(Kurssiluettelo[],MATCH(SUMPRODUCT((Kurssiluettelo[PÄIVÄ]=Lukujärjestys[[#Headers],[KESKIVIIKKO]])*(ROUNDDOWN($B21,10)>=ROUNDDOWN(Kurssiluettelo[ALKAMISAIKA],10))*($B21<=Kurssiluettelo[PÄÄTTYMISAIKA]),Kurssiluettelo[YKSILÖLLINEN]),Kurssiluettelo[YKSILÖLLINEN],0),2),0)","v":0},{"$f":"IFERROR(INDEX(Kurssiluettelo[],MATCH(SUMPRODUCT((Kurssiluettelo[PÄIVÄ]=Lukujärjestys[[#Headers],[TORSTAI]])*(ROUNDDOWN($B21,10)>=ROUNDDOWN(Kurssiluettelo[ALKAMISAIKA],10))*($B21<=Kurssiluettelo[PÄÄTTYMISAIKA]),Kurssiluettelo[YKSILÖLLINEN]),Kurssiluettelo[YKSILÖLLINEN],0),2),0)","v":0},{"$f":"IFERROR(INDEX(Kurssiluettelo[],MATCH(SUMPRODUCT((Kurssiluettelo[PÄIVÄ]=Lukujärjestys[[#Headers],[PERJANTAI]])*(ROUNDDOWN($B21,10)>=ROUNDDOWN(Kurssiluettelo[ALKAMISAIKA],10))*($B21<=Kurssiluettelo[PÄÄTTYMISAIKA]),Kurssiluettelo[YKSILÖLLINEN]),Kurssiluettelo[YKSILÖLLINEN],0),2),0)","v":0},{"$f":"IFERROR(INDEX(Kurssiluettelo[],MATCH(SUMPRODUCT((Kurssiluettelo[PÄIVÄ]=Lukujärjestys[[#Headers],[LAUANTAI]])*(ROUNDDOWN($B21,10)>=ROUNDDOWN(Kurssiluettelo[ALKAMISAIKA],10))*($B21<=Kurssiluettelo[PÄÄTTYMISAIKA]),Kurssiluettelo[YKSILÖLLINEN]),Kurssiluettelo[YKSILÖLLINEN],0),2),0)","v":0}]
[null,"12:30:00",{"$f":"IFERROR(INDEX(Kurssiluettelo[],MATCH(SUMPRODUCT((Kurssiluettelo[PÄIVÄ]=Lukujärjestys[[#Headers],[SUNNUNTAI]])*(ROUNDDOWN($B22,10)>=ROUNDDOWN(Kurssiluettelo[ALKAMISAIKA],10))*($B22<=Kurssiluettelo[PÄÄTTYMISAIKA]),Kurssiluettelo[YKSILÖLLINEN]),Kurssiluettelo[YKSILÖLLINEN],0),2),0)","v":0},{"$f":"IFERROR(INDEX(Kurssiluettelo[],MATCH(SUMPRODUCT((Kurssiluettelo[PÄIVÄ]=Lukujärjestys[[#Headers],[MAANANTAI]])*(ROUNDDOWN($B22,10)>=ROUNDDOWN(Kurssiluettelo[ALKAMISAIKA],10))*($B22<=Kurssiluettelo[PÄÄTTYMISAIKA]),Kurssiluettelo[YKSILÖLLINEN]),Kurssiluettelo[YKSILÖLLINEN],0),2),0)","v":0},{"$f":"IFERROR(INDEX(Kurssiluettelo[],MATCH(SUMPRODUCT((Kurssiluettelo[PÄIVÄ]=Lukujärjestys[[#Headers],[TIISTAI]])*(ROUNDDOWN($B22,10)>=ROUNDDOWN(Kurssiluettelo[ALKAMISAIKA],10))*($B22<=Kurssiluettelo[PÄÄTTYMISAIKA]),Kurssiluettelo[YKSILÖLLINEN]),Kurssiluettelo[YKSILÖLLINEN],0),2),0)","v":0},{"$f":"IFERROR(INDEX(Kurssiluettelo[],MATCH(SUMPRODUCT((Kurssiluettelo[PÄIVÄ]=Lukujärjestys[[#Headers],[KESKIVIIKKO]])*(ROUNDDOWN($B22,10)>=ROUNDDOWN(Kurssiluettelo[ALKAMISAIKA],10))*($B22<=Kurssiluettelo[PÄÄTTYMISAIKA]),Kurssiluettelo[YKSILÖLLINEN]),Kurssiluettelo[YKSILÖLLINEN],0),2),0)","v":0},{"$f":"IFERROR(INDEX(Kurssiluettelo[],MATCH(SUMPRODUCT((Kurssiluettelo[PÄIVÄ]=Lukujärjestys[[#Headers],[TORSTAI]])*(ROUNDDOWN($B22,10)>=ROUNDDOWN(Kurssiluettelo[ALKAMISAIKA],10))*($B22<=Kurssiluettelo[PÄÄTTYMISAIKA]),Kurssiluettelo[YKSILÖLLINEN]),Kurssiluettelo[YKSILÖLLINEN],0),2),0)","v":0},{"$f":"IFERROR(INDEX(Kurssiluettelo[],MATCH(SUMPRODUCT((Kurssiluettelo[PÄIVÄ]=Lukujärjestys[[#Headers],[PERJANTAI]])*(ROUNDDOWN($B22,10)>=ROUNDDOWN(Kurssiluettelo[ALKAMISAIKA],10))*($B22<=Kurssiluettelo[PÄÄTTYMISAIKA]),Kurssiluettelo[YKSILÖLLINEN]),Kurssiluettelo[YKSILÖLLINEN],0),2),0)","v":0},{"$f":"IFERROR(INDEX(Kurssiluettelo[],MATCH(SUMPRODUCT((Kurssiluettelo[PÄIVÄ]=Lukujärjestys[[#Headers],[LAUANTAI]])*(ROUNDDOWN($B22,10)>=ROUNDDOWN(Kurssiluettelo[ALKAMISAIKA],10))*($B22<=Kurssiluettelo[PÄÄTTYMISAIKA]),Kurssiluettelo[YKSILÖLLINEN]),Kurssiluettelo[YKSILÖLLINEN],0),2),0)","v":0}]
[null,"12:45:00",{"$f":"IFERROR(INDEX(Kurssiluettelo[],MATCH(SUMPRODUCT((Kurssiluettelo[PÄIVÄ]=Lukujärjestys[[#Headers],[SUNNUNTAI]])*(ROUNDDOWN($B23,10)>=ROUNDDOWN(Kurssiluettelo[ALKAMISAIKA],10))*($B23<=Kurssiluettelo[PÄÄTTYMISAIKA]),Kurssiluettelo[YKSILÖLLINEN]),Kurssiluettelo[YKSILÖLLINEN],0),2),0)","v":0},{"$f":"IFERROR(INDEX(Kurssiluettelo[],MATCH(SUMPRODUCT((Kurssiluettelo[PÄIVÄ]=Lukujärjestys[[#Headers],[MAANANTAI]])*(ROUNDDOWN($B23,10)>=ROUNDDOWN(Kurssiluettelo[ALKAMISAIKA],10))*($B23<=Kurssiluettelo[PÄÄTTYMISAIKA]),Kurssiluettelo[YKSILÖLLINEN]),Kurssiluettelo[YKSILÖLLINEN],0),2),0)","v":0},{"$f":"IFERROR(INDEX(Kurssiluettelo[],MATCH(SUMPRODUCT((Kurssiluettelo[PÄIVÄ]=Lukujärjestys[[#Headers],[TIISTAI]])*(ROUNDDOWN($B23,10)>=ROUNDDOWN(Kurssiluettelo[ALKAMISAIKA],10))*($B23<=Kurssiluettelo[PÄÄTTYMISAIKA]),Kurssiluettelo[YKSILÖLLINEN]),Kurssiluettelo[YKSILÖLLINEN],0),2),0)","v":0},{"$f":"IFERROR(INDEX(Kurssiluettelo[],MATCH(SUMPRODUCT((Kurssiluettelo[PÄIVÄ]=Lukujärjestys[[#Headers],[KESKIVIIKKO]])*(ROUNDDOWN($B23,10)>=ROUNDDOWN(Kurssiluettelo[ALKAMISAIKA],10))*($B23<=Kurssiluettelo[PÄÄTTYMISAIKA]),Kurssiluettelo[YKSILÖLLINEN]),Kurssiluettelo[YKSILÖLLINEN],0),2),0)","v":0},{"$f":"IFERROR(INDEX(Kurssiluettelo[],MATCH(SUMPRODUCT((Kurssiluettelo[PÄIVÄ]=Lukujärjestys[[#Headers],[TORSTAI]])*(ROUNDDOWN($B23,10)>=ROUNDDOWN(Kurssiluettelo[ALKAMISAIKA],10))*($B23<=Kurssiluettelo[PÄÄTTYMISAIKA]),Kurssiluettelo[YKSILÖLLINEN]),Kurssiluettelo[YKSILÖLLINEN],0),2),0)","v":0},{"$f":"IFERROR(INDEX(Kurssiluettelo[],MATCH(SUMPRODUCT((Kurssiluettelo[PÄIVÄ]=Lukujärjestys[[#Headers],[PERJANTAI]])*(ROUNDDOWN($B23,10)>=ROUNDDOWN(Kurssiluettelo[ALKAMISAIKA],10))*($B23<=Kurssiluettelo[PÄÄTTYMISAIKA]),Kurssiluettelo[YKSILÖLLINEN]),Kurssiluettelo[YKSILÖLLINEN],0),2),0)","v":0},{"$f":"IFERROR(INDEX(Kurssiluettelo[],MATCH(SUMPRODUCT((Kurssiluettelo[PÄIVÄ]=Lukujärjestys[[#Headers],[LAUANTAI]])*(ROUNDDOWN($B23,10)>=ROUNDDOWN(Kurssiluettelo[ALKAMISAIKA],10))*($B23<=Kurssiluettelo[PÄÄTTYMISAIKA]),Kurssiluettelo[YKSILÖLLINEN]),Kurssiluettelo[YKSILÖLLINEN],0),2),0)","v":0}]
[null,"13:00:00",{"$f":"IFERROR(INDEX(Kurssiluettelo[],MATCH(SUMPRODUCT((Kurssiluettelo[PÄIVÄ]=Lukujärjestys[[#Headers],[SUNNUNTAI]])*(ROUNDDOWN($B24,10)>=ROUNDDOWN(Kurssiluettelo[ALKAMISAIKA],10))*($B24<=Kurssiluettelo[PÄÄTTYMISAIKA]),Kurssiluettelo[YKSILÖLLINEN]),Kurssiluettelo[YKSILÖLLINEN],0),2),0)","v":0},{"$f":"IFERROR(INDEX(Kurssiluettelo[],MATCH(SUMPRODUCT((Kurssiluettelo[PÄIVÄ]=Lukujärjestys[[#Headers],[MAANANTAI]])*(ROUNDDOWN($B24,10)>=ROUNDDOWN(Kurssiluettelo[ALKAMISAIKA],10))*($B24<=Kurssiluettelo[PÄÄTTYMISAIKA]),Kurssiluettelo[YKSILÖLLINEN]),Kurssiluettelo[YKSILÖLLINEN],0),2),0)","v":"WR-121"},{"$f":"IFERROR(INDEX(Kurssiluettelo[],MATCH(SUMPRODUCT((Kurssiluettelo[PÄIVÄ]=Lukujärjestys[[#Headers],[TIISTAI]])*(ROUNDDOWN($B24,10)>=ROUNDDOWN(Kurssiluettelo[ALKAMISAIKA],10))*($B24<=Kurssiluettelo[PÄÄTTYMISAIKA]),Kurssiluettelo[YKSILÖLLINEN]),Kurssiluettelo[YKSILÖLLINEN],0),2),0)","v":0},{"$f":"IFERROR(INDEX(Kurssiluettelo[],MATCH(SUMPRODUCT((Kurssiluettelo[PÄIVÄ]=Lukujärjestys[[#Headers],[KESKIVIIKKO]])*(ROUNDDOWN($B24,10)>=ROUNDDOWN(Kurssiluettelo[ALKAMISAIKA],10))*($B24<=Kurssiluettelo[PÄÄTTYMISAIKA]),Kurssiluettelo[YKSILÖLLINEN]),Kurssiluettelo[YKSILÖLLINEN],0),2),0)","v":"WR-121"},{"$f":"IFERROR(INDEX(Kurssiluettelo[],MATCH(SUMPRODUCT((Kurssiluettelo[PÄIVÄ]=Lukujärjestys[[#Headers],[TORSTAI]])*(ROUNDDOWN($B24,10)>=ROUNDDOWN(Kurssiluettelo[ALKAMISAIKA],10))*($B24<=Kurssiluettelo[PÄÄTTYMISAIKA]),Kurssiluettelo[YKSILÖLLINEN]),Kurssiluettelo[YKSILÖLLINEN],0),2),0)","v":0},{"$f":"IFERROR(INDEX(Kurssiluettelo[],MATCH(SUMPRODUCT((Kurssiluettelo[PÄIVÄ]=Lukujärjestys[[#Headers],[PERJANTAI]])*(ROUNDDOWN($B24,10)>=ROUNDDOWN(Kurssiluettelo[ALKAMISAIKA],10))*($B24<=Kurssiluettelo[PÄÄTTYMISAIKA]),Kurssiluettelo[YKSILÖLLINEN]),Kurssiluettelo[YKSILÖLLINEN],0),2),0)","v":0},{"$f":"IFERROR(INDEX(Kurssiluettelo[],MATCH(SUMPRODUCT((Kurssiluettelo[PÄIVÄ]=Lukujärjestys[[#Headers],[LAUANTAI]])*(ROUNDDOWN($B24,10)>=ROUNDDOWN(Kurssiluettelo[ALKAMISAIKA],10))*($B24<=Kurssiluettelo[PÄÄTTYMISAIKA]),Kurssiluettelo[YKSILÖLLINEN]),Kurssiluettelo[YKSILÖLLINEN],0),2),0)","v":0}]
[null,"13:15:00",{"$f":"IFERROR(INDEX(Kurssiluettelo[],MATCH(SUMPRODUCT((Kurssiluettelo[PÄIVÄ]=Lukujärjestys[[#Headers],[SUNNUNTAI]])*(ROUNDDOWN($B25,10)>=ROUNDDOWN(Kurssiluettelo[ALKAMISAIKA],10))*($B25<=Kurssiluettelo[PÄÄTTYMISAIKA]),Kurssiluettelo[YKSILÖLLINEN]),Kurssiluettelo[YKSILÖLLINEN],0),2),0)","v":0},{"$f":"IFERROR(INDEX(Kurssiluettelo[],MATCH(SUMPRODUCT((Kurssiluettelo[PÄIVÄ]=Lukujärjestys[[#Headers],[MAANANTAI]])*(ROUNDDOWN($B25,10)>=ROUNDDOWN(Kurssiluettelo[ALKAMISAIKA],10))*($B25<=Kurssiluettelo[PÄÄTTYMISAIKA]),Kurssiluettelo[YKSILÖLLINEN]),Kurssiluettelo[YKSILÖLLINEN],0),2),0)","v":"WR-121"},{"$f":"IFERROR(INDEX(Kurssiluettelo[],MATCH(SUMPRODUCT((Kurssiluettelo[PÄIVÄ]=Lukujärjestys[[#Headers],[TIISTAI]])*(ROUNDDOWN($B25,10)>=ROUNDDOWN(Kurssiluettelo[ALKAMISAIKA],10))*($B25<=Kurssiluettelo[PÄÄTTYMISAIKA]),Kurssiluettelo[YKSILÖLLINEN]),Kurssiluettelo[YKSILÖLLINEN],0),2),0)","v":0},{"$f":"IFERROR(INDEX(Kurssiluettelo[],MATCH(SUMPRODUCT((Kurssiluettelo[PÄIVÄ]=Lukujärjestys[[#Headers],[KESKIVIIKKO]])*(ROUNDDOWN($B25,10)>=ROUNDDOWN(Kurssiluettelo[ALKAMISAIKA],10))*($B25<=Kurssiluettelo[PÄÄTTYMISAIKA]),Kurssiluettelo[YKSILÖLLINEN]),Kurssiluettelo[YKSILÖLLINEN],0),2),0)","v":"WR-121"},{"$f":"IFERROR(INDEX(Kurssiluettelo[],MATCH(SUMPRODUCT((Kurssiluettelo[PÄIVÄ]=Lukujärjestys[[#Headers],[TORSTAI]])*(ROUNDDOWN($B25,10)>=ROUNDDOWN(Kurssiluettelo[ALKAMISAIKA],10))*($B25<=Kurssiluettelo[PÄÄTTYMISAIKA]),Kurssiluettelo[YKSILÖLLINEN]),Kurssiluettelo[YKSILÖLLINEN],0),2),0)","v":0},{"$f":"IFERROR(INDEX(Kurssiluettelo[],MATCH(SUMPRODUCT((Kurssiluettelo[PÄIVÄ]=Lukujärjestys[[#Headers],[PERJANTAI]])*(ROUNDDOWN($B25,10)>=ROUNDDOWN(Kurssiluettelo[ALKAMISAIKA],10))*($B25<=Kurssiluettelo[PÄÄTTYMISAIKA]),Kurssiluettelo[YKSILÖLLINEN]),Kurssiluettelo[YKSILÖLLINEN],0),2),0)","v":0},{"$f":"IFERROR(INDEX(Kurssiluettelo[],MATCH(SUMPRODUCT((Kurssiluettelo[PÄIVÄ]=Lukujärjestys[[#Headers],[LAUANTAI]])*(ROUNDDOWN($B25,10)>=ROUNDDOWN(Kurssiluettelo[ALKAMISAIKA],10))*($B25<=Kurssiluettelo[PÄÄTTYMISAIKA]),Kurssiluettelo[YKSILÖLLINEN]),Kurssiluettelo[YKSILÖLLINEN],0),2),0)","v":0}]
[null,"13:30:00",{"$f":"IFERROR(INDEX(Kurssiluettelo[],MATCH(SUMPRODUCT((Kurssiluettelo[PÄIVÄ]=Lukujärjestys[[#Headers],[SUNNUNTAI]])*(ROUNDDOWN($B26,10)>=ROUNDDOWN(Kurssiluettelo[ALKAMISAIKA],10))*($B26<=Kurssiluettelo[PÄÄTTYMISAIKA]),Kurssiluettelo[YKSILÖLLINEN]),Kurssiluettelo[YKSILÖLLINEN],0),2),0)","v":0},{"$f":"IFERROR(INDEX(Kurssiluettelo[],MATCH(SUMPRODUCT((Kurssiluettelo[PÄIVÄ]=Lukujärjestys[[#Headers],[MAANANTAI]])*(ROUNDDOWN($B26,10)>=ROUNDDOWN(Kurssiluettelo[ALKAMISAIKA],10))*($B26<=Kurssiluettelo[PÄÄTTYMISAIKA]),Kurssiluettelo[YKSILÖLLINEN]),Kurssiluettelo[YKSILÖLLINEN],0),2),0)","v":"WR-121"},{"$f":"IFERROR(INDEX(Kurssiluettelo[],MATCH(SUMPRODUCT((Kurssiluettelo[PÄIVÄ]=Lukujärjestys[[#Headers],[TIISTAI]])*(ROUNDDOWN($B26,10)>=ROUNDDOWN(Kurssiluettelo[ALKAMISAIKA],10))*($B26<=Kurssiluettelo[PÄÄTTYMISAIKA]),Kurssiluettelo[YKSILÖLLINEN]),Kurssiluettelo[YKSILÖLLINEN],0),2),0)","v":0},{"$f":"IFERROR(INDEX(Kurssiluettelo[],MATCH(SUMPRODUCT((Kurssiluettelo[PÄIVÄ]=Lukujärjestys[[#Headers],[KESKIVIIKKO]])*(ROUNDDOWN($B26,10)>=ROUNDDOWN(Kurssiluettelo[ALKAMISAIKA],10))*($B26<=Kurssiluettelo[PÄÄTTYMISAIKA]),Kurssiluettelo[YKSILÖLLINEN]),Kurssiluettelo[YKSILÖLLINEN],0),2),0)","v":"WR-121"},{"$f":"IFERROR(INDEX(Kurssiluettelo[],MATCH(SUMPRODUCT((Kurssiluettelo[PÄIVÄ]=Lukujärjestys[[#Headers],[TORSTAI]])*(ROUNDDOWN($B26,10)>=ROUNDDOWN(Kurssiluettelo[ALKAMISAIKA],10))*($B26<=Kurssiluettelo[PÄÄTTYMISAIKA]),Kurssiluettelo[YKSILÖLLINEN]),Kurssiluettelo[YKSILÖLLINEN],0),2),0)","v":0},{"$f":"IFERROR(INDEX(Kurssiluettelo[],MATCH(SUMPRODUCT((Kurssiluettelo[PÄIVÄ]=Lukujärjestys[[#Headers],[PERJANTAI]])*(ROUNDDOWN($B26,10)>=ROUNDDOWN(Kurssiluettelo[ALKAMISAIKA],10))*($B26<=Kurssiluettelo[PÄÄTTYMISAIKA]),Kurssiluettelo[YKSILÖLLINEN]),Kurssiluettelo[YKSILÖLLINEN],0),2),0)","v":0},{"$f":"IFERROR(INDEX(Kurssiluettelo[],MATCH(SUMPRODUCT((Kurssiluettelo[PÄIVÄ]=Lukujärjestys[[#Headers],[LAUANTAI]])*(ROUNDDOWN($B26,10)>=ROUNDDOWN(Kurssiluettelo[ALKAMISAIKA],10))*($B26<=Kurssiluettelo[PÄÄTTYMISAIKA]),Kurssiluettelo[YKSILÖLLINEN]),Kurssiluettelo[YKSILÖLLINEN],0),2),0)","v":0}]
[null,"13:45:00",{"$f":"IFERROR(INDEX(Kurssiluettelo[],MATCH(SUMPRODUCT((Kurssiluettelo[PÄIVÄ]=Lukujärjestys[[#Headers],[SUNNUNTAI]])*(ROUNDDOWN($B27,10)>=ROUNDDOWN(Kurssiluettelo[ALKAMISAIKA],10))*($B27<=Kurssiluettelo[PÄÄTTYMISAIKA]),Kurssiluettelo[YKSILÖLLINEN]),Kurssiluettelo[YKSILÖLLINEN],0),2),0)","v":0},{"$f":"IFERROR(INDEX(Kurssiluettelo[],MATCH(SUMPRODUCT((Kurssiluettelo[PÄIVÄ]=Lukujärjestys[[#Headers],[MAANANTAI]])*(ROUNDDOWN($B27,10)>=ROUNDDOWN(Kurssiluettelo[ALKAMISAIKA],10))*($B27<=Kurssiluettelo[PÄÄTTYMISAIKA]),Kurssiluettelo[YKSILÖLLINEN]),Kurssiluettelo[YKSILÖLLINEN],0),2),0)","v":"WR-121"},{"$f":"IFERROR(INDEX(Kurssiluettelo[],MATCH(SUMPRODUCT((Kurssiluettelo[PÄIVÄ]=Lukujärjestys[[#Headers],[TIISTAI]])*(ROUNDDOWN($B27,10)>=ROUNDDOWN(Kurssiluettelo[ALKAMISAIKA],10))*($B27<=Kurssiluettelo[PÄÄTTYMISAIKA]),Kurssiluettelo[YKSILÖLLINEN]),Kurssiluettelo[YKSILÖLLINEN],0),2),0)","v":0},{"$f":"IFERROR(INDEX(Kurssiluettelo[],MATCH(SUMPRODUCT((Kurssiluettelo[PÄIVÄ]=Lukujärjestys[[#Headers],[KESKIVIIKKO]])*(ROUNDDOWN($B27,10)>=ROUNDDOWN(Kurssiluettelo[ALKAMISAIKA],10))*($B27<=Kurssiluettelo[PÄÄTTYMISAIKA]),Kurssiluettelo[YKSILÖLLINEN]),Kurssiluettelo[YKSILÖLLINEN],0),2),0)","v":"WR-121"},{"$f":"IFERROR(INDEX(Kurssiluettelo[],MATCH(SUMPRODUCT((Kurssiluettelo[PÄIVÄ]=Lukujärjestys[[#Headers],[TORSTAI]])*(ROUNDDOWN($B27,10)>=ROUNDDOWN(Kurssiluettelo[ALKAMISAIKA],10))*($B27<=Kurssiluettelo[PÄÄTTYMISAIKA]),Kurssiluettelo[YKSILÖLLINEN]),Kurssiluettelo[YKSILÖLLINEN],0),2),0)","v":0},{"$f":"IFERROR(INDEX(Kurssiluettelo[],MATCH(SUMPRODUCT((Kurssiluettelo[PÄIVÄ]=Lukujärjestys[[#Headers],[PERJANTAI]])*(ROUNDDOWN($B27,10)>=ROUNDDOWN(Kurssiluettelo[ALKAMISAIKA],10))*($B27<=Kurssiluettelo[PÄÄTTYMISAIKA]),Kurssiluettelo[YKSILÖLLINEN]),Kurssiluettelo[YKSILÖLLINEN],0),2),0)","v":0},{"$f":"IFERROR(INDEX(Kurssiluettelo[],MATCH(SUMPRODUCT((Kurssiluettelo[PÄIVÄ]=Lukujärjestys[[#Headers],[LAUANTAI]])*(ROUNDDOWN($B27,10)>=ROUNDDOWN(Kurssiluettelo[ALKAMISAIKA],10))*($B27<=Kurssiluettelo[PÄÄTTYMISAIKA]),Kurssiluettelo[YKSILÖLLINEN]),Kurssiluettelo[YKSILÖLLINEN],0),2),0)","v":0}]
[null,"14:00:00",{"$f":"IFERROR(INDEX(Kurssiluettelo[],MATCH(SUMPRODUCT((Kurssiluettelo[PÄIVÄ]=Lukujärjestys[[#Headers],[SUNNUNTAI]])*(ROUNDDOWN($B28,10)>=ROUNDDOWN(Kurssiluettelo[ALKAMISAIKA],10))*($B28<=Kurssiluettelo[PÄÄTTYMISAIKA]),Kurssiluettelo[YKSILÖLLINEN]),Kurssiluettelo[YKSILÖLLINEN],0),2),0)","v":0},{"$f":"IFERROR(INDEX(Kurssiluettelo[],MATCH(SUMPRODUCT((Kurssiluettelo[PÄIVÄ]=Lukujärjestys[[#Headers],[MAANANTAI]])*(ROUNDDOWN($B28,10)>=ROUNDDOWN(Kurssiluettelo[ALKAMISAIKA],10))*($B28<=Kurssiluettelo[PÄÄTTYMISAIKA]),Kurssiluettelo[YKSILÖLLINEN]),Kurssiluettelo[YKSILÖLLINEN],0),2),0)","v":"WR-121"},{"$f":"IFERROR(INDEX(Kurssiluettelo[],MATCH(SUMPRODUCT((Kurssiluettelo[PÄIVÄ]=Lukujärjestys[[#Headers],[TIISTAI]])*(ROUNDDOWN($B28,10)>=ROUNDDOWN(Kurssiluettelo[ALKAMISAIKA],10))*($B28<=Kurssiluettelo[PÄÄTTYMISAIKA]),Kurssiluettelo[YKSILÖLLINEN]),Kurssiluettelo[YKSILÖLLINEN],0),2),0)","v":0},{"$f":"IFERROR(INDEX(Kurssiluettelo[],MATCH(SUMPRODUCT((Kurssiluettelo[PÄIVÄ]=Lukujärjestys[[#Headers],[KESKIVIIKKO]])*(ROUNDDOWN($B28,10)>=ROUNDDOWN(Kurssiluettelo[ALKAMISAIKA],10))*($B28<=Kurssiluettelo[PÄÄTTYMISAIKA]),Kurssiluettelo[YKSILÖLLINEN]),Kurssiluettelo[YKSILÖLLINEN],0),2),0)","v":"WR-121"},{"$f":"IFERROR(INDEX(Kurssiluettelo[],MATCH(SUMPRODUCT((Kurssiluettelo[PÄIVÄ]=Lukujärjestys[[#Headers],[TORSTAI]])*(ROUNDDOWN($B28,10)>=ROUNDDOWN(Kurssiluettelo[ALKAMISAIKA],10))*($B28<=Kurssiluettelo[PÄÄTTYMISAIKA]),Kurssiluettelo[YKSILÖLLINEN]),Kurssiluettelo[YKSILÖLLINEN],0),2),0)","v":0},{"$f":"IFERROR(INDEX(Kurssiluettelo[],MATCH(SUMPRODUCT((Kurssiluettelo[PÄIVÄ]=Lukujärjestys[[#Headers],[PERJANTAI]])*(ROUNDDOWN($B28,10)>=ROUNDDOWN(Kurssiluettelo[ALKAMISAIKA],10))*($B28<=Kurssiluettelo[PÄÄTTYMISAIKA]),Kurssiluettelo[YKSILÖLLINEN]),Kurssiluettelo[YKSILÖLLINEN],0),2),0)","v":0},{"$f":"IFERROR(INDEX(Kurssiluettelo[],MATCH(SUMPRODUCT((Kurssiluettelo[PÄIVÄ]=Lukujärjestys[[#Headers],[LAUANTAI]])*(ROUNDDOWN($B28,10)>=ROUNDDOWN(Kurssiluettelo[ALKAMISAIKA],10))*($B28<=Kurssiluettelo[PÄÄTTYMISAIKA]),Kurssiluettelo[YKSILÖLLINEN]),Kurssiluettelo[YKSILÖLLINEN],0),2),0)","v":0}]
[null,"14:15:00",{"$f":"IFERROR(INDEX(Kurssiluettelo[],MATCH(SUMPRODUCT((Kurssiluettelo[PÄIVÄ]=Lukujärjestys[[#Headers],[SUNNUNTAI]])*(ROUNDDOWN($B29,10)>=ROUNDDOWN(Kurssiluettelo[ALKAMISAIKA],10))*($B29<=Kurssiluettelo[PÄÄTTYMISAIKA]),Kurssiluettelo[YKSILÖLLINEN]),Kurssiluettelo[YKSILÖLLINEN],0),2),0)","v":0},{"$f":"IFERROR(INDEX(Kurssiluettelo[],MATCH(SUMPRODUCT((Kurssiluettelo[PÄIVÄ]=Lukujärjestys[[#Headers],[MAANANTAI]])*(ROUNDDOWN($B29,10)>=ROUNDDOWN(Kurssiluettelo[ALKAMISAIKA],10))*($B29<=Kurssiluettelo[PÄÄTTYMISAIKA]),Kurssiluettelo[YKSILÖLLINEN]),Kurssiluettelo[YKSILÖLLINEN],0),2),0)","v":0},{"$f":"IFERROR(INDEX(Kurssiluettelo[],MATCH(SUMPRODUCT((Kurssiluettelo[PÄIVÄ]=Lukujärjestys[[#Headers],[TIISTAI]])*(ROUNDDOWN($B29,10)>=ROUNDDOWN(Kurssiluettelo[ALKAMISAIKA],10))*($B29<=Kurssiluettelo[PÄÄTTYMISAIKA]),Kurssiluettelo[YKSILÖLLINEN]),Kurssiluettelo[YKSILÖLLINEN],0),2),0)","v":0},{"$f":"IFERROR(INDEX(Kurssiluettelo[],MATCH(SUMPRODUCT((Kurssiluettelo[PÄIVÄ]=Lukujärjestys[[#Headers],[KESKIVIIKKO]])*(ROUNDDOWN($B29,10)>=ROUNDDOWN(Kurssiluettelo[ALKAMISAIKA],10))*($B29<=Kurssiluettelo[PÄÄTTYMISAIKA]),Kurssiluettelo[YKSILÖLLINEN]),Kurssiluettelo[YKSILÖLLINEN],0),2),0)","v":0},{"$f":"IFERROR(INDEX(Kurssiluettelo[],MATCH(SUMPRODUCT((Kurssiluettelo[PÄIVÄ]=Lukujärjestys[[#Headers],[TORSTAI]])*(ROUNDDOWN($B29,10)>=ROUNDDOWN(Kurssiluettelo[ALKAMISAIKA],10))*($B29<=Kurssiluettelo[PÄÄTTYMISAIKA]),Kurssiluettelo[YKSILÖLLINEN]),Kurssiluettelo[YKSILÖLLINEN],0),2),0)","v":0},{"$f":"IFERROR(INDEX(Kurssiluettelo[],MATCH(SUMPRODUCT((Kurssiluettelo[PÄIVÄ]=Lukujärjestys[[#Headers],[PERJANTAI]])*(ROUNDDOWN($B29,10)>=ROUNDDOWN(Kurssiluettelo[ALKAMISAIKA],10))*($B29<=Kurssiluettelo[PÄÄTTYMISAIKA]),Kurssiluettelo[YKSILÖLLINEN]),Kurssiluettelo[YKSILÖLLINEN],0),2),0)","v":0},{"$f":"IFERROR(INDEX(Kurssiluettelo[],MATCH(SUMPRODUCT((Kurssiluettelo[PÄIVÄ]=Lukujärjestys[[#Headers],[LAUANTAI]])*(ROUNDDOWN($B29,10)>=ROUNDDOWN(Kurssiluettelo[ALKAMISAIKA],10))*($B29<=Kurssiluettelo[PÄÄTTYMISAIKA]),Kurssiluettelo[YKSILÖLLINEN]),Kurssiluettelo[YKSILÖLLINEN],0),2),0)","v":0}]
[null,"14:30:00",{"$f":"IFERROR(INDEX(Kurssiluettelo[],MATCH(SUMPRODUCT((Kurssiluettelo[PÄIVÄ]=Lukujärjestys[[#Headers],[SUNNUNTAI]])*(ROUNDDOWN($B30,10)>=ROUNDDOWN(Kurssiluettelo[ALKAMISAIKA],10))*($B30<=Kurssiluettelo[PÄÄTTYMISAIKA]),Kurssiluettelo[YKSILÖLLINEN]),Kurssiluettelo[YKSILÖLLINEN],0),2),0)","v":0},{"$f":"IFERROR(INDEX(Kurssiluettelo[],MATCH(SUMPRODUCT((Kurssiluettelo[PÄIVÄ]=Lukujärjestys[[#Headers],[MAANANTAI]])*(ROUNDDOWN($B30,10)>=ROUNDDOWN(Kurssiluettelo[ALKAMISAIKA],10))*($B30<=Kurssiluettelo[PÄÄTTYMISAIKA]),Kurssiluettelo[YKSILÖLLINEN]),Kurssiluettelo[YKSILÖLLINEN],0),2),0)","v":0},{"$f":"IFERROR(INDEX(Kurssiluettelo[],MATCH(SUMPRODUCT((Kurssiluettelo[PÄIVÄ]=Lukujärjestys[[#Headers],[TIISTAI]])*(ROUNDDOWN($B30,10)>=ROUNDDOWN(Kurssiluettelo[ALKAMISAIKA],10))*($B30<=Kurssiluettelo[PÄÄTTYMISAIKA]),Kurssiluettelo[YKSILÖLLINEN]),Kurssiluettelo[YKSILÖLLINEN],0),2),0)","v":0},{"$f":"IFERROR(INDEX(Kurssiluettelo[],MATCH(SUMPRODUCT((Kurssiluettelo[PÄIVÄ]=Lukujärjestys[[#Headers],[KESKIVIIKKO]])*(ROUNDDOWN($B30,10)>=ROUNDDOWN(Kurssiluettelo[ALKAMISAIKA],10))*($B30<=Kurssiluettelo[PÄÄTTYMISAIKA]),Kurssiluettelo[YKSILÖLLINEN]),Kurssiluettelo[YKSILÖLLINEN],0),2),0)","v":0},{"$f":"IFERROR(INDEX(Kurssiluettelo[],MATCH(SUMPRODUCT((Kurssiluettelo[PÄIVÄ]=Lukujärjestys[[#Headers],[TORSTAI]])*(ROUNDDOWN($B30,10)>=ROUNDDOWN(Kurssiluettelo[ALKAMISAIKA],10))*($B30<=Kurssiluettelo[PÄÄTTYMISAIKA]),Kurssiluettelo[YKSILÖLLINEN]),Kurssiluettelo[YKSILÖLLINEN],0),2),0)","v":0},{"$f":"IFERROR(INDEX(Kurssiluettelo[],MATCH(SUMPRODUCT((Kurssiluettelo[PÄIVÄ]=Lukujärjestys[[#Headers],[PERJANTAI]])*(ROUNDDOWN($B30,10)>=ROUNDDOWN(Kurssiluettelo[ALKAMISAIKA],10))*($B30<=Kurssiluettelo[PÄÄTTYMISAIKA]),Kurssiluettelo[YKSILÖLLINEN]),Kurssiluettelo[YKSILÖLLINEN],0),2),0)","v":0},{"$f":"IFERROR(INDEX(Kurssiluettelo[],MATCH(SUMPRODUCT((Kurssiluettelo[PÄIVÄ]=Lukujärjestys[[#Headers],[LAUANTAI]])*(ROUNDDOWN($B30,10)>=ROUNDDOWN(Kurssiluettelo[ALKAMISAIKA],10))*($B30<=Kurssiluettelo[PÄÄTTYMISAIKA]),Kurssiluettelo[YKSILÖLLINEN]),Kurssiluettelo[YKSILÖLLINEN],0),2),0)","v":0}]
[null,"14:45:00",{"$f":"IFERROR(INDEX(Kurssiluettelo[],MATCH(SUMPRODUCT((Kurssiluettelo[PÄIVÄ]=Lukujärjestys[[#Headers],[SUNNUNTAI]])*(ROUNDDOWN($B31,10)>=ROUNDDOWN(Kurssiluettelo[ALKAMISAIKA],10))*($B31<=Kurssiluettelo[PÄÄTTYMISAIKA]),Kurssiluettelo[YKSILÖLLINEN]),Kurssiluettelo[YKSILÖLLINEN],0),2),0)","v":0},{"$f":"IFERROR(INDEX(Kurssiluettelo[],MATCH(SUMPRODUCT((Kurssiluettelo[PÄIVÄ]=Lukujärjestys[[#Headers],[MAANANTAI]])*(ROUNDDOWN($B31,10)>=ROUNDDOWN(Kurssiluettelo[ALKAMISAIKA],10))*($B31<=Kurssiluettelo[PÄÄTTYMISAIKA]),Kurssiluettelo[YKSILÖLLINEN]),Kurssiluettelo[YKSILÖLLINEN],0),2),0)","v":0},{"$f":"IFERROR(INDEX(Kurssiluettelo[],MATCH(SUMPRODUCT((Kurssiluettelo[PÄIVÄ]=Lukujärjestys[[#Headers],[TIISTAI]])*(ROUNDDOWN($B31,10)>=ROUNDDOWN(Kurssiluettelo[ALKAMISAIKA],10))*($B31<=Kurssiluettelo[PÄÄTTYMISAIKA]),Kurssiluettelo[YKSILÖLLINEN]),Kurssiluettelo[YKSILÖLLINEN],0),2),0)","v":0},{"$f":"IFERROR(INDEX(Kurssiluettelo[],MATCH(SUMPRODUCT((Kurssiluettelo[PÄIVÄ]=Lukujärjestys[[#Headers],[KESKIVIIKKO]])*(ROUNDDOWN($B31,10)>=ROUNDDOWN(Kurssiluettelo[ALKAMISAIKA],10))*($B31<=Kurssiluettelo[PÄÄTTYMISAIKA]),Kurssiluettelo[YKSILÖLLINEN]),Kurssiluettelo[YKSILÖLLINEN],0),2),0)","v":0},{"$f":"IFERROR(INDEX(Kurssiluettelo[],MATCH(SUMPRODUCT((Kurssiluettelo[PÄIVÄ]=Lukujärjestys[[#Headers],[TORSTAI]])*(ROUNDDOWN($B31,10)>=ROUNDDOWN(Kurssiluettelo[ALKAMISAIKA],10))*($B31<=Kurssiluettelo[PÄÄTTYMISAIKA]),Kurssiluettelo[YKSILÖLLINEN]),Kurssiluettelo[YKSILÖLLINEN],0),2),0)","v":0},{"$f":"IFERROR(INDEX(Kurssiluettelo[],MATCH(SUMPRODUCT((Kurssiluettelo[PÄIVÄ]=Lukujärjestys[[#Headers],[PERJANTAI]])*(ROUNDDOWN($B31,10)>=ROUNDDOWN(Kurssiluettelo[ALKAMISAIKA],10))*($B31<=Kurssiluettelo[PÄÄTTYMISAIKA]),Kurssiluettelo[YKSILÖLLINEN]),Kurssiluettelo[YKSILÖLLINEN],0),2),0)","v":0},{"$f":"IFERROR(INDEX(Kurssiluettelo[],MATCH(SUMPRODUCT((Kurssiluettelo[PÄIVÄ]=Lukujärjestys[[#Headers],[LAUANTAI]])*(ROUNDDOWN($B31,10)>=ROUNDDOWN(Kurssiluettelo[ALKAMISAIKA],10))*($B31<=Kurssiluettelo[PÄÄTTYMISAIKA]),Kurssiluettelo[YKSILÖLLINEN]),Kurssiluettelo[YKSILÖLLINEN],0),2),0)","v":0}]
[null,"15:00:00",{"$f":"IFERROR(INDEX(Kurssiluettelo[],MATCH(SUMPRODUCT((Kurssiluettelo[PÄIVÄ]=Lukujärjestys[[#Headers],[SUNNUNTAI]])*(ROUNDDOWN($B32,10)>=ROUNDDOWN(Kurssiluettelo[ALKAMISAIKA],10))*($B32<=Kurssiluettelo[PÄÄTTYMISAIKA]),Kurssiluettelo[YKSILÖLLINEN]),Kurssiluettelo[YKSILÖLLINEN],0),2),0)","v":0},{"$f":"IFERROR(INDEX(Kurssiluettelo[],MATCH(SUMPRODUCT((Kurssiluettelo[PÄIVÄ]=Lukujärjestys[[#Headers],[MAANANTAI]])*(ROUNDDOWN($B32,10)>=ROUNDDOWN(Kurssiluettelo[ALKAMISAIKA],10))*($B32<=Kurssiluettelo[PÄÄTTYMISAIKA]),Kurssiluettelo[YKSILÖLLINEN]),Kurssiluettelo[YKSILÖLLINEN],0),2),0)","v":0},{"$f":"IFERROR(INDEX(Kurssiluettelo[],MATCH(SUMPRODUCT((Kurssiluettelo[PÄIVÄ]=Lukujärjestys[[#Headers],[TIISTAI]])*(ROUNDDOWN($B32,10)>=ROUNDDOWN(Kurssiluettelo[ALKAMISAIKA],10))*($B32<=Kurssiluettelo[PÄÄTTYMISAIKA]),Kurssiluettelo[YKSILÖLLINEN]),Kurssiluettelo[YKSILÖLLINEN],0),2),0)","v":0},{"$f":"IFERROR(INDEX(Kurssiluettelo[],MATCH(SUMPRODUCT((Kurssiluettelo[PÄIVÄ]=Lukujärjestys[[#Headers],[KESKIVIIKKO]])*(ROUNDDOWN($B32,10)>=ROUNDDOWN(Kurssiluettelo[ALKAMISAIKA],10))*($B32<=Kurssiluettelo[PÄÄTTYMISAIKA]),Kurssiluettelo[YKSILÖLLINEN]),Kurssiluettelo[YKSILÖLLINEN],0),2),0)","v":0},{"$f":"IFERROR(INDEX(Kurssiluettelo[],MATCH(SUMPRODUCT((Kurssiluettelo[PÄIVÄ]=Lukujärjestys[[#Headers],[TORSTAI]])*(ROUNDDOWN($B32,10)>=ROUNDDOWN(Kurssiluettelo[ALKAMISAIKA],10))*($B32<=Kurssiluettelo[PÄÄTTYMISAIKA]),Kurssiluettelo[YKSILÖLLINEN]),Kurssiluettelo[YKSILÖLLINEN],0),2),0)","v":0},{"$f":"IFERROR(INDEX(Kurssiluettelo[],MATCH(SUMPRODUCT((Kurssiluettelo[PÄIVÄ]=Lukujärjestys[[#Headers],[PERJANTAI]])*(ROUNDDOWN($B32,10)>=ROUNDDOWN(Kurssiluettelo[ALKAMISAIKA],10))*($B32<=Kurssiluettelo[PÄÄTTYMISAIKA]),Kurssiluettelo[YKSILÖLLINEN]),Kurssiluettelo[YKSILÖLLINEN],0),2),0)","v":0},{"$f":"IFERROR(INDEX(Kurssiluettelo[],MATCH(SUMPRODUCT((Kurssiluettelo[PÄIVÄ]=Lukujärjestys[[#Headers],[LAUANTAI]])*(ROUNDDOWN($B32,10)>=ROUNDDOWN(Kurssiluettelo[ALKAMISAIKA],10))*($B32<=Kurssiluettelo[PÄÄTTYMISAIKA]),Kurssiluettelo[YKSILÖLLINEN]),Kurssiluettelo[YKSILÖLLINEN],0),2),0)","v":0}]
[null,"15:15:00",{"$f":"IFERROR(INDEX(Kurssiluettelo[],MATCH(SUMPRODUCT((Kurssiluettelo[PÄIVÄ]=Lukujärjestys[[#Headers],[SUNNUNTAI]])*(ROUNDDOWN($B33,10)>=ROUNDDOWN(Kurssiluettelo[ALKAMISAIKA],10))*($B33<=Kurssiluettelo[PÄÄTTYMISAIKA]),Kurssiluettelo[YKSILÖLLINEN]),Kurssiluettelo[YKSILÖLLINEN],0),2),0)","v":0},{"$f":"IFERROR(INDEX(Kurssiluettelo[],MATCH(SUMPRODUCT((Kurssiluettelo[PÄIVÄ]=Lukujärjestys[[#Headers],[MAANANTAI]])*(ROUNDDOWN($B33,10)>=ROUNDDOWN(Kurssiluettelo[ALKAMISAIKA],10))*($B33<=Kurssiluettelo[PÄÄTTYMISAIKA]),Kurssiluettelo[YKSILÖLLINEN]),Kurssiluettelo[YKSILÖLLINEN],0),2),0)","v":0},{"$f":"IFERROR(INDEX(Kurssiluettelo[],MATCH(SUMPRODUCT((Kurssiluettelo[PÄIVÄ]=Lukujärjestys[[#Headers],[TIISTAI]])*(ROUNDDOWN($B33,10)>=ROUNDDOWN(Kurssiluettelo[ALKAMISAIKA],10))*($B33<=Kurssiluettelo[PÄÄTTYMISAIKA]),Kurssiluettelo[YKSILÖLLINEN]),Kurssiluettelo[YKSILÖLLINEN],0),2),0)","v":0},{"$f":"IFERROR(INDEX(Kurssiluettelo[],MATCH(SUMPRODUCT((Kurssiluettelo[PÄIVÄ]=Lukujärjestys[[#Headers],[KESKIVIIKKO]])*(ROUNDDOWN($B33,10)>=ROUNDDOWN(Kurssiluettelo[ALKAMISAIKA],10))*($B33<=Kurssiluettelo[PÄÄTTYMISAIKA]),Kurssiluettelo[YKSILÖLLINEN]),Kurssiluettelo[YKSILÖLLINEN],0),2),0)","v":0},{"$f":"IFERROR(INDEX(Kurssiluettelo[],MATCH(SUMPRODUCT((Kurssiluettelo[PÄIVÄ]=Lukujärjestys[[#Headers],[TORSTAI]])*(ROUNDDOWN($B33,10)>=ROUNDDOWN(Kurssiluettelo[ALKAMISAIKA],10))*($B33<=Kurssiluettelo[PÄÄTTYMISAIKA]),Kurssiluettelo[YKSILÖLLINEN]),Kurssiluettelo[YKSILÖLLINEN],0),2),0)","v":0},{"$f":"IFERROR(INDEX(Kurssiluettelo[],MATCH(SUMPRODUCT((Kurssiluettelo[PÄIVÄ]=Lukujärjestys[[#Headers],[PERJANTAI]])*(ROUNDDOWN($B33,10)>=ROUNDDOWN(Kurssiluettelo[ALKAMISAIKA],10))*($B33<=Kurssiluettelo[PÄÄTTYMISAIKA]),Kurssiluettelo[YKSILÖLLINEN]),Kurssiluettelo[YKSILÖLLINEN],0),2),0)","v":0},{"$f":"IFERROR(INDEX(Kurssiluettelo[],MATCH(SUMPRODUCT((Kurssiluettelo[PÄIVÄ]=Lukujärjestys[[#Headers],[LAUANTAI]])*(ROUNDDOWN($B33,10)>=ROUNDDOWN(Kurssiluettelo[ALKAMISAIKA],10))*($B33<=Kurssiluettelo[PÄÄTTYMISAIKA]),Kurssiluettelo[YKSILÖLLINEN]),Kurssiluettelo[YKSILÖLLINEN],0),2),0)","v":0}]
[null,"15:30:00",{"$f":"IFERROR(INDEX(Kurssiluettelo[],MATCH(SUMPRODUCT((Kurssiluettelo[PÄIVÄ]=Lukujärjestys[[#Headers],[SUNNUNTAI]])*(ROUNDDOWN($B34,10)>=ROUNDDOWN(Kurssiluettelo[ALKAMISAIKA],10))*($B34<=Kurssiluettelo[PÄÄTTYMISAIKA]),Kurssiluettelo[YKSILÖLLINEN]),Kurssiluettelo[YKSILÖLLINEN],0),2),0)","v":0},{"$f":"IFERROR(INDEX(Kurssiluettelo[],MATCH(SUMPRODUCT((Kurssiluettelo[PÄIVÄ]=Lukujärjestys[[#Headers],[MAANANTAI]])*(ROUNDDOWN($B34,10)>=ROUNDDOWN(Kurssiluettelo[ALKAMISAIKA],10))*($B34<=Kurssiluettelo[PÄÄTTYMISAIKA]),Kurssiluettelo[YKSILÖLLINEN]),Kurssiluettelo[YKSILÖLLINEN],0),2),0)","v":0},{"$f":"IFERROR(INDEX(Kurssiluettelo[],MATCH(SUMPRODUCT((Kurssiluettelo[PÄIVÄ]=Lukujärjestys[[#Headers],[TIISTAI]])*(ROUNDDOWN($B34,10)>=ROUNDDOWN(Kurssiluettelo[ALKAMISAIKA],10))*($B34<=Kurssiluettelo[PÄÄTTYMISAIKA]),Kurssiluettelo[YKSILÖLLINEN]),Kurssiluettelo[YKSILÖLLINEN],0),2),0)","v":0},{"$f":"IFERROR(INDEX(Kurssiluettelo[],MATCH(SUMPRODUCT((Kurssiluettelo[PÄIVÄ]=Lukujärjestys[[#Headers],[KESKIVIIKKO]])*(ROUNDDOWN($B34,10)>=ROUNDDOWN(Kurssiluettelo[ALKAMISAIKA],10))*($B34<=Kurssiluettelo[PÄÄTTYMISAIKA]),Kurssiluettelo[YKSILÖLLINEN]),Kurssiluettelo[YKSILÖLLINEN],0),2),0)","v":0},{"$f":"IFERROR(INDEX(Kurssiluettelo[],MATCH(SUMPRODUCT((Kurssiluettelo[PÄIVÄ]=Lukujärjestys[[#Headers],[TORSTAI]])*(ROUNDDOWN($B34,10)>=ROUNDDOWN(Kurssiluettelo[ALKAMISAIKA],10))*($B34<=Kurssiluettelo[PÄÄTTYMISAIKA]),Kurssiluettelo[YKSILÖLLINEN]),Kurssiluettelo[YKSILÖLLINEN],0),2),0)","v":0},{"$f":"IFERROR(INDEX(Kurssiluettelo[],MATCH(SUMPRODUCT((Kurssiluettelo[PÄIVÄ]=Lukujärjestys[[#Headers],[PERJANTAI]])*(ROUNDDOWN($B34,10)>=ROUNDDOWN(Kurssiluettelo[ALKAMISAIKA],10))*($B34<=Kurssiluettelo[PÄÄTTYMISAIKA]),Kurssiluettelo[YKSILÖLLINEN]),Kurssiluettelo[YKSILÖLLINEN],0),2),0)","v":0},{"$f":"IFERROR(INDEX(Kurssiluettelo[],MATCH(SUMPRODUCT((Kurssiluettelo[PÄIVÄ]=Lukujärjestys[[#Headers],[LAUANTAI]])*(ROUNDDOWN($B34,10)>=ROUNDDOWN(Kurssiluettelo[ALKAMISAIKA],10))*($B34<=Kurssiluettelo[PÄÄTTYMISAIKA]),Kurssiluettelo[YKSILÖLLINEN]),Kurssiluettelo[YKSILÖLLINEN],0),2),0)","v":0}]
[null,"15:45:00",{"$f":"IFERROR(INDEX(Kurssiluettelo[],MATCH(SUMPRODUCT((Kurssiluettelo[PÄIVÄ]=Lukujärjestys[[#Headers],[SUNNUNTAI]])*(ROUNDDOWN($B35,10)>=ROUNDDOWN(Kurssiluettelo[ALKAMISAIKA],10))*($B35<=Kurssiluettelo[PÄÄTTYMISAIKA]),Kurssiluettelo[YKSILÖLLINEN]),Kurssiluettelo[YKSILÖLLINEN],0),2),0)","v":0},{"$f":"IFERROR(INDEX(Kurssiluettelo[],MATCH(SUMPRODUCT((Kurssiluettelo[PÄIVÄ]=Lukujärjestys[[#Headers],[MAANANTAI]])*(ROUNDDOWN($B35,10)>=ROUNDDOWN(Kurssiluettelo[ALKAMISAIKA],10))*($B35<=Kurssiluettelo[PÄÄTTYMISAIKA]),Kurssiluettelo[YKSILÖLLINEN]),Kurssiluettelo[YKSILÖLLINEN],0),2),0)","v":0},{"$f":"IFERROR(INDEX(Kurssiluettelo[],MATCH(SUMPRODUCT((Kurssiluettelo[PÄIVÄ]=Lukujärjestys[[#Headers],[TIISTAI]])*(ROUNDDOWN($B35,10)>=ROUNDDOWN(Kurssiluettelo[ALKAMISAIKA],10))*($B35<=Kurssiluettelo[PÄÄTTYMISAIKA]),Kurssiluettelo[YKSILÖLLINEN]),Kurssiluettelo[YKSILÖLLINEN],0),2),0)","v":0},{"$f":"IFERROR(INDEX(Kurssiluettelo[],MATCH(SUMPRODUCT((Kurssiluettelo[PÄIVÄ]=Lukujärjestys[[#Headers],[KESKIVIIKKO]])*(ROUNDDOWN($B35,10)>=ROUNDDOWN(Kurssiluettelo[ALKAMISAIKA],10))*($B35<=Kurssiluettelo[PÄÄTTYMISAIKA]),Kurssiluettelo[YKSILÖLLINEN]),Kurssiluettelo[YKSILÖLLINEN],0),2),0)","v":0},{"$f":"IFERROR(INDEX(Kurssiluettelo[],MATCH(SUMPRODUCT((Kurssiluettelo[PÄIVÄ]=Lukujärjestys[[#Headers],[TORSTAI]])*(ROUNDDOWN($B35,10)>=ROUNDDOWN(Kurssiluettelo[ALKAMISAIKA],10))*($B35<=Kurssiluettelo[PÄÄTTYMISAIKA]),Kurssiluettelo[YKSILÖLLINEN]),Kurssiluettelo[YKSILÖLLINEN],0),2),0)","v":0},{"$f":"IFERROR(INDEX(Kurssiluettelo[],MATCH(SUMPRODUCT((Kurssiluettelo[PÄIVÄ]=Lukujärjestys[[#Headers],[PERJANTAI]])*(ROUNDDOWN($B35,10)>=ROUNDDOWN(Kurssiluettelo[ALKAMISAIKA],10))*($B35<=Kurssiluettelo[PÄÄTTYMISAIKA]),Kurssiluettelo[YKSILÖLLINEN]),Kurssiluettelo[YKSILÖLLINEN],0),2),0)","v":0},{"$f":"IFERROR(INDEX(Kurssiluettelo[],MATCH(SUMPRODUCT((Kurssiluettelo[PÄIVÄ]=Lukujärjestys[[#Headers],[LAUANTAI]])*(ROUNDDOWN($B35,10)>=ROUNDDOWN(Kurssiluettelo[ALKAMISAIKA],10))*($B35<=Kurssiluettelo[PÄÄTTYMISAIKA]),Kurssiluettelo[YKSILÖLLINEN]),Kurssiluettelo[YKSILÖLLINEN],0),2),0)","v":0}]
[null,"16:00:00",{"$f":"IFERROR(INDEX(Kurssiluettelo[],MATCH(SUMPRODUCT((Kurssiluettelo[PÄIVÄ]=Lukujärjestys[[#Headers],[SUNNUNTAI]])*(ROUNDDOWN($B36,10)>=ROUNDDOWN(Kurssiluettelo[ALKAMISAIKA],10))*($B36<=Kurssiluettelo[PÄÄTTYMISAIKA]),Kurssiluettelo[YKSILÖLLINEN]),Kurssiluettelo[YKSILÖLLINEN],0),2),0)","v":0},{"$f":"IFERROR(INDEX(Kurssiluettelo[],MATCH(SUMPRODUCT((Kurssiluettelo[PÄIVÄ]=Lukujärjestys[[#Headers],[MAANANTAI]])*(ROUNDDOWN($B36,10)>=ROUNDDOWN(Kurssiluettelo[ALKAMISAIKA],10))*($B36<=Kurssiluettelo[PÄÄTTYMISAIKA]),Kurssiluettelo[YKSILÖLLINEN]),Kurssiluettelo[YKSILÖLLINEN],0),2),0)","v":"SP-111"},{"$f":"IFERROR(INDEX(Kurssiluettelo[],MATCH(SUMPRODUCT((Kurssiluettelo[PÄIVÄ]=Lukujärjestys[[#Headers],[TIISTAI]])*(ROUNDDOWN($B36,10)>=ROUNDDOWN(Kurssiluettelo[ALKAMISAIKA],10))*($B36<=Kurssiluettelo[PÄÄTTYMISAIKA]),Kurssiluettelo[YKSILÖLLINEN]),Kurssiluettelo[YKSILÖLLINEN],0),2),0)","v":0},{"$f":"IFERROR(INDEX(Kurssiluettelo[],MATCH(SUMPRODUCT((Kurssiluettelo[PÄIVÄ]=Lukujärjestys[[#Headers],[KESKIVIIKKO]])*(ROUNDDOWN($B36,10)>=ROUNDDOWN(Kurssiluettelo[ALKAMISAIKA],10))*($B36<=Kurssiluettelo[PÄÄTTYMISAIKA]),Kurssiluettelo[YKSILÖLLINEN]),Kurssiluettelo[YKSILÖLLINEN],0),2),0)","v":0},{"$f":"IFERROR(INDEX(Kurssiluettelo[],MATCH(SUMPRODUCT((Kurssiluettelo[PÄIVÄ]=Lukujärjestys[[#Headers],[TORSTAI]])*(ROUNDDOWN($B36,10)>=ROUNDDOWN(Kurssiluettelo[ALKAMISAIKA],10))*($B36<=Kurssiluettelo[PÄÄTTYMISAIKA]),Kurssiluettelo[YKSILÖLLINEN]),Kurssiluettelo[YKSILÖLLINEN],0),2),0)","v":0},{"$f":"IFERROR(INDEX(Kurssiluettelo[],MATCH(SUMPRODUCT((Kurssiluettelo[PÄIVÄ]=Lukujärjestys[[#Headers],[PERJANTAI]])*(ROUNDDOWN($B36,10)>=ROUNDDOWN(Kurssiluettelo[ALKAMISAIKA],10))*($B36<=Kurssiluettelo[PÄÄTTYMISAIKA]),Kurssiluettelo[YKSILÖLLINEN]),Kurssiluettelo[YKSILÖLLINEN],0),2),0)","v":0},{"$f":"IFERROR(INDEX(Kurssiluettelo[],MATCH(SUMPRODUCT((Kurssiluettelo[PÄIVÄ]=Lukujärjestys[[#Headers],[LAUANTAI]])*(ROUNDDOWN($B36,10)>=ROUNDDOWN(Kurssiluettelo[ALKAMISAIKA],10))*($B36<=Kurssiluettelo[PÄÄTTYMISAIKA]),Kurssiluettelo[YKSILÖLLINEN]),Kurssiluettelo[YKSILÖLLINEN],0),2),0)","v":0}]
[null,{"$f":"B36+Lisäys","v":"16:15:00"},{"$f":"IFERROR(INDEX(Kurssiluettelo[],MATCH(SUMPRODUCT((Kurssiluettelo[PÄIVÄ]=Lukujärjestys[[#Headers],[SUNNUNTAI]])*(ROUNDDOWN($B37,10)>=ROUNDDOWN(Kurssiluettelo[ALKAMISAIKA],10))*($B37<=Kurssiluettelo[PÄÄTTYMISAIKA]),Kurssiluettelo[YKSILÖLLINEN]),Kurssiluettelo[YKSILÖLLINEN],0),2),0)","v":0},{"$f":"IFERROR(INDEX(Kurssiluettelo[],MATCH(SUMPRODUCT((Kurssiluettelo[PÄIVÄ]=Lukujärjestys[[#Headers],[MAANANTAI]])*(ROUNDDOWN($B37,10)>=ROUNDDOWN(Kurssiluettelo[ALKAMISAIKA],10))*($B37<=Kurssiluettelo[PÄÄTTYMISAIKA]),Kurssiluettelo[YKSILÖLLINEN]),Kurssiluettelo[YKSILÖLLINEN],0),2),0)","v":"SP-111"},{"$f":"IFERROR(INDEX(Kurssiluettelo[],MATCH(SUMPRODUCT((Kurssiluettelo[PÄIVÄ]=Lukujärjestys[[#Headers],[TIISTAI]])*(ROUNDDOWN($B37,10)>=ROUNDDOWN(Kurssiluettelo[ALKAMISAIKA],10))*($B37<=Kurssiluettelo[PÄÄTTYMISAIKA]),Kurssiluettelo[YKSILÖLLINEN]),Kurssiluettelo[YKSILÖLLINEN],0),2),0)","v":0},{"$f":"IFERROR(INDEX(Kurssiluettelo[],MATCH(SUMPRODUCT((Kurssiluettelo[PÄIVÄ]=Lukujärjestys[[#Headers],[KESKIVIIKKO]])*(ROUNDDOWN($B37,10)>=ROUNDDOWN(Kurssiluettelo[ALKAMISAIKA],10))*($B37<=Kurssiluettelo[PÄÄTTYMISAIKA]),Kurssiluettelo[YKSILÖLLINEN]),Kurssiluettelo[YKSILÖLLINEN],0),2),0)","v":0},{"$f":"IFERROR(INDEX(Kurssiluettelo[],MATCH(SUMPRODUCT((Kurssiluettelo[PÄIVÄ]=Lukujärjestys[[#Headers],[TORSTAI]])*(ROUNDDOWN($B37,10)>=ROUNDDOWN(Kurssiluettelo[ALKAMISAIKA],10))*($B37<=Kurssiluettelo[PÄÄTTYMISAIKA]),Kurssiluettelo[YKSILÖLLINEN]),Kurssiluettelo[YKSILÖLLINEN],0),2),0)","v":0},{"$f":"IFERROR(INDEX(Kurssiluettelo[],MATCH(SUMPRODUCT((Kurssiluettelo[PÄIVÄ]=Lukujärjestys[[#Headers],[PERJANTAI]])*(ROUNDDOWN($B37,10)>=ROUNDDOWN(Kurssiluettelo[ALKAMISAIKA],10))*($B37<=Kurssiluettelo[PÄÄTTYMISAIKA]),Kurssiluettelo[YKSILÖLLINEN]),Kurssiluettelo[YKSILÖLLINEN],0),2),0)","v":0},{"$f":"IFERROR(INDEX(Kurssiluettelo[],MATCH(SUMPRODUCT((Kurssiluettelo[PÄIVÄ]=Lukujärjestys[[#Headers],[LAUANTAI]])*(ROUNDDOWN($B37,10)>=ROUNDDOWN(Kurssiluettelo[ALKAMISAIKA],10))*($B37<=Kurssiluettelo[PÄÄTTYMISAIKA]),Kurssiluettelo[YKSILÖLLINEN]),Kurssiluettelo[YKSILÖLLINEN],0),2),0)","v":0}]
[null,"16:30:00",{"$f":"IFERROR(INDEX(Kurssiluettelo[],MATCH(SUMPRODUCT((Kurssiluettelo[PÄIVÄ]=Lukujärjestys[[#Headers],[SUNNUNTAI]])*(ROUNDDOWN($B38,10)>=ROUNDDOWN(Kurssiluettelo[ALKAMISAIKA],10))*($B38<=Kurssiluettelo[PÄÄTTYMISAIKA]),Kurssiluettelo[YKSILÖLLINEN]),Kurssiluettelo[YKSILÖLLINEN],0),2),0)","v":0},{"$f":"IFERROR(INDEX(Kurssiluettelo[],MATCH(SUMPRODUCT((Kurssiluettelo[PÄIVÄ]=Lukujärjestys[[#Headers],[MAANANTAI]])*(ROUNDDOWN($B38,10)>=ROUNDDOWN(Kurssiluettelo[ALKAMISAIKA],10))*($B38<=Kurssiluettelo[PÄÄTTYMISAIKA]),Kurssiluettelo[YKSILÖLLINEN]),Kurssiluettelo[YKSILÖLLINEN],0),2),0)","v":"SP-111"},{"$f":"IFERROR(INDEX(Kurssiluettelo[],MATCH(SUMPRODUCT((Kurssiluettelo[PÄIVÄ]=Lukujärjestys[[#Headers],[TIISTAI]])*(ROUNDDOWN($B38,10)>=ROUNDDOWN(Kurssiluettelo[ALKAMISAIKA],10))*($B38<=Kurssiluettelo[PÄÄTTYMISAIKA]),Kurssiluettelo[YKSILÖLLINEN]),Kurssiluettelo[YKSILÖLLINEN],0),2),0)","v":0},{"$f":"IFERROR(INDEX(Kurssiluettelo[],MATCH(SUMPRODUCT((Kurssiluettelo[PÄIVÄ]=Lukujärjestys[[#Headers],[KESKIVIIKKO]])*(ROUNDDOWN($B38,10)>=ROUNDDOWN(Kurssiluettelo[ALKAMISAIKA],10))*($B38<=Kurssiluettelo[PÄÄTTYMISAIKA]),Kurssiluettelo[YKSILÖLLINEN]),Kurssiluettelo[YKSILÖLLINEN],0),2),0)","v":0},{"$f":"IFERROR(INDEX(Kurssiluettelo[],MATCH(SUMPRODUCT((Kurssiluettelo[PÄIVÄ]=Lukujärjestys[[#Headers],[TORSTAI]])*(ROUNDDOWN($B38,10)>=ROUNDDOWN(Kurssiluettelo[ALKAMISAIKA],10))*($B38<=Kurssiluettelo[PÄÄTTYMISAIKA]),Kurssiluettelo[YKSILÖLLINEN]),Kurssiluettelo[YKSILÖLLINEN],0),2),0)","v":0},{"$f":"IFERROR(INDEX(Kurssiluettelo[],MATCH(SUMPRODUCT((Kurssiluettelo[PÄIVÄ]=Lukujärjestys[[#Headers],[PERJANTAI]])*(ROUNDDOWN($B38,10)>=ROUNDDOWN(Kurssiluettelo[ALKAMISAIKA],10))*($B38<=Kurssiluettelo[PÄÄTTYMISAIKA]),Kurssiluettelo[YKSILÖLLINEN]),Kurssiluettelo[YKSILÖLLINEN],0),2),0)","v":0},{"$f":"IFERROR(INDEX(Kurssiluettelo[],MATCH(SUMPRODUCT((Kurssiluettelo[PÄIVÄ]=Lukujärjestys[[#Headers],[LAUANTAI]])*(ROUNDDOWN($B38,10)>=ROUNDDOWN(Kurssiluettelo[ALKAMISAIKA],10))*($B38<=Kurssiluettelo[PÄÄTTYMISAIKA]),Kurssiluettelo[YKSILÖLLINEN]),Kurssiluettelo[YKSILÖLLINEN],0),2),0)","v":0}]
[null,"16:45:00",{"$f":"IFERROR(INDEX(Kurssiluettelo[],MATCH(SUMPRODUCT((Kurssiluettelo[PÄIVÄ]=Lukujärjestys[[#Headers],[SUNNUNTAI]])*(ROUNDDOWN($B39,10)>=ROUNDDOWN(Kurssiluettelo[ALKAMISAIKA],10))*($B39<=Kurssiluettelo[PÄÄTTYMISAIKA]),Kurssiluettelo[YKSILÖLLINEN]),Kurssiluettelo[YKSILÖLLINEN],0),2),0)","v":0},{"$f":"IFERROR(INDEX(Kurssiluettelo[],MATCH(SUMPRODUCT((Kurssiluettelo[PÄIVÄ]=Lukujärjestys[[#Headers],[MAANANTAI]])*(ROUNDDOWN($B39,10)>=ROUNDDOWN(Kurssiluettelo[ALKAMISAIKA],10))*($B39<=Kurssiluettelo[PÄÄTTYMISAIKA]),Kurssiluettelo[YKSILÖLLINEN]),Kurssiluettelo[YKSILÖLLINEN],0),2),0)","v":"SP-111"},{"$f":"IFERROR(INDEX(Kurssiluettelo[],MATCH(SUMPRODUCT((Kurssiluettelo[PÄIVÄ]=Lukujärjestys[[#Headers],[TIISTAI]])*(ROUNDDOWN($B39,10)>=ROUNDDOWN(Kurssiluettelo[ALKAMISAIKA],10))*($B39<=Kurssiluettelo[PÄÄTTYMISAIKA]),Kurssiluettelo[YKSILÖLLINEN]),Kurssiluettelo[YKSILÖLLINEN],0),2),0)","v":0},{"$f":"IFERROR(INDEX(Kurssiluettelo[],MATCH(SUMPRODUCT((Kurssiluettelo[PÄIVÄ]=Lukujärjestys[[#Headers],[KESKIVIIKKO]])*(ROUNDDOWN($B39,10)>=ROUNDDOWN(Kurssiluettelo[ALKAMISAIKA],10))*($B39<=Kurssiluettelo[PÄÄTTYMISAIKA]),Kurssiluettelo[YKSILÖLLINEN]),Kurssiluettelo[YKSILÖLLINEN],0),2),0)","v":0},{"$f":"IFERROR(INDEX(Kurssiluettelo[],MATCH(SUMPRODUCT((Kurssiluettelo[PÄIVÄ]=Lukujärjestys[[#Headers],[TORSTAI]])*(ROUNDDOWN($B39,10)>=ROUNDDOWN(Kurssiluettelo[ALKAMISAIKA],10))*($B39<=Kurssiluettelo[PÄÄTTYMISAIKA]),Kurssiluettelo[YKSILÖLLINEN]),Kurssiluettelo[YKSILÖLLINEN],0),2),0)","v":0},{"$f":"IFERROR(INDEX(Kurssiluettelo[],MATCH(SUMPRODUCT((Kurssiluettelo[PÄIVÄ]=Lukujärjestys[[#Headers],[PERJANTAI]])*(ROUNDDOWN($B39,10)>=ROUNDDOWN(Kurssiluettelo[ALKAMISAIKA],10))*($B39<=Kurssiluettelo[PÄÄTTYMISAIKA]),Kurssiluettelo[YKSILÖLLINEN]),Kurssiluettelo[YKSILÖLLINEN],0),2),0)","v":0},{"$f":"IFERROR(INDEX(Kurssiluettelo[],MATCH(SUMPRODUCT((Kurssiluettelo[PÄIVÄ]=Lukujärjestys[[#Headers],[LAUANTAI]])*(ROUNDDOWN($B39,10)>=ROUNDDOWN(Kurssiluettelo[ALKAMISAIKA],10))*($B39<=Kurssiluettelo[PÄÄTTYMISAIKA]),Kurssiluettelo[YKSILÖLLINEN]),Kurssiluettelo[YKSILÖLLINEN],0),2),0)","v":0}]
[null,"17:00:00",{"$f":"IFERROR(INDEX(Kurssiluettelo[],MATCH(SUMPRODUCT((Kurssiluettelo[PÄIVÄ]=Lukujärjestys[[#Headers],[SUNNUNTAI]])*(ROUNDDOWN($B40,10)>=ROUNDDOWN(Kurssiluettelo[ALKAMISAIKA],10))*($B40<=Kurssiluettelo[PÄÄTTYMISAIKA]),Kurssiluettelo[YKSILÖLLINEN]),Kurssiluettelo[YKSILÖLLINEN],0),2),0)","v":0},{"$f":"IFERROR(INDEX(Kurssiluettelo[],MATCH(SUMPRODUCT((Kurssiluettelo[PÄIVÄ]=Lukujärjestys[[#Headers],[MAANANTAI]])*(ROUNDDOWN($B40,10)>=ROUNDDOWN(Kurssiluettelo[ALKAMISAIKA],10))*($B40<=Kurssiluettelo[PÄÄTTYMISAIKA]),Kurssiluettelo[YKSILÖLLINEN]),Kurssiluettelo[YKSILÖLLINEN],0),2),0)","v":"SP-111"},{"$f":"IFERROR(INDEX(Kurssiluettelo[],MATCH(SUMPRODUCT((Kurssiluettelo[PÄIVÄ]=Lukujärjestys[[#Headers],[TIISTAI]])*(ROUNDDOWN($B40,10)>=ROUNDDOWN(Kurssiluettelo[ALKAMISAIKA],10))*($B40<=Kurssiluettelo[PÄÄTTYMISAIKA]),Kurssiluettelo[YKSILÖLLINEN]),Kurssiluettelo[YKSILÖLLINEN],0),2),0)","v":0},{"$f":"IFERROR(INDEX(Kurssiluettelo[],MATCH(SUMPRODUCT((Kurssiluettelo[PÄIVÄ]=Lukujärjestys[[#Headers],[KESKIVIIKKO]])*(ROUNDDOWN($B40,10)>=ROUNDDOWN(Kurssiluettelo[ALKAMISAIKA],10))*($B40<=Kurssiluettelo[PÄÄTTYMISAIKA]),Kurssiluettelo[YKSILÖLLINEN]),Kurssiluettelo[YKSILÖLLINEN],0),2),0)","v":0},{"$f":"IFERROR(INDEX(Kurssiluettelo[],MATCH(SUMPRODUCT((Kurssiluettelo[PÄIVÄ]=Lukujärjestys[[#Headers],[TORSTAI]])*(ROUNDDOWN($B40,10)>=ROUNDDOWN(Kurssiluettelo[ALKAMISAIKA],10))*($B40<=Kurssiluettelo[PÄÄTTYMISAIKA]),Kurssiluettelo[YKSILÖLLINEN]),Kurssiluettelo[YKSILÖLLINEN],0),2),0)","v":0},{"$f":"IFERROR(INDEX(Kurssiluettelo[],MATCH(SUMPRODUCT((Kurssiluettelo[PÄIVÄ]=Lukujärjestys[[#Headers],[PERJANTAI]])*(ROUNDDOWN($B40,10)>=ROUNDDOWN(Kurssiluettelo[ALKAMISAIKA],10))*($B40<=Kurssiluettelo[PÄÄTTYMISAIKA]),Kurssiluettelo[YKSILÖLLINEN]),Kurssiluettelo[YKSILÖLLINEN],0),2),0)","v":0},{"$f":"IFERROR(INDEX(Kurssiluettelo[],MATCH(SUMPRODUCT((Kurssiluettelo[PÄIVÄ]=Lukujärjestys[[#Headers],[LAUANTAI]])*(ROUNDDOWN($B40,10)>=ROUNDDOWN(Kurssiluettelo[ALKAMISAIKA],10))*($B40<=Kurssiluettelo[PÄÄTTYMISAIKA]),Kurssiluettelo[YKSILÖLLINEN]),Kurssiluettelo[YKSILÖLLINEN],0),2),0)","v":0}]
[null,"17:15:00",{"$f":"IFERROR(INDEX(Kurssiluettelo[],MATCH(SUMPRODUCT((Kurssiluettelo[PÄIVÄ]=Lukujärjestys[[#Headers],[SUNNUNTAI]])*(ROUNDDOWN($B41,10)>=ROUNDDOWN(Kurssiluettelo[ALKAMISAIKA],10))*($B41<=Kurssiluettelo[PÄÄTTYMISAIKA]),Kurssiluettelo[YKSILÖLLINEN]),Kurssiluettelo[YKSILÖLLINEN],0),2),0)","v":0},{"$f":"IFERROR(INDEX(Kurssiluettelo[],MATCH(SUMPRODUCT((Kurssiluettelo[PÄIVÄ]=Lukujärjestys[[#Headers],[MAANANTAI]])*(ROUNDDOWN($B41,10)>=ROUNDDOWN(Kurssiluettelo[ALKAMISAIKA],10))*($B41<=Kurssiluettelo[PÄÄTTYMISAIKA]),Kurssiluettelo[YKSILÖLLINEN]),Kurssiluettelo[YKSILÖLLINEN],0),2),0)","v":0},{"$f":"IFERROR(INDEX(Kurssiluettelo[],MATCH(SUMPRODUCT((Kurssiluettelo[PÄIVÄ]=Lukujärjestys[[#Headers],[TIISTAI]])*(ROUNDDOWN($B41,10)>=ROUNDDOWN(Kurssiluettelo[ALKAMISAIKA],10))*($B41<=Kurssiluettelo[PÄÄTTYMISAIKA]),Kurssiluettelo[YKSILÖLLINEN]),Kurssiluettelo[YKSILÖLLINEN],0),2),0)","v":0},{"$f":"IFERROR(INDEX(Kurssiluettelo[],MATCH(SUMPRODUCT((Kurssiluettelo[PÄIVÄ]=Lukujärjestys[[#Headers],[KESKIVIIKKO]])*(ROUNDDOWN($B41,10)>=ROUNDDOWN(Kurssiluettelo[ALKAMISAIKA],10))*($B41<=Kurssiluettelo[PÄÄTTYMISAIKA]),Kurssiluettelo[YKSILÖLLINEN]),Kurssiluettelo[YKSILÖLLINEN],0),2),0)","v":0},{"$f":"IFERROR(INDEX(Kurssiluettelo[],MATCH(SUMPRODUCT((Kurssiluettelo[PÄIVÄ]=Lukujärjestys[[#Headers],[TORSTAI]])*(ROUNDDOWN($B41,10)>=ROUNDDOWN(Kurssiluettelo[ALKAMISAIKA],10))*($B41<=Kurssiluettelo[PÄÄTTYMISAIKA]),Kurssiluettelo[YKSILÖLLINEN]),Kurssiluettelo[YKSILÖLLINEN],0),2),0)","v":0},{"$f":"IFERROR(INDEX(Kurssiluettelo[],MATCH(SUMPRODUCT((Kurssiluettelo[PÄIVÄ]=Lukujärjestys[[#Headers],[PERJANTAI]])*(ROUNDDOWN($B41,10)>=ROUNDDOWN(Kurssiluettelo[ALKAMISAIKA],10))*($B41<=Kurssiluettelo[PÄÄTTYMISAIKA]),Kurssiluettelo[YKSILÖLLINEN]),Kurssiluettelo[YKSILÖLLINEN],0),2),0)","v":0},{"$f":"IFERROR(INDEX(Kurssiluettelo[],MATCH(SUMPRODUCT((Kurssiluettelo[PÄIVÄ]=Lukujärjestys[[#Headers],[LAUANTAI]])*(ROUNDDOWN($B41,10)>=ROUNDDOWN(Kurssiluettelo[ALKAMISAIKA],10))*($B41<=Kurssiluettelo[PÄÄTTYMISAIKA]),Kurssiluettelo[YKSILÖLLINEN]),Kurssiluettelo[YKSILÖLLINEN],0),2),0)","v":0}]
[null,"17:30:00",{"$f":"IFERROR(INDEX(Kurssiluettelo[],MATCH(SUMPRODUCT((Kurssiluettelo[PÄIVÄ]=Lukujärjestys[[#Headers],[SUNNUNTAI]])*(ROUNDDOWN($B42,10)>=ROUNDDOWN(Kurssiluettelo[ALKAMISAIKA],10))*($B42<=Kurssiluettelo[PÄÄTTYMISAIKA]),Kurssiluettelo[YKSILÖLLINEN]),Kurssiluettelo[YKSILÖLLINEN],0),2),0)","v":0},{"$f":"IFERROR(INDEX(Kurssiluettelo[],MATCH(SUMPRODUCT((Kurssiluettelo[PÄIVÄ]=Lukujärjestys[[#Headers],[MAANANTAI]])*(ROUNDDOWN($B42,10)>=ROUNDDOWN(Kurssiluettelo[ALKAMISAIKA],10))*($B42<=Kurssiluettelo[PÄÄTTYMISAIKA]),Kurssiluettelo[YKSILÖLLINEN]),Kurssiluettelo[YKSILÖLLINEN],0),2),0)","v":0},{"$f":"IFERROR(INDEX(Kurssiluettelo[],MATCH(SUMPRODUCT((Kurssiluettelo[PÄIVÄ]=Lukujärjestys[[#Headers],[TIISTAI]])*(ROUNDDOWN($B42,10)>=ROUNDDOWN(Kurssiluettelo[ALKAMISAIKA],10))*($B42<=Kurssiluettelo[PÄÄTTYMISAIKA]),Kurssiluettelo[YKSILÖLLINEN]),Kurssiluettelo[YKSILÖLLINEN],0),2),0)","v":0},{"$f":"IFERROR(INDEX(Kurssiluettelo[],MATCH(SUMPRODUCT((Kurssiluettelo[PÄIVÄ]=Lukujärjestys[[#Headers],[KESKIVIIKKO]])*(ROUNDDOWN($B42,10)>=ROUNDDOWN(Kurssiluettelo[ALKAMISAIKA],10))*($B42<=Kurssiluettelo[PÄÄTTYMISAIKA]),Kurssiluettelo[YKSILÖLLINEN]),Kurssiluettelo[YKSILÖLLINEN],0),2),0)","v":0},{"$f":"IFERROR(INDEX(Kurssiluettelo[],MATCH(SUMPRODUCT((Kurssiluettelo[PÄIVÄ]=Lukujärjestys[[#Headers],[TORSTAI]])*(ROUNDDOWN($B42,10)>=ROUNDDOWN(Kurssiluettelo[ALKAMISAIKA],10))*($B42<=Kurssiluettelo[PÄÄTTYMISAIKA]),Kurssiluettelo[YKSILÖLLINEN]),Kurssiluettelo[YKSILÖLLINEN],0),2),0)","v":0},{"$f":"IFERROR(INDEX(Kurssiluettelo[],MATCH(SUMPRODUCT((Kurssiluettelo[PÄIVÄ]=Lukujärjestys[[#Headers],[PERJANTAI]])*(ROUNDDOWN($B42,10)>=ROUNDDOWN(Kurssiluettelo[ALKAMISAIKA],10))*($B42<=Kurssiluettelo[PÄÄTTYMISAIKA]),Kurssiluettelo[YKSILÖLLINEN]),Kurssiluettelo[YKSILÖLLINEN],0),2),0)","v":0},{"$f":"IFERROR(INDEX(Kurssiluettelo[],MATCH(SUMPRODUCT((Kurssiluettelo[PÄIVÄ]=Lukujärjestys[[#Headers],[LAUANTAI]])*(ROUNDDOWN($B42,10)>=ROUNDDOWN(Kurssiluettelo[ALKAMISAIKA],10))*($B42<=Kurssiluettelo[PÄÄTTYMISAIKA]),Kurssiluettelo[YKSILÖLLINEN]),Kurssiluettelo[YKSILÖLLINEN],0),2),0)","v":0}]
[null,"17:45:00",{"$f":"IFERROR(INDEX(Kurssiluettelo[],MATCH(SUMPRODUCT((Kurssiluettelo[PÄIVÄ]=Lukujärjestys[[#Headers],[SUNNUNTAI]])*(ROUNDDOWN($B43,10)>=ROUNDDOWN(Kurssiluettelo[ALKAMISAIKA],10))*($B43<=Kurssiluettelo[PÄÄTTYMISAIKA]),Kurssiluettelo[YKSILÖLLINEN]),Kurssiluettelo[YKSILÖLLINEN],0),2),0)","v":0},{"$f":"IFERROR(INDEX(Kurssiluettelo[],MATCH(SUMPRODUCT((Kurssiluettelo[PÄIVÄ]=Lukujärjestys[[#Headers],[MAANANTAI]])*(ROUNDDOWN($B43,10)>=ROUNDDOWN(Kurssiluettelo[ALKAMISAIKA],10))*($B43<=Kurssiluettelo[PÄÄTTYMISAIKA]),Kurssiluettelo[YKSILÖLLINEN]),Kurssiluettelo[YKSILÖLLINEN],0),2),0)","v":0},{"$f":"IFERROR(INDEX(Kurssiluettelo[],MATCH(SUMPRODUCT((Kurssiluettelo[PÄIVÄ]=Lukujärjestys[[#Headers],[TIISTAI]])*(ROUNDDOWN($B43,10)>=ROUNDDOWN(Kurssiluettelo[ALKAMISAIKA],10))*($B43<=Kurssiluettelo[PÄÄTTYMISAIKA]),Kurssiluettelo[YKSILÖLLINEN]),Kurssiluettelo[YKSILÖLLINEN],0),2),0)","v":0},{"$f":"IFERROR(INDEX(Kurssiluettelo[],MATCH(SUMPRODUCT((Kurssiluettelo[PÄIVÄ]=Lukujärjestys[[#Headers],[KESKIVIIKKO]])*(ROUNDDOWN($B43,10)>=ROUNDDOWN(Kurssiluettelo[ALKAMISAIKA],10))*($B43<=Kurssiluettelo[PÄÄTTYMISAIKA]),Kurssiluettelo[YKSILÖLLINEN]),Kurssiluettelo[YKSILÖLLINEN],0),2),0)","v":0},{"$f":"IFERROR(INDEX(Kurssiluettelo[],MATCH(SUMPRODUCT((Kurssiluettelo[PÄIVÄ]=Lukujärjestys[[#Headers],[TORSTAI]])*(ROUNDDOWN($B43,10)>=ROUNDDOWN(Kurssiluettelo[ALKAMISAIKA],10))*($B43<=Kurssiluettelo[PÄÄTTYMISAIKA]),Kurssiluettelo[YKSILÖLLINEN]),Kurssiluettelo[YKSILÖLLINEN],0),2),0)","v":0},{"$f":"IFERROR(INDEX(Kurssiluettelo[],MATCH(SUMPRODUCT((Kurssiluettelo[PÄIVÄ]=Lukujärjestys[[#Headers],[PERJANTAI]])*(ROUNDDOWN($B43,10)>=ROUNDDOWN(Kurssiluettelo[ALKAMISAIKA],10))*($B43<=Kurssiluettelo[PÄÄTTYMISAIKA]),Kurssiluettelo[YKSILÖLLINEN]),Kurssiluettelo[YKSILÖLLINEN],0),2),0)","v":0},{"$f":"IFERROR(INDEX(Kurssiluettelo[],MATCH(SUMPRODUCT((Kurssiluettelo[PÄIVÄ]=Lukujärjestys[[#Headers],[LAUANTAI]])*(ROUNDDOWN($B43,10)>=ROUNDDOWN(Kurssiluettelo[ALKAMISAIKA],10))*($B43<=Kurssiluettelo[PÄÄTTYMISAIKA]),Kurssiluettelo[YKSILÖLLINEN]),Kurssiluettelo[YKSILÖLLINEN],0),2),0)","v":0}]
[null,"18:00:00",{"$f":"IFERROR(INDEX(Kurssiluettelo[],MATCH(SUMPRODUCT((Kurssiluettelo[PÄIVÄ]=Lukujärjestys[[#Headers],[SUNNUNTAI]])*(ROUNDDOWN($B44,10)>=ROUNDDOWN(Kurssiluettelo[ALKAMISAIKA],10))*($B44<=Kurssiluettelo[PÄÄTTYMISAIKA]),Kurssiluettelo[YKSILÖLLINEN]),Kurssiluettelo[YKSILÖLLINEN],0),2),0)","v":0},{"$f":"IFERROR(INDEX(Kurssiluettelo[],MATCH(SUMPRODUCT((Kurssiluettelo[PÄIVÄ]=Lukujärjestys[[#Headers],[MAANANTAI]])*(ROUNDDOWN($B44,10)>=ROUNDDOWN(Kurssiluettelo[ALKAMISAIKA],10))*($B44<=Kurssiluettelo[PÄÄTTYMISAIKA]),Kurssiluettelo[YKSILÖLLINEN]),Kurssiluettelo[YKSILÖLLINEN],0),2),0)","v":0},{"$f":"IFERROR(INDEX(Kurssiluettelo[],MATCH(SUMPRODUCT((Kurssiluettelo[PÄIVÄ]=Lukujärjestys[[#Headers],[TIISTAI]])*(ROUNDDOWN($B44,10)>=ROUNDDOWN(Kurssiluettelo[ALKAMISAIKA],10))*($B44<=Kurssiluettelo[PÄÄTTYMISAIKA]),Kurssiluettelo[YKSILÖLLINEN]),Kurssiluettelo[YKSILÖLLINEN],0),2),0)","v":0},{"$f":"IFERROR(INDEX(Kurssiluettelo[],MATCH(SUMPRODUCT((Kurssiluettelo[PÄIVÄ]=Lukujärjestys[[#Headers],[KESKIVIIKKO]])*(ROUNDDOWN($B44,10)>=ROUNDDOWN(Kurssiluettelo[ALKAMISAIKA],10))*($B44<=Kurssiluettelo[PÄÄTTYMISAIKA]),Kurssiluettelo[YKSILÖLLINEN]),Kurssiluettelo[YKSILÖLLINEN],0),2),0)","v":0},{"$f":"IFERROR(INDEX(Kurssiluettelo[],MATCH(SUMPRODUCT((Kurssiluettelo[PÄIVÄ]=Lukujärjestys[[#Headers],[TORSTAI]])*(ROUNDDOWN($B44,10)>=ROUNDDOWN(Kurssiluettelo[ALKAMISAIKA],10))*($B44<=Kurssiluettelo[PÄÄTTYMISAIKA]),Kurssiluettelo[YKSILÖLLINEN]),Kurssiluettelo[YKSILÖLLINEN],0),2),0)","v":0},{"$f":"IFERROR(INDEX(Kurssiluettelo[],MATCH(SUMPRODUCT((Kurssiluettelo[PÄIVÄ]=Lukujärjestys[[#Headers],[PERJANTAI]])*(ROUNDDOWN($B44,10)>=ROUNDDOWN(Kurssiluettelo[ALKAMISAIKA],10))*($B44<=Kurssiluettelo[PÄÄTTYMISAIKA]),Kurssiluettelo[YKSILÖLLINEN]),Kurssiluettelo[YKSILÖLLINEN],0),2),0)","v":0},{"$f":"IFERROR(INDEX(Kurssiluettelo[],MATCH(SUMPRODUCT((Kurssiluettelo[PÄIVÄ]=Lukujärjestys[[#Headers],[LAUANTAI]])*(ROUNDDOWN($B44,10)>=ROUNDDOWN(Kurssiluettelo[ALKAMISAIKA],10))*($B44<=Kurssiluettelo[PÄÄTTYMISAIKA]),Kurssiluettelo[YKSILÖLLINEN]),Kurssiluettelo[YKSILÖLLINEN],0),2),0)","v":0}]
[null,"18:15:00",{"$f":"IFERROR(INDEX(Kurssiluettelo[],MATCH(SUMPRODUCT((Kurssiluettelo[PÄIVÄ]=Lukujärjestys[[#Headers],[SUNNUNTAI]])*(ROUNDDOWN($B45,10)>=ROUNDDOWN(Kurssiluettelo[ALKAMISAIKA],10))*($B45<=Kurssiluettelo[PÄÄTTYMISAIKA]),Kurssiluettelo[YKSILÖLLINEN]),Kurssiluettelo[YKSILÖLLINEN],0),2),0)","v":0},{"$f":"IFERROR(INDEX(Kurssiluettelo[],MATCH(SUMPRODUCT((Kurssiluettelo[PÄIVÄ]=Lukujärjestys[[#Headers],[MAANANTAI]])*(ROUNDDOWN($B45,10)>=ROUNDDOWN(Kurssiluettelo[ALKAMISAIKA],10))*($B45<=Kurssiluettelo[PÄÄTTYMISAIKA]),Kurssiluettelo[YKSILÖLLINEN]),Kurssiluettelo[YKSILÖLLINEN],0),2),0)","v":0},{"$f":"IFERROR(INDEX(Kurssiluettelo[],MATCH(SUMPRODUCT((Kurssiluettelo[PÄIVÄ]=Lukujärjestys[[#Headers],[TIISTAI]])*(ROUNDDOWN($B45,10)>=ROUNDDOWN(Kurssiluettelo[ALKAMISAIKA],10))*($B45<=Kurssiluettelo[PÄÄTTYMISAIKA]),Kurssiluettelo[YKSILÖLLINEN]),Kurssiluettelo[YKSILÖLLINEN],0),2),0)","v":0},{"$f":"IFERROR(INDEX(Kurssiluettelo[],MATCH(SUMPRODUCT((Kurssiluettelo[PÄIVÄ]=Lukujärjestys[[#Headers],[KESKIVIIKKO]])*(ROUNDDOWN($B45,10)>=ROUNDDOWN(Kurssiluettelo[ALKAMISAIKA],10))*($B45<=Kurssiluettelo[PÄÄTTYMISAIKA]),Kurssiluettelo[YKSILÖLLINEN]),Kurssiluettelo[YKSILÖLLINEN],0),2),0)","v":0},{"$f":"IFERROR(INDEX(Kurssiluettelo[],MATCH(SUMPRODUCT((Kurssiluettelo[PÄIVÄ]=Lukujärjestys[[#Headers],[TORSTAI]])*(ROUNDDOWN($B45,10)>=ROUNDDOWN(Kurssiluettelo[ALKAMISAIKA],10))*($B45<=Kurssiluettelo[PÄÄTTYMISAIKA]),Kurssiluettelo[YKSILÖLLINEN]),Kurssiluettelo[YKSILÖLLINEN],0),2),0)","v":0},{"$f":"IFERROR(INDEX(Kurssiluettelo[],MATCH(SUMPRODUCT((Kurssiluettelo[PÄIVÄ]=Lukujärjestys[[#Headers],[PERJANTAI]])*(ROUNDDOWN($B45,10)>=ROUNDDOWN(Kurssiluettelo[ALKAMISAIKA],10))*($B45<=Kurssiluettelo[PÄÄTTYMISAIKA]),Kurssiluettelo[YKSILÖLLINEN]),Kurssiluettelo[YKSILÖLLINEN],0),2),0)","v":0},{"$f":"IFERROR(INDEX(Kurssiluettelo[],MATCH(SUMPRODUCT((Kurssiluettelo[PÄIVÄ]=Lukujärjestys[[#Headers],[LAUANTAI]])*(ROUNDDOWN($B45,10)>=ROUNDDOWN(Kurssiluettelo[ALKAMISAIKA],10))*($B45<=Kurssiluettelo[PÄÄTTYMISAIKA]),Kurssiluettelo[YKSILÖLLINEN]),Kurssiluettelo[YKSILÖLLINEN],0),2),0)","v":0}]
[null,"18:30:00",{"$f":"IFERROR(INDEX(Kurssiluettelo[],MATCH(SUMPRODUCT((Kurssiluettelo[PÄIVÄ]=Lukujärjestys[[#Headers],[SUNNUNTAI]])*(ROUNDDOWN($B46,10)>=ROUNDDOWN(Kurssiluettelo[ALKAMISAIKA],10))*($B46<=Kurssiluettelo[PÄÄTTYMISAIKA]),Kurssiluettelo[YKSILÖLLINEN]),Kurssiluettelo[YKSILÖLLINEN],0),2),0)","v":0},{"$f":"IFERROR(INDEX(Kurssiluettelo[],MATCH(SUMPRODUCT((Kurssiluettelo[PÄIVÄ]=Lukujärjestys[[#Headers],[MAANANTAI]])*(ROUNDDOWN($B46,10)>=ROUNDDOWN(Kurssiluettelo[ALKAMISAIKA],10))*($B46<=Kurssiluettelo[PÄÄTTYMISAIKA]),Kurssiluettelo[YKSILÖLLINEN]),Kurssiluettelo[YKSILÖLLINEN],0),2),0)","v":0},{"$f":"IFERROR(INDEX(Kurssiluettelo[],MATCH(SUMPRODUCT((Kurssiluettelo[PÄIVÄ]=Lukujärjestys[[#Headers],[TIISTAI]])*(ROUNDDOWN($B46,10)>=ROUNDDOWN(Kurssiluettelo[ALKAMISAIKA],10))*($B46<=Kurssiluettelo[PÄÄTTYMISAIKA]),Kurssiluettelo[YKSILÖLLINEN]),Kurssiluettelo[YKSILÖLLINEN],0),2),0)","v":0},{"$f":"IFERROR(INDEX(Kurssiluettelo[],MATCH(SUMPRODUCT((Kurssiluettelo[PÄIVÄ]=Lukujärjestys[[#Headers],[KESKIVIIKKO]])*(ROUNDDOWN($B46,10)>=ROUNDDOWN(Kurssiluettelo[ALKAMISAIKA],10))*($B46<=Kurssiluettelo[PÄÄTTYMISAIKA]),Kurssiluettelo[YKSILÖLLINEN]),Kurssiluettelo[YKSILÖLLINEN],0),2),0)","v":0},{"$f":"IFERROR(INDEX(Kurssiluettelo[],MATCH(SUMPRODUCT((Kurssiluettelo[PÄIVÄ]=Lukujärjestys[[#Headers],[TORSTAI]])*(ROUNDDOWN($B46,10)>=ROUNDDOWN(Kurssiluettelo[ALKAMISAIKA],10))*($B46<=Kurssiluettelo[PÄÄTTYMISAIKA]),Kurssiluettelo[YKSILÖLLINEN]),Kurssiluettelo[YKSILÖLLINEN],0),2),0)","v":0},{"$f":"IFERROR(INDEX(Kurssiluettelo[],MATCH(SUMPRODUCT((Kurssiluettelo[PÄIVÄ]=Lukujärjestys[[#Headers],[PERJANTAI]])*(ROUNDDOWN($B46,10)>=ROUNDDOWN(Kurssiluettelo[ALKAMISAIKA],10))*($B46<=Kurssiluettelo[PÄÄTTYMISAIKA]),Kurssiluettelo[YKSILÖLLINEN]),Kurssiluettelo[YKSILÖLLINEN],0),2),0)","v":0},{"$f":"IFERROR(INDEX(Kurssiluettelo[],MATCH(SUMPRODUCT((Kurssiluettelo[PÄIVÄ]=Lukujärjestys[[#Headers],[LAUANTAI]])*(ROUNDDOWN($B46,10)>=ROUNDDOWN(Kurssiluettelo[ALKAMISAIKA],10))*($B46<=Kurssiluettelo[PÄÄTTYMISAIKA]),Kurssiluettelo[YKSILÖLLINEN]),Kurssiluettelo[YKSILÖLLINEN],0),2),0)","v":0}]
[null,"18:45:00",{"$f":"IFERROR(INDEX(Kurssiluettelo[],MATCH(SUMPRODUCT((Kurssiluettelo[PÄIVÄ]=Lukujärjestys[[#Headers],[SUNNUNTAI]])*(ROUNDDOWN($B47,10)>=ROUNDDOWN(Kurssiluettelo[ALKAMISAIKA],10))*($B47<=Kurssiluettelo[PÄÄTTYMISAIKA]),Kurssiluettelo[YKSILÖLLINEN]),Kurssiluettelo[YKSILÖLLINEN],0),2),0)","v":0},{"$f":"IFERROR(INDEX(Kurssiluettelo[],MATCH(SUMPRODUCT((Kurssiluettelo[PÄIVÄ]=Lukujärjestys[[#Headers],[MAANANTAI]])*(ROUNDDOWN($B47,10)>=ROUNDDOWN(Kurssiluettelo[ALKAMISAIKA],10))*($B47<=Kurssiluettelo[PÄÄTTYMISAIKA]),Kurssiluettelo[YKSILÖLLINEN]),Kurssiluettelo[YKSILÖLLINEN],0),2),0)","v":0},{"$f":"IFERROR(INDEX(Kurssiluettelo[],MATCH(SUMPRODUCT((Kurssiluettelo[PÄIVÄ]=Lukujärjestys[[#Headers],[TIISTAI]])*(ROUNDDOWN($B47,10)>=ROUNDDOWN(Kurssiluettelo[ALKAMISAIKA],10))*($B47<=Kurssiluettelo[PÄÄTTYMISAIKA]),Kurssiluettelo[YKSILÖLLINEN]),Kurssiluettelo[YKSILÖLLINEN],0),2),0)","v":0},{"$f":"IFERROR(INDEX(Kurssiluettelo[],MATCH(SUMPRODUCT((Kurssiluettelo[PÄIVÄ]=Lukujärjestys[[#Headers],[KESKIVIIKKO]])*(ROUNDDOWN($B47,10)>=ROUNDDOWN(Kurssiluettelo[ALKAMISAIKA],10))*($B47<=Kurssiluettelo[PÄÄTTYMISAIKA]),Kurssiluettelo[YKSILÖLLINEN]),Kurssiluettelo[YKSILÖLLINEN],0),2),0)","v":0},{"$f":"IFERROR(INDEX(Kurssiluettelo[],MATCH(SUMPRODUCT((Kurssiluettelo[PÄIVÄ]=Lukujärjestys[[#Headers],[TORSTAI]])*(ROUNDDOWN($B47,10)>=ROUNDDOWN(Kurssiluettelo[ALKAMISAIKA],10))*($B47<=Kurssiluettelo[PÄÄTTYMISAIKA]),Kurssiluettelo[YKSILÖLLINEN]),Kurssiluettelo[YKSILÖLLINEN],0),2),0)","v":0},{"$f":"IFERROR(INDEX(Kurssiluettelo[],MATCH(SUMPRODUCT((Kurssiluettelo[PÄIVÄ]=Lukujärjestys[[#Headers],[PERJANTAI]])*(ROUNDDOWN($B47,10)>=ROUNDDOWN(Kurssiluettelo[ALKAMISAIKA],10))*($B47<=Kurssiluettelo[PÄÄTTYMISAIKA]),Kurssiluettelo[YKSILÖLLINEN]),Kurssiluettelo[YKSILÖLLINEN],0),2),0)","v":0},{"$f":"IFERROR(INDEX(Kurssiluettelo[],MATCH(SUMPRODUCT((Kurssiluettelo[PÄIVÄ]=Lukujärjestys[[#Headers],[LAUANTAI]])*(ROUNDDOWN($B47,10)>=ROUNDDOWN(Kurssiluettelo[ALKAMISAIKA],10))*($B47<=Kurssiluettelo[PÄÄTTYMISAIKA]),Kurssiluettelo[YKSILÖLLINEN]),Kurssiluettelo[YKSILÖLLINEN],0),2),0)","v":0}]
[null,"19:00:00",{"$f":"IFERROR(INDEX(Kurssiluettelo[],MATCH(SUMPRODUCT((Kurssiluettelo[PÄIVÄ]=Lukujärjestys[[#Headers],[SUNNUNTAI]])*(ROUNDDOWN($B48,10)>=ROUNDDOWN(Kurssiluettelo[ALKAMISAIKA],10))*($B48<=Kurssiluettelo[PÄÄTTYMISAIKA]),Kurssiluettelo[YKSILÖLLINEN]),Kurssiluettelo[YKSILÖLLINEN],0),2),0)","v":0},{"$f":"IFERROR(INDEX(Kurssiluettelo[],MATCH(SUMPRODUCT((Kurssiluettelo[PÄIVÄ]=Lukujärjestys[[#Headers],[MAANANTAI]])*(ROUNDDOWN($B48,10)>=ROUNDDOWN(Kurssiluettelo[ALKAMISAIKA],10))*($B48<=Kurssiluettelo[PÄÄTTYMISAIKA]),Kurssiluettelo[YKSILÖLLINEN]),Kurssiluettelo[YKSILÖLLINEN],0),2),0)","v":0},{"$f":"IFERROR(INDEX(Kurssiluettelo[],MATCH(SUMPRODUCT((Kurssiluettelo[PÄIVÄ]=Lukujärjestys[[#Headers],[TIISTAI]])*(ROUNDDOWN($B48,10)>=ROUNDDOWN(Kurssiluettelo[ALKAMISAIKA],10))*($B48<=Kurssiluettelo[PÄÄTTYMISAIKA]),Kurssiluettelo[YKSILÖLLINEN]),Kurssiluettelo[YKSILÖLLINEN],0),2),0)","v":0},{"$f":"IFERROR(INDEX(Kurssiluettelo[],MATCH(SUMPRODUCT((Kurssiluettelo[PÄIVÄ]=Lukujärjestys[[#Headers],[KESKIVIIKKO]])*(ROUNDDOWN($B48,10)>=ROUNDDOWN(Kurssiluettelo[ALKAMISAIKA],10))*($B48<=Kurssiluettelo[PÄÄTTYMISAIKA]),Kurssiluettelo[YKSILÖLLINEN]),Kurssiluettelo[YKSILÖLLINEN],0),2),0)","v":0},{"$f":"IFERROR(INDEX(Kurssiluettelo[],MATCH(SUMPRODUCT((Kurssiluettelo[PÄIVÄ]=Lukujärjestys[[#Headers],[TORSTAI]])*(ROUNDDOWN($B48,10)>=ROUNDDOWN(Kurssiluettelo[ALKAMISAIKA],10))*($B48<=Kurssiluettelo[PÄÄTTYMISAIKA]),Kurssiluettelo[YKSILÖLLINEN]),Kurssiluettelo[YKSILÖLLINEN],0),2),0)","v":0},{"$f":"IFERROR(INDEX(Kurssiluettelo[],MATCH(SUMPRODUCT((Kurssiluettelo[PÄIVÄ]=Lukujärjestys[[#Headers],[PERJANTAI]])*(ROUNDDOWN($B48,10)>=ROUNDDOWN(Kurssiluettelo[ALKAMISAIKA],10))*($B48<=Kurssiluettelo[PÄÄTTYMISAIKA]),Kurssiluettelo[YKSILÖLLINEN]),Kurssiluettelo[YKSILÖLLINEN],0),2),0)","v":0},{"$f":"IFERROR(INDEX(Kurssiluettelo[],MATCH(SUMPRODUCT((Kurssiluettelo[PÄIVÄ]=Lukujärjestys[[#Headers],[LAUANTAI]])*(ROUNDDOWN($B48,10)>=ROUNDDOWN(Kurssiluettelo[ALKAMISAIKA],10))*($B48<=Kurssiluettelo[PÄÄTTYMISAIKA]),Kurssiluettelo[YKSILÖLLINEN]),Kurssiluettelo[YKSILÖLLINEN],0),2),0)","v":0}]
[null,"19:15:00",{"$f":"IFERROR(INDEX(Kurssiluettelo[],MATCH(SUMPRODUCT((Kurssiluettelo[PÄIVÄ]=Lukujärjestys[[#Headers],[SUNNUNTAI]])*(ROUNDDOWN($B49,10)>=ROUNDDOWN(Kurssiluettelo[ALKAMISAIKA],10))*($B49<=Kurssiluettelo[PÄÄTTYMISAIKA]),Kurssiluettelo[YKSILÖLLINEN]),Kurssiluettelo[YKSILÖLLINEN],0),2),0)","v":0},{"$f":"IFERROR(INDEX(Kurssiluettelo[],MATCH(SUMPRODUCT((Kurssiluettelo[PÄIVÄ]=Lukujärjestys[[#Headers],[MAANANTAI]])*(ROUNDDOWN($B49,10)>=ROUNDDOWN(Kurssiluettelo[ALKAMISAIKA],10))*($B49<=Kurssiluettelo[PÄÄTTYMISAIKA]),Kurssiluettelo[YKSILÖLLINEN]),Kurssiluettelo[YKSILÖLLINEN],0),2),0)","v":0},{"$f":"IFERROR(INDEX(Kurssiluettelo[],MATCH(SUMPRODUCT((Kurssiluettelo[PÄIVÄ]=Lukujärjestys[[#Headers],[TIISTAI]])*(ROUNDDOWN($B49,10)>=ROUNDDOWN(Kurssiluettelo[ALKAMISAIKA],10))*($B49<=Kurssiluettelo[PÄÄTTYMISAIKA]),Kurssiluettelo[YKSILÖLLINEN]),Kurssiluettelo[YKSILÖLLINEN],0),2),0)","v":0},{"$f":"IFERROR(INDEX(Kurssiluettelo[],MATCH(SUMPRODUCT((Kurssiluettelo[PÄIVÄ]=Lukujärjestys[[#Headers],[KESKIVIIKKO]])*(ROUNDDOWN($B49,10)>=ROUNDDOWN(Kurssiluettelo[ALKAMISAIKA],10))*($B49<=Kurssiluettelo[PÄÄTTYMISAIKA]),Kurssiluettelo[YKSILÖLLINEN]),Kurssiluettelo[YKSILÖLLINEN],0),2),0)","v":0},{"$f":"IFERROR(INDEX(Kurssiluettelo[],MATCH(SUMPRODUCT((Kurssiluettelo[PÄIVÄ]=Lukujärjestys[[#Headers],[TORSTAI]])*(ROUNDDOWN($B49,10)>=ROUNDDOWN(Kurssiluettelo[ALKAMISAIKA],10))*($B49<=Kurssiluettelo[PÄÄTTYMISAIKA]),Kurssiluettelo[YKSILÖLLINEN]),Kurssiluettelo[YKSILÖLLINEN],0),2),0)","v":0},{"$f":"IFERROR(INDEX(Kurssiluettelo[],MATCH(SUMPRODUCT((Kurssiluettelo[PÄIVÄ]=Lukujärjestys[[#Headers],[PERJANTAI]])*(ROUNDDOWN($B49,10)>=ROUNDDOWN(Kurssiluettelo[ALKAMISAIKA],10))*($B49<=Kurssiluettelo[PÄÄTTYMISAIKA]),Kurssiluettelo[YKSILÖLLINEN]),Kurssiluettelo[YKSILÖLLINEN],0),2),0)","v":0},{"$f":"IFERROR(INDEX(Kurssiluettelo[],MATCH(SUMPRODUCT((Kurssiluettelo[PÄIVÄ]=Lukujärjestys[[#Headers],[LAUANTAI]])*(ROUNDDOWN($B49,10)>=ROUNDDOWN(Kurssiluettelo[ALKAMISAIKA],10))*($B49<=Kurssiluettelo[PÄÄTTYMISAIKA]),Kurssiluettelo[YKSILÖLLINEN]),Kurssiluettelo[YKSILÖLLINEN],0),2),0)","v":0}]
[null,"19:30:00",{"$f":"IFERROR(INDEX(Kurssiluettelo[],MATCH(SUMPRODUCT((Kurssiluettelo[PÄIVÄ]=Lukujärjestys[[#Headers],[SUNNUNTAI]])*(ROUNDDOWN($B50,10)>=ROUNDDOWN(Kurssiluettelo[ALKAMISAIKA],10))*($B50<=Kurssiluettelo[PÄÄTTYMISAIKA]),Kurssiluettelo[YKSILÖLLINEN]),Kurssiluettelo[YKSILÖLLINEN],0),2),0)","v":0},{"$f":"IFERROR(INDEX(Kurssiluettelo[],MATCH(SUMPRODUCT((Kurssiluettelo[PÄIVÄ]=Lukujärjestys[[#Headers],[MAANANTAI]])*(ROUNDDOWN($B50,10)>=ROUNDDOWN(Kurssiluettelo[ALKAMISAIKA],10))*($B50<=Kurssiluettelo[PÄÄTTYMISAIKA]),Kurssiluettelo[YKSILÖLLINEN]),Kurssiluettelo[YKSILÖLLINEN],0),2),0)","v":0},{"$f":"IFERROR(INDEX(Kurssiluettelo[],MATCH(SUMPRODUCT((Kurssiluettelo[PÄIVÄ]=Lukujärjestys[[#Headers],[TIISTAI]])*(ROUNDDOWN($B50,10)>=ROUNDDOWN(Kurssiluettelo[ALKAMISAIKA],10))*($B50<=Kurssiluettelo[PÄÄTTYMISAIKA]),Kurssiluettelo[YKSILÖLLINEN]),Kurssiluettelo[YKSILÖLLINEN],0),2),0)","v":0},{"$f":"IFERROR(INDEX(Kurssiluettelo[],MATCH(SUMPRODUCT((Kurssiluettelo[PÄIVÄ]=Lukujärjestys[[#Headers],[KESKIVIIKKO]])*(ROUNDDOWN($B50,10)>=ROUNDDOWN(Kurssiluettelo[ALKAMISAIKA],10))*($B50<=Kurssiluettelo[PÄÄTTYMISAIKA]),Kurssiluettelo[YKSILÖLLINEN]),Kurssiluettelo[YKSILÖLLINEN],0),2),0)","v":0},{"$f":"IFERROR(INDEX(Kurssiluettelo[],MATCH(SUMPRODUCT((Kurssiluettelo[PÄIVÄ]=Lukujärjestys[[#Headers],[TORSTAI]])*(ROUNDDOWN($B50,10)>=ROUNDDOWN(Kurssiluettelo[ALKAMISAIKA],10))*($B50<=Kurssiluettelo[PÄÄTTYMISAIKA]),Kurssiluettelo[YKSILÖLLINEN]),Kurssiluettelo[YKSILÖLLINEN],0),2),0)","v":0},{"$f":"IFERROR(INDEX(Kurssiluettelo[],MATCH(SUMPRODUCT((Kurssiluettelo[PÄIVÄ]=Lukujärjestys[[#Headers],[PERJANTAI]])*(ROUNDDOWN($B50,10)>=ROUNDDOWN(Kurssiluettelo[ALKAMISAIKA],10))*($B50<=Kurssiluettelo[PÄÄTTYMISAIKA]),Kurssiluettelo[YKSILÖLLINEN]),Kurssiluettelo[YKSILÖLLINEN],0),2),0)","v":0},{"$f":"IFERROR(INDEX(Kurssiluettelo[],MATCH(SUMPRODUCT((Kurssiluettelo[PÄIVÄ]=Lukujärjestys[[#Headers],[LAUANTAI]])*(ROUNDDOWN($B50,10)>=ROUNDDOWN(Kurssiluettelo[ALKAMISAIKA],10))*($B50<=Kurssiluettelo[PÄÄTTYMISAIKA]),Kurssiluettelo[YKSILÖLLINEN]),Kurssiluettelo[YKSILÖLLINEN],0),2),0)","v":0}]
[null,"19:45:00",{"$f":"IFERROR(INDEX(Kurssiluettelo[],MATCH(SUMPRODUCT((Kurssiluettelo[PÄIVÄ]=Lukujärjestys[[#Headers],[SUNNUNTAI]])*(ROUNDDOWN($B51,10)>=ROUNDDOWN(Kurssiluettelo[ALKAMISAIKA],10))*($B51<=Kurssiluettelo[PÄÄTTYMISAIKA]),Kurssiluettelo[YKSILÖLLINEN]),Kurssiluettelo[YKSILÖLLINEN],0),2),0)","v":0},{"$f":"IFERROR(INDEX(Kurssiluettelo[],MATCH(SUMPRODUCT((Kurssiluettelo[PÄIVÄ]=Lukujärjestys[[#Headers],[MAANANTAI]])*(ROUNDDOWN($B51,10)>=ROUNDDOWN(Kurssiluettelo[ALKAMISAIKA],10))*($B51<=Kurssiluettelo[PÄÄTTYMISAIKA]),Kurssiluettelo[YKSILÖLLINEN]),Kurssiluettelo[YKSILÖLLINEN],0),2),0)","v":0},{"$f":"IFERROR(INDEX(Kurssiluettelo[],MATCH(SUMPRODUCT((Kurssiluettelo[PÄIVÄ]=Lukujärjestys[[#Headers],[TIISTAI]])*(ROUNDDOWN($B51,10)>=ROUNDDOWN(Kurssiluettelo[ALKAMISAIKA],10))*($B51<=Kurssiluettelo[PÄÄTTYMISAIKA]),Kurssiluettelo[YKSILÖLLINEN]),Kurssiluettelo[YKSILÖLLINEN],0),2),0)","v":0},{"$f":"IFERROR(INDEX(Kurssiluettelo[],MATCH(SUMPRODUCT((Kurssiluettelo[PÄIVÄ]=Lukujärjestys[[#Headers],[KESKIVIIKKO]])*(ROUNDDOWN($B51,10)>=ROUNDDOWN(Kurssiluettelo[ALKAMISAIKA],10))*($B51<=Kurssiluettelo[PÄÄTTYMISAIKA]),Kurssiluettelo[YKSILÖLLINEN]),Kurssiluettelo[YKSILÖLLINEN],0),2),0)","v":0},{"$f":"IFERROR(INDEX(Kurssiluettelo[],MATCH(SUMPRODUCT((Kurssiluettelo[PÄIVÄ]=Lukujärjestys[[#Headers],[TORSTAI]])*(ROUNDDOWN($B51,10)>=ROUNDDOWN(Kurssiluettelo[ALKAMISAIKA],10))*($B51<=Kurssiluettelo[PÄÄTTYMISAIKA]),Kurssiluettelo[YKSILÖLLINEN]),Kurssiluettelo[YKSILÖLLINEN],0),2),0)","v":0},{"$f":"IFERROR(INDEX(Kurssiluettelo[],MATCH(SUMPRODUCT((Kurssiluettelo[PÄIVÄ]=Lukujärjestys[[#Headers],[PERJANTAI]])*(ROUNDDOWN($B51,10)>=ROUNDDOWN(Kurssiluettelo[ALKAMISAIKA],10))*($B51<=Kurssiluettelo[PÄÄTTYMISAIKA]),Kurssiluettelo[YKSILÖLLINEN]),Kurssiluettelo[YKSILÖLLINEN],0),2),0)","v":0},{"$f":"IFERROR(INDEX(Kurssiluettelo[],MATCH(SUMPRODUCT((Kurssiluettelo[PÄIVÄ]=Lukujärjestys[[#Headers],[LAUANTAI]])*(ROUNDDOWN($B51,10)>=ROUNDDOWN(Kurssiluettelo[ALKAMISAIKA],10))*($B51<=Kurssiluettelo[PÄÄTTYMISAIKA]),Kurssiluettelo[YKSILÖLLINEN]),Kurssiluettelo[YKSILÖLLINEN],0),2),0)","v":0}]
[null,"20:00:00",{"$f":"IFERROR(INDEX(Kurssiluettelo[],MATCH(SUMPRODUCT((Kurssiluettelo[PÄIVÄ]=Lukujärjestys[[#Headers],[SUNNUNTAI]])*(ROUNDDOWN($B52,10)>=ROUNDDOWN(Kurssiluettelo[ALKAMISAIKA],10))*($B52<=Kurssiluettelo[PÄÄTTYMISAIKA]),Kurssiluettelo[YKSILÖLLINEN]),Kurssiluettelo[YKSILÖLLINEN],0),2),0)","v":0},{"$f":"IFERROR(INDEX(Kurssiluettelo[],MATCH(SUMPRODUCT((Kurssiluettelo[PÄIVÄ]=Lukujärjestys[[#Headers],[MAANANTAI]])*(ROUNDDOWN($B52,10)>=ROUNDDOWN(Kurssiluettelo[ALKAMISAIKA],10))*($B52<=Kurssiluettelo[PÄÄTTYMISAIKA]),Kurssiluettelo[YKSILÖLLINEN]),Kurssiluettelo[YKSILÖLLINEN],0),2),0)","v":0},{"$f":"IFERROR(INDEX(Kurssiluettelo[],MATCH(SUMPRODUCT((Kurssiluettelo[PÄIVÄ]=Lukujärjestys[[#Headers],[TIISTAI]])*(ROUNDDOWN($B52,10)>=ROUNDDOWN(Kurssiluettelo[ALKAMISAIKA],10))*($B52<=Kurssiluettelo[PÄÄTTYMISAIKA]),Kurssiluettelo[YKSILÖLLINEN]),Kurssiluettelo[YKSILÖLLINEN],0),2),0)","v":0},{"$f":"IFERROR(INDEX(Kurssiluettelo[],MATCH(SUMPRODUCT((Kurssiluettelo[PÄIVÄ]=Lukujärjestys[[#Headers],[KESKIVIIKKO]])*(ROUNDDOWN($B52,10)>=ROUNDDOWN(Kurssiluettelo[ALKAMISAIKA],10))*($B52<=Kurssiluettelo[PÄÄTTYMISAIKA]),Kurssiluettelo[YKSILÖLLINEN]),Kurssiluettelo[YKSILÖLLINEN],0),2),0)","v":0},{"$f":"IFERROR(INDEX(Kurssiluettelo[],MATCH(SUMPRODUCT((Kurssiluettelo[PÄIVÄ]=Lukujärjestys[[#Headers],[TORSTAI]])*(ROUNDDOWN($B52,10)>=ROUNDDOWN(Kurssiluettelo[ALKAMISAIKA],10))*($B52<=Kurssiluettelo[PÄÄTTYMISAIKA]),Kurssiluettelo[YKSILÖLLINEN]),Kurssiluettelo[YKSILÖLLINEN],0),2),0)","v":0},{"$f":"IFERROR(INDEX(Kurssiluettelo[],MATCH(SUMPRODUCT((Kurssiluettelo[PÄIVÄ]=Lukujärjestys[[#Headers],[PERJANTAI]])*(ROUNDDOWN($B52,10)>=ROUNDDOWN(Kurssiluettelo[ALKAMISAIKA],10))*($B52<=Kurssiluettelo[PÄÄTTYMISAIKA]),Kurssiluettelo[YKSILÖLLINEN]),Kurssiluettelo[YKSILÖLLINEN],0),2),0)","v":0},{"$f":"IFERROR(INDEX(Kurssiluettelo[],MATCH(SUMPRODUCT((Kurssiluettelo[PÄIVÄ]=Lukujärjestys[[#Headers],[LAUANTAI]])*(ROUNDDOWN($B52,10)>=ROUNDDOWN(Kurssiluettelo[ALKAMISAIKA],10))*($B52<=Kurssiluettelo[PÄÄTTYMISAIKA]),Kurssiluettelo[YKSILÖLLINEN]),Kurssiluettelo[YKSILÖLLINEN],0),2),0)","v":0}]
[null,"20:15:00",{"$f":"IFERROR(INDEX(Kurssiluettelo[],MATCH(SUMPRODUCT((Kurssiluettelo[PÄIVÄ]=Lukujärjestys[[#Headers],[SUNNUNTAI]])*(ROUNDDOWN($B53,10)>=ROUNDDOWN(Kurssiluettelo[ALKAMISAIKA],10))*($B53<=Kurssiluettelo[PÄÄTTYMISAIKA]),Kurssiluettelo[YKSILÖLLINEN]),Kurssiluettelo[YKSILÖLLINEN],0),2),0)","v":0},{"$f":"IFERROR(INDEX(Kurssiluettelo[],MATCH(SUMPRODUCT((Kurssiluettelo[PÄIVÄ]=Lukujärjestys[[#Headers],[MAANANTAI]])*(ROUNDDOWN($B53,10)>=ROUNDDOWN(Kurssiluettelo[ALKAMISAIKA],10))*($B53<=Kurssiluettelo[PÄÄTTYMISAIKA]),Kurssiluettelo[YKSILÖLLINEN]),Kurssiluettelo[YKSILÖLLINEN],0),2),0)","v":0},{"$f":"IFERROR(INDEX(Kurssiluettelo[],MATCH(SUMPRODUCT((Kurssiluettelo[PÄIVÄ]=Lukujärjestys[[#Headers],[TIISTAI]])*(ROUNDDOWN($B53,10)>=ROUNDDOWN(Kurssiluettelo[ALKAMISAIKA],10))*($B53<=Kurssiluettelo[PÄÄTTYMISAIKA]),Kurssiluettelo[YKSILÖLLINEN]),Kurssiluettelo[YKSILÖLLINEN],0),2),0)","v":0},{"$f":"IFERROR(INDEX(Kurssiluettelo[],MATCH(SUMPRODUCT((Kurssiluettelo[PÄIVÄ]=Lukujärjestys[[#Headers],[KESKIVIIKKO]])*(ROUNDDOWN($B53,10)>=ROUNDDOWN(Kurssiluettelo[ALKAMISAIKA],10))*($B53<=Kurssiluettelo[PÄÄTTYMISAIKA]),Kurssiluettelo[YKSILÖLLINEN]),Kurssiluettelo[YKSILÖLLINEN],0),2),0)","v":0},{"$f":"IFERROR(INDEX(Kurssiluettelo[],MATCH(SUMPRODUCT((Kurssiluettelo[PÄIVÄ]=Lukujärjestys[[#Headers],[TORSTAI]])*(ROUNDDOWN($B53,10)>=ROUNDDOWN(Kurssiluettelo[ALKAMISAIKA],10))*($B53<=Kurssiluettelo[PÄÄTTYMISAIKA]),Kurssiluettelo[YKSILÖLLINEN]),Kurssiluettelo[YKSILÖLLINEN],0),2),0)","v":0},{"$f":"IFERROR(INDEX(Kurssiluettelo[],MATCH(SUMPRODUCT((Kurssiluettelo[PÄIVÄ]=Lukujärjestys[[#Headers],[PERJANTAI]])*(ROUNDDOWN($B53,10)>=ROUNDDOWN(Kurssiluettelo[ALKAMISAIKA],10))*($B53<=Kurssiluettelo[PÄÄTTYMISAIKA]),Kurssiluettelo[YKSILÖLLINEN]),Kurssiluettelo[YKSILÖLLINEN],0),2),0)","v":0},{"$f":"IFERROR(INDEX(Kurssiluettelo[],MATCH(SUMPRODUCT((Kurssiluettelo[PÄIVÄ]=Lukujärjestys[[#Headers],[LAUANTAI]])*(ROUNDDOWN($B53,10)>=ROUNDDOWN(Kurssiluettelo[ALKAMISAIKA],10))*($B53<=Kurssiluettelo[PÄÄTTYMISAIKA]),Kurssiluettelo[YKSILÖLLINEN]),Kurssiluettelo[YKSILÖLLINEN],0),2),0)","v":0}]
[null,"20:30:00",{"$f":"IFERROR(INDEX(Kurssiluettelo[],MATCH(SUMPRODUCT((Kurssiluettelo[PÄIVÄ]=Lukujärjestys[[#Headers],[SUNNUNTAI]])*(ROUNDDOWN($B54,10)>=ROUNDDOWN(Kurssiluettelo[ALKAMISAIKA],10))*($B54<=Kurssiluettelo[PÄÄTTYMISAIKA]),Kurssiluettelo[YKSILÖLLINEN]),Kurssiluettelo[YKSILÖLLINEN],0),2),0)","v":0},{"$f":"IFERROR(INDEX(Kurssiluettelo[],MATCH(SUMPRODUCT((Kurssiluettelo[PÄIVÄ]=Lukujärjestys[[#Headers],[MAANANTAI]])*(ROUNDDOWN($B54,10)>=ROUNDDOWN(Kurssiluettelo[ALKAMISAIKA],10))*($B54<=Kurssiluettelo[PÄÄTTYMISAIKA]),Kurssiluettelo[YKSILÖLLINEN]),Kurssiluettelo[YKSILÖLLINEN],0),2),0)","v":0},{"$f":"IFERROR(INDEX(Kurssiluettelo[],MATCH(SUMPRODUCT((Kurssiluettelo[PÄIVÄ]=Lukujärjestys[[#Headers],[TIISTAI]])*(ROUNDDOWN($B54,10)>=ROUNDDOWN(Kurssiluettelo[ALKAMISAIKA],10))*($B54<=Kurssiluettelo[PÄÄTTYMISAIKA]),Kurssiluettelo[YKSILÖLLINEN]),Kurssiluettelo[YKSILÖLLINEN],0),2),0)","v":0},{"$f":"IFERROR(INDEX(Kurssiluettelo[],MATCH(SUMPRODUCT((Kurssiluettelo[PÄIVÄ]=Lukujärjestys[[#Headers],[KESKIVIIKKO]])*(ROUNDDOWN($B54,10)>=ROUNDDOWN(Kurssiluettelo[ALKAMISAIKA],10))*($B54<=Kurssiluettelo[PÄÄTTYMISAIKA]),Kurssiluettelo[YKSILÖLLINEN]),Kurssiluettelo[YKSILÖLLINEN],0),2),0)","v":0},{"$f":"IFERROR(INDEX(Kurssiluettelo[],MATCH(SUMPRODUCT((Kurssiluettelo[PÄIVÄ]=Lukujärjestys[[#Headers],[TORSTAI]])*(ROUNDDOWN($B54,10)>=ROUNDDOWN(Kurssiluettelo[ALKAMISAIKA],10))*($B54<=Kurssiluettelo[PÄÄTTYMISAIKA]),Kurssiluettelo[YKSILÖLLINEN]),Kurssiluettelo[YKSILÖLLINEN],0),2),0)","v":0},{"$f":"IFERROR(INDEX(Kurssiluettelo[],MATCH(SUMPRODUCT((Kurssiluettelo[PÄIVÄ]=Lukujärjestys[[#Headers],[PERJANTAI]])*(ROUNDDOWN($B54,10)>=ROUNDDOWN(Kurssiluettelo[ALKAMISAIKA],10))*($B54<=Kurssiluettelo[PÄÄTTYMISAIKA]),Kurssiluettelo[YKSILÖLLINEN]),Kurssiluettelo[YKSILÖLLINEN],0),2),0)","v":0},{"$f":"IFERROR(INDEX(Kurssiluettelo[],MATCH(SUMPRODUCT((Kurssiluettelo[PÄIVÄ]=Lukujärjestys[[#Headers],[LAUANTAI]])*(ROUNDDOWN($B54,10)>=ROUNDDOWN(Kurssiluettelo[ALKAMISAIKA],10))*($B54<=Kurssiluettelo[PÄÄTTYMISAIKA]),Kurssiluettelo[YKSILÖLLINEN]),Kurssiluettelo[YKSILÖLLINEN],0),2),0)","v":0}]
[null,{"$f":"B54+Lisäys","v":"20:45:00"},{"$f":"IFERROR(INDEX(Kurssiluettelo[],MATCH(SUMPRODUCT((Kurssiluettelo[PÄIVÄ]=Lukujärjestys[[#Headers],[SUNNUNTAI]])*(ROUNDDOWN($B55,10)>=ROUNDDOWN(Kurssiluettelo[ALKAMISAIKA],10))*($B55<=Kurssiluettelo[PÄÄTTYMISAIKA]),Kurssiluettelo[YKSILÖLLINEN]),Kurssiluettelo[YKSILÖLLINEN],0),2),0)","v":0},{"$f":"IFERROR(INDEX(Kurssiluettelo[],MATCH(SUMPRODUCT((Kurssiluettelo[PÄIVÄ]=Lukujärjestys[[#Headers],[MAANANTAI]])*(ROUNDDOWN($B55,10)>=ROUNDDOWN(Kurssiluettelo[ALKAMISAIKA],10))*($B55<=Kurssiluettelo[PÄÄTTYMISAIKA]),Kurssiluettelo[YKSILÖLLINEN]),Kurssiluettelo[YKSILÖLLINEN],0),2),0)","v":0},{"$f":"IFERROR(INDEX(Kurssiluettelo[],MATCH(SUMPRODUCT((Kurssiluettelo[PÄIVÄ]=Lukujärjestys[[#Headers],[TIISTAI]])*(ROUNDDOWN($B55,10)>=ROUNDDOWN(Kurssiluettelo[ALKAMISAIKA],10))*($B55<=Kurssiluettelo[PÄÄTTYMISAIKA]),Kurssiluettelo[YKSILÖLLINEN]),Kurssiluettelo[YKSILÖLLINEN],0),2),0)","v":0},{"$f":"IFERROR(INDEX(Kurssiluettelo[],MATCH(SUMPRODUCT((Kurssiluettelo[PÄIVÄ]=Lukujärjestys[[#Headers],[KESKIVIIKKO]])*(ROUNDDOWN($B55,10)>=ROUNDDOWN(Kurssiluettelo[ALKAMISAIKA],10))*($B55<=Kurssiluettelo[PÄÄTTYMISAIKA]),Kurssiluettelo[YKSILÖLLINEN]),Kurssiluettelo[YKSILÖLLINEN],0),2),0)","v":0},{"$f":"IFERROR(INDEX(Kurssiluettelo[],MATCH(SUMPRODUCT((Kurssiluettelo[PÄIVÄ]=Lukujärjestys[[#Headers],[TORSTAI]])*(ROUNDDOWN($B55,10)>=ROUNDDOWN(Kurssiluettelo[ALKAMISAIKA],10))*($B55<=Kurssiluettelo[PÄÄTTYMISAIKA]),Kurssiluettelo[YKSILÖLLINEN]),Kurssiluettelo[YKSILÖLLINEN],0),2),0)","v":0},{"$f":"IFERROR(INDEX(Kurssiluettelo[],MATCH(SUMPRODUCT((Kurssiluettelo[PÄIVÄ]=Lukujärjestys[[#Headers],[PERJANTAI]])*(ROUNDDOWN($B55,10)>=ROUNDDOWN(Kurssiluettelo[ALKAMISAIKA],10))*($B55<=Kurssiluettelo[PÄÄTTYMISAIKA]),Kurssiluettelo[YKSILÖLLINEN]),Kurssiluettelo[YKSILÖLLINEN],0),2),0)","v":0},{"$f":"IFERROR(INDEX(Kurssiluettelo[],MATCH(SUMPRODUCT((Kurssiluettelo[PÄIVÄ]=Lukujärjestys[[#Headers],[LAUANTAI]])*(ROUNDDOWN($B55,10)>=ROUNDDOWN(Kurssiluettelo[ALKAMISAIKA],10))*($B55<=Kurssiluettelo[PÄÄTTYMISAIKA]),Kurssiluettelo[YKSILÖLLINEN]),Kurssiluettelo[YKSILÖLLINEN],0),2),0)","v":0}]
[null,{"$f":"B55+Lisäys","v":"21:00:00"},{"$f":"IFERROR(INDEX(Kurssiluettelo[],MATCH(SUMPRODUCT((Kurssiluettelo[PÄIVÄ]=Lukujärjestys[[#Headers],[SUNNUNTAI]])*(ROUNDDOWN($B56,10)>=ROUNDDOWN(Kurssiluettelo[ALKAMISAIKA],10))*($B56<=Kurssiluettelo[PÄÄTTYMISAIKA]),Kurssiluettelo[YKSILÖLLINEN]),Kurssiluettelo[YKSILÖLLINEN],0),2),0)","v":0},{"$f":"IFERROR(INDEX(Kurssiluettelo[],MATCH(SUMPRODUCT((Kurssiluettelo[PÄIVÄ]=Lukujärjestys[[#Headers],[MAANANTAI]])*(ROUNDDOWN($B56,10)>=ROUNDDOWN(Kurssiluettelo[ALKAMISAIKA],10))*($B56<=Kurssiluettelo[PÄÄTTYMISAIKA]),Kurssiluettelo[YKSILÖLLINEN]),Kurssiluettelo[YKSILÖLLINEN],0),2),0)","v":0},{"$f":"IFERROR(INDEX(Kurssiluettelo[],MATCH(SUMPRODUCT((Kurssiluettelo[PÄIVÄ]=Lukujärjestys[[#Headers],[TIISTAI]])*(ROUNDDOWN($B56,10)>=ROUNDDOWN(Kurssiluettelo[ALKAMISAIKA],10))*($B56<=Kurssiluettelo[PÄÄTTYMISAIKA]),Kurssiluettelo[YKSILÖLLINEN]),Kurssiluettelo[YKSILÖLLINEN],0),2),0)","v":0},{"$f":"IFERROR(INDEX(Kurssiluettelo[],MATCH(SUMPRODUCT((Kurssiluettelo[PÄIVÄ]=Lukujärjestys[[#Headers],[KESKIVIIKKO]])*(ROUNDDOWN($B56,10)>=ROUNDDOWN(Kurssiluettelo[ALKAMISAIKA],10))*($B56<=Kurssiluettelo[PÄÄTTYMISAIKA]),Kurssiluettelo[YKSILÖLLINEN]),Kurssiluettelo[YKSILÖLLINEN],0),2),0)","v":0},{"$f":"IFERROR(INDEX(Kurssiluettelo[],MATCH(SUMPRODUCT((Kurssiluettelo[PÄIVÄ]=Lukujärjestys[[#Headers],[TORSTAI]])*(ROUNDDOWN($B56,10)>=ROUNDDOWN(Kurssiluettelo[ALKAMISAIKA],10))*($B56<=Kurssiluettelo[PÄÄTTYMISAIKA]),Kurssiluettelo[YKSILÖLLINEN]),Kurssiluettelo[YKSILÖLLINEN],0),2),0)","v":0},{"$f":"IFERROR(INDEX(Kurssiluettelo[],MATCH(SUMPRODUCT((Kurssiluettelo[PÄIVÄ]=Lukujärjestys[[#Headers],[PERJANTAI]])*(ROUNDDOWN($B56,10)>=ROUNDDOWN(Kurssiluettelo[ALKAMISAIKA],10))*($B56<=Kurssiluettelo[PÄÄTTYMISAIKA]),Kurssiluettelo[YKSILÖLLINEN]),Kurssiluettelo[YKSILÖLLINEN],0),2),0)","v":0},{"$f":"IFERROR(INDEX(Kurssiluettelo[],MATCH(SUMPRODUCT((Kurssiluettelo[PÄIVÄ]=Lukujärjestys[[#Headers],[LAUANTAI]])*(ROUNDDOWN($B56,10)>=ROUNDDOWN(Kurssiluettelo[ALKAMISAIKA],10))*($B56<=Kurssiluettelo[PÄÄTTYMISAIKA]),Kurssiluettelo[YKSILÖLLINEN]),Kurssiluettelo[YKSILÖLLINEN],0),2),0)","v":0}]

{"sheet":"Kurssiluettelo","index":1,"n_rows":10,"n_cols":8,"rows_kept":10,"merged":[[0,1,0,5],[0,6,0,7]]}
[null,"KURSSILUETTELO",{"$nulls":4},"Lukujärjestys"]
[null,"KURSSI","TUNNUS","PÄIVÄ","SIJAINTI","ALKAMISAIKA","PÄÄTTYMISAIKA","YKSILÖLLINEN"]
[null,"Tekninen kirjoittaminen","WR-121","MAANANTAI","Rakennus A","13:00:00","14:00:00",{"$f":"ROW()-ROW(Kurssiluettelo[[#Headers],[YKSILÖLLINEN]])","v":1}]
[null,"Tekninen kirjoittaminen","WR-121","KESKIVIIKKO","Rakennus A","13:00:00","14:00:00",{"$f":"ROW()-ROW(Kurssiluettelo[[#Headers],[YKSILÖLLINEN]])","v":2}]
[null,"Julkinen puhuminen","SP-111","MAANANTAI","Rakennus B","16:00:00","17:00:00",{"$f":"ROW()-ROW(Kurssiluettelo[[#Headers],[YKSILÖLLINEN]])","v":3}]
[null,"Terveys ja kuntoilu","HPE-295","TIISTAI","Rakennus B","11:00:00","12:00:00",{"$f":"ROW()-ROW(Kurssiluettelo[[#Headers],[YKSILÖLLINEN]])","v":4}]
[null,"Terveys ja kuntoilu","HPE-295","TORSTAI","Rakennus B","11:00:00","12:00:00",{"$f":"ROW()-ROW(Kurssiluettelo[[#Headers],[YKSILÖLLINEN]])","v":5}]
[null,"Algebra","MTH-113","MAANANTAI","Rakennus C","08:10:00","09:15:00",{"$f":"ROW()-ROW(Kurssiluettelo[[#Headers],[YKSILÖLLINEN]])","v":6}]
[null,"Algebra","MTH-113","KESKIVIIKKO","Rakennus C","08:10:00","09:15:00",{"$f":"ROW()-ROW(Kurssiluettelo[[#Headers],[YKSILÖLLINEN]])","v":7}]
[null,"Algebra","MTH-113","PERJANTAI","Rakennus C","08:10:00","09:15:00",{"$f":"ROW()-ROW(Kurssiluettelo[[#Headers],[YKSILÖLLINEN]])","v":8}]